{"text_format":"1","workbook":"xlsx","n_sheets":14,"sheets":["OLD PAPI_24- 27 (Delib. 246) ","Identificação das ações 24-27","PAPI-2024-2027","Acompanhamento das metas 24-27","Acomp. financeiro  24-27","Acomp. - PAPI_21 (Delib. 190) ","Acomp. PAPI_22_23 (Delib. 246) ","PAPI 2024-2027","Consolidaçao - 1","Consolidaçao - 2","Orientações","Operacional","Explicativo","de-para 246 190"],"not_rendered":{"charts":5,"images":0,"macros":1,"external_links":0,"defined_names":9,"comments":8,"pivot_tables":5},"unopened":[],"bounds":{"document_bytes":16777216,"sheet_cells":100000,"rows_first":2000,"rows_last":500,"rows_between":2000,"halvings":0,"cell_chars":16384,"cell_head_chars":4096},"cells_cut":0,"cells_raw":0,"read":"whole","date_system":"1900"}

{"sheet":"OLD PAPI_24- 27 (Delib. 246) ","index":0,"n_rows":50,"n_cols":24,"rows_kept":50,"cut":false,"hidden":true,"merged":[]}
["ID Ação","Ação iniciou no PA/PI anterior?","Se sim, id da ação anterior","Ano previsto para início","Tipo de ação","É ou será  empreendimento FEHIDRO?","Ação requer recursos financeiros?","SubPDC","Prioridade do SubPDC","Ação","Meta","% Execução da meta do quadriênio","Segmento do executor","Área de abrangência","Nome da área de abrangência","Recurso financeiro estimado no ano\n(R$) - Cobrança Estadual","Recurso financeiro estimado no ano (R$) - CFURH","Recurso financeiro estimado no ano\n(R$) - Cobrança Federal","Recurso financeiro estimado no ano (R$) - Outras","Especificar Fonte - \"Outras\"","Recurso financeiro estimado no ano\n(R$)","Recurso financeiro disponibilizado no ano (R$)","Recurso financeiro executado no ano (R$)","Justificativa sobre execução física e financeira"]
["SID012024","Não",null,2024,null,"Sim",null,"3.1 - Efluentes","Não prioritário","Efetuar estudos de detalhe sobre a disponibilidade hídrica superficial e subterrânea (AG.11)","MG.4 - Realizar ao menos 01 estudo que subsidie o planejamento e a gestão de recursos hídricos na UGRHi 18",null,null,"Sub-bacia","Sub-bacia crítica conforme classe de  vazão de referência apontadas no Relatório de Situação",null,null,null,null,null,{"$f":"IF(SUM(PAPI20_22_23[[#This Row],[Recurso financeiro estimado no ano\n(R$) - Cobrança Estadual]:[Recurso financeiro estimado no ano (R$) - Outras]]) >0,SUM(PAPI20_22_23[[#This Row],[Recurso financeiro estimado no ano\n(R$) - Cobrança Estadual]:[Recurso financeiro estimado no ano (R$) - Outras]]),\"\")","v":""}]
["SID012025",null,null,2024,null,null,null,null,null,"Manter o cadastro atualizado na bacia hidrográfica SJD  (AG.13)","MG.4 - Realizar ao menos 01 estudo para acompanhamento e adequação da cobrança pelo uso dos recursos hídricos",null,"Estado","UGRHi","UGRHi 18",170000,null,null,null,null,{"$f":"IF(SUM(PAPI20_22_23[[#This Row],[Recurso financeiro estimado no ano\n(R$) - Cobrança Estadual]:[Recurso financeiro estimado no ano (R$) - Outras]]) >0,SUM(PAPI20_22_23[[#This Row],[Recurso financeiro estimado no ano\n(R$) - Cobrança Estadual]:[Recurso financeiro estimado no ano (R$) - Outras]]),\"\")","v":170000}]
["SID012024",null,null,null,null,null,null,null,null,"Execução de obras de sistemas de esgotamento sanitário, bem como de tratamento de efluentes provenientes de ETE  (AI.3, 4, 5 e 6)","MI. 2 e 3 - Efetuar melhorias nos sistemas de tratamento de esgoto  em ao \nmenos 02 municípios",null,"Município","Município","Municípios da UGRHi 18 que apresentem proporção de redução da carga orgânica poluidora domestica ≤ 80%. ",260000,null,null,null,null,{"$f":"IF(SUM(PAPI20_22_23[[#This Row],[Recurso financeiro estimado no ano\n(R$) - Cobrança Estadual]:[Recurso financeiro estimado no ano (R$) - Outras]]) >0,SUM(PAPI20_22_23[[#This Row],[Recurso financeiro estimado no ano\n(R$) - Cobrança Estadual]:[Recurso financeiro estimado no ano (R$) - Outras]]),\"\")","v":260000}]
["SID042022",null,null,null,null,null,null,null,null,"Execução de obras e projetos (AI 8 e 9) nos casos em que haja comprometimento dos recursos hídricos","MI.4 -  Efetuar melhorias nos sistemas de aterros sanitários em ao menos 02  municípios",null,"Município","Município","Municípios com sistema de tratamento e coleta de resíduos sólidos ineficientes, conforme  consta no Rel. Situação.",250000,null,null,null,null,{"$f":"IF(SUM(PAPI20_22_23[[#This Row],[Recurso financeiro estimado no ano\n(R$) - Cobrança Estadual]:[Recurso financeiro estimado no ano (R$) - Outras]]) >0,SUM(PAPI20_22_23[[#This Row],[Recurso financeiro estimado no ano\n(R$) - Cobrança Estadual]:[Recurso financeiro estimado no ano (R$) - Outras]]),\"\")","v":250000}]
["SID052022",null,null,null,null,null,null,null,null,"Execução de obras ou projetos que controle a erosão do solo ou assoreamento dos corpos d’água, em áreas urbanas ou rurais (AI. 14, 15 e 16)","MI. 6 e MI. 7 - Aprimorar sistemas de conservação do solo e controle de erosão em ao menos 03 municípios",null,"Município","Município","Municípios com Plano de Drenagem ou Plano Diretor de Erosão elaborado",null,288866.7,null,null,null,{"$f":"IF(SUM(PAPI20_22_23[[#This Row],[Recurso financeiro estimado no ano\n(R$) - Cobrança Estadual]:[Recurso financeiro estimado no ano (R$) - Outras]]) >0,SUM(PAPI20_22_23[[#This Row],[Recurso financeiro estimado no ano\n(R$) - Cobrança Estadual]:[Recurso financeiro estimado no ano (R$) - Outras]]),\"\")","v":288866.7}]
["SID062022",null,null,null,null,null,null,null,null,"Implementação das açoes indicadas no Plano de Saneamento (AI.11 e 12)\n(troca de hidrômetros, manutenção de rede, instalação de válvulas redutoras de pressão, entre outros)","MI.5 - Reduzir perdas em sistemas de abastecimento de água em ao menos 02 municípios",null,"Município","Município","Ilha Solteira, Santa Fé do Sul, Suzanápolis, São João de Iracema e Neves Paulista",170000,null,null,null,null,{"$f":"IF(SUM(PAPI20_22_23[[#This Row],[Recurso financeiro estimado no ano\n(R$) - Cobrança Estadual]:[Recurso financeiro estimado no ano (R$) - Outras]]) >0,SUM(PAPI20_22_23[[#This Row],[Recurso financeiro estimado no ano\n(R$) - Cobrança Estadual]:[Recurso financeiro estimado no ano (R$) - Outras]]),\"\")","v":170000}]
["SID072022",null,null,null,null,null,null,null,null,"Execução de obras ou projetos de galerias de águas pluviais e canalização de curso d'água em área urbana e periurbana (AI.17, AI. 21, 22 e 23 )","MI. 7 e MI. 9 - Realizar melhorias nos sistemas de drenagem em ao menos 02 municípios",null,"Município","Município","Obras indicadas no Plano/Estudo de Drenagem no Município  e para Projetos com necessidades de readequação/ampliação",null,200000,null,null,null,{"$f":"IF(SUM(PAPI20_22_23[[#This Row],[Recurso financeiro estimado no ano\n(R$) - Cobrança Estadual]:[Recurso financeiro estimado no ano (R$) - Outras]]) >0,SUM(PAPI20_22_23[[#This Row],[Recurso financeiro estimado no ano\n(R$) - Cobrança Estadual]:[Recurso financeiro estimado no ano (R$) - Outras]]),\"\")","v":200000}]
["SID082022",null,null,null,null,null,null,null,null,"Orientação aos produtores rurais quanto à importância da outorga e treinamento/capacitação sobre os procedimentos de outorga e licenciamento ambiental (AG.25)","MG.9. Realizar ao menos 1 curso de capacitação técnica relacionada ao planejamento e gestão de recursos hídricos",null,null,"UGRHi","UGRHi 18",150000,null,null,null,null,{"$f":"IF(SUM(PAPI20_22_23[[#This Row],[Recurso financeiro estimado no ano\n(R$) - Cobrança Estadual]:[Recurso financeiro estimado no ano (R$) - Outras]]) >0,SUM(PAPI20_22_23[[#This Row],[Recurso financeiro estimado no ano\n(R$) - Cobrança Estadual]:[Recurso financeiro estimado no ano (R$) - Outras]]),\"\")","v":150000},150000,0,"empreendimento não iniciado - emitiu o contrato"]
["SID012023",null,null,null,null,null,null,null,null,"Realizar estudo/diagnóstico ambiental das nascentes, por sub-bacia, na UGRHI","Aumentar as informações afim de subsidiar o planejamento e a gestão dos recursos hídricos na UGRHI",null,"DIVERSOS","UGRHi","UGRHi 18 ",200197.43,null,null,null,null,{"$f":"IF(SUM(PAPI20_22_23[[#This Row],[Recurso financeiro estimado no ano\n(R$) - Cobrança Estadual]:[Recurso financeiro estimado no ano (R$) - Outras]]) >0,SUM(PAPI20_22_23[[#This Row],[Recurso financeiro estimado no ano\n(R$) - Cobrança Estadual]:[Recurso financeiro estimado no ano (R$) - Outras]]),\"\")","v":200197.43}]
["SID022023",null,null,null,null,null,null,null,null,"Elaborar mapa de feições erosivas da UGRHI"," Aumentar as informações afim de subsidiar o planejamento e a gestão dos recursos hídricos na UGRHI",null,"DIVERSOS","UGRHi","UGRHi 18 ",null,280000,null,null,null,{"$f":"IF(SUM(PAPI20_22_23[[#This Row],[Recurso financeiro estimado no ano\n(R$) - Cobrança Estadual]:[Recurso financeiro estimado no ano (R$) - Outras]]) >0,SUM(PAPI20_22_23[[#This Row],[Recurso financeiro estimado no ano\n(R$) - Cobrança Estadual]:[Recurso financeiro estimado no ano (R$) - Outras]]),\"\")","v":280000}]
["SID032022",null,null,null,null,null,null,null,null,"Elaboração do Plano diretor de controle de perdas","Aumentar as informações afim de subsidiar o planejamento e a gestão dos recursos hídricos na UGRHI",null,"Município","Município","Ilha Solteira, Neves Paulista, São João de Iracema e Santa Fé do Sul.",170000,null,null,null,null,{"$f":"IF(SUM(PAPI20_22_23[[#This Row],[Recurso financeiro estimado no ano\n(R$) - Cobrança Estadual]:[Recurso financeiro estimado no ano (R$) - Outras]]) >0,SUM(PAPI20_22_23[[#This Row],[Recurso financeiro estimado no ano\n(R$) - Cobrança Estadual]:[Recurso financeiro estimado no ano (R$) - Outras]]),\"\")","v":170000}]
["SID042023",null,null,null,null,null,null,null,null,"Elaborar estudos para o controle de processos erosivos e projetos (básicos e/ou executivos), serviços ou obras para prevenção, prioritariamente em bacias de abastecimento, nascentes e áreas de recarga\n(troca de hidrômetros, manutenção de rede, instalação de válvulas redutoras de pressão, entre outros)","Prevenir e controlar processos de erosão e assoreamento, visando a melhoria ou recuperação dos corpos d’água",null,"Município","Município","Floreal, General Salgado, Ilha Solteira, Jales, Monte Aprazível, Neves Paulista, Nhandeara, Palmeira d´oeste, Santa Fé do Sul, Sebastianópolis do Sul, Cosmorama, Monte Aprazível, Poloni, Santa Salete, Santana da Ponte Pensa, São Francisco, Tanabi, Três Fronteiras e Votuporanga",400000,300000,null,null,null,{"$f":"IF(SUM(PAPI20_22_23[[#This Row],[Recurso financeiro estimado no ano\n(R$) - Cobrança Estadual]:[Recurso financeiro estimado no ano (R$) - Outras]]) >0,SUM(PAPI20_22_23[[#This Row],[Recurso financeiro estimado no ano\n(R$) - Cobrança Estadual]:[Recurso financeiro estimado no ano (R$) - Outras]]),\"\")","v":700000}]
["SID052023",null,null,null,null,null,null,null,null,"Elaborar Projetos (básicos e/ou executivos), obras ou serviços em sistemas de abastecimento, visando controle e redução de perdas de água","Alcance de uma média de 25% de perdas globais nos municípios da Bacia",null,"Município","Município","Ilha Solteira, Suzanápolis, Santa Fé do Sul, Neves Paulista e São João de Iracema.",300000,null,null,null,null,{"$f":"IF(SUM(PAPI20_22_23[[#This Row],[Recurso financeiro estimado no ano\n(R$) - Cobrança Estadual]:[Recurso financeiro estimado no ano (R$) - Outras]]) >0,SUM(PAPI20_22_23[[#This Row],[Recurso financeiro estimado no ano\n(R$) - Cobrança Estadual]:[Recurso financeiro estimado no ano (R$) - Outras]]),\"\")","v":300000}]
["SID092023",null,null,null,null,null,null,null,null,"Aquisição de equipamentos para operacionalização  de sistemas de alerta, radares meteorológicos ou redes telemétricas integrados a sistemas de suporte à decisão; divulgação de informações e apoio à defesa civil (AG. 24) ","MG. 8 - Estruturar 01 Sala de Situação visando o Monitoramento de eventos extremos e sistemas de suporte a decisão",null,null,"Sub-bacia","UGRHi 18",400000,null,null,null,null,{"$f":"IF(SUM(PAPI20_22_23[[#This Row],[Recurso financeiro estimado no ano\n(R$) - Cobrança Estadual]:[Recurso financeiro estimado no ano (R$) - Outras]]) >0,SUM(PAPI20_22_23[[#This Row],[Recurso financeiro estimado no ano\n(R$) - Cobrança Estadual]:[Recurso financeiro estimado no ano (R$) - Outras]]),\"\")","v":400000},851322.1,0,"adiantamos a indicação da ação prevista para 2023 - empreendimento cancelado"]
["SID07023",null,null,null,null,null,null,null,null,"Elaborar projetos (básicos e/ou executivos), serviços, obras em municípios com sistema de coleta e disposição final de resíduos sólidos ineficientes e/ou inadequadas; e implantar pontos de entrega voluntária (PEV), e programas de coleta seletiva"," Aumentar a cobertura da coleta de resíduos sólidos em áreas urbanas e rurais dos municípios ",null,"Município","Município","Município",308323.15000000002,null,null,null,null,{"$f":"IF(SUM(PAPI20_22_23[[#This Row],[Recurso financeiro estimado no ano\n(R$) - Cobrança Estadual]:[Recurso financeiro estimado no ano (R$) - Outras]]) >0,SUM(PAPI20_22_23[[#This Row],[Recurso financeiro estimado no ano\n(R$) - Cobrança Estadual]:[Recurso financeiro estimado no ano (R$) - Outras]]),\"\")","v":308323.15000000002}]
["SID08023",null,null,null,null,null,null,null,null,"Elaborar projetos (básicos e/ou executivos), executar obras ou serviços em sistemas de abastecimento, visando propor soluções alternativas e a ampliação da rede de distribuição, das demais estruturas de apoio ao abastecimento","Aproveitamento dos recursos hídricos e segurança hídrica",null,"Município","Município","Município",179324.92,null,null,null,null,{"$f":"IF(SUM(PAPI20_22_23[[#This Row],[Recurso financeiro estimado no ano\n(R$) - Cobrança Estadual]:[Recurso financeiro estimado no ano (R$) - Outras]]) >0,SUM(PAPI20_22_23[[#This Row],[Recurso financeiro estimado no ano\n(R$) - Cobrança Estadual]:[Recurso financeiro estimado no ano (R$) - Outras]]),\"\")","v":179324.92}]
["SID06023",null,null,null,null,null,null,null,null,"Elaborar projetos (básicos e/ou executivos), serviços ou obras para contenção de inundações, alagamentos, inclusive por técnicas de infiltração e armazenamento; e regularizações de descargas e dispositivos de lançamento de drenagem"," Contenção de inundações, alagamentos e regularizações de descargas na UGRHI",null,"Município","Município","Município",null,1113141.6499999999,null,null,null,{"$f":"IF(SUM(PAPI20_22_23[[#This Row],[Recurso financeiro estimado no ano\n(R$) - Cobrança Estadual]:[Recurso financeiro estimado no ano (R$) - Outras]]) >0,SUM(PAPI20_22_23[[#This Row],[Recurso financeiro estimado no ano\n(R$) - Cobrança Estadual]:[Recurso financeiro estimado no ano (R$) - Outras]]),\"\")","v":1113141.6499999999}]
[null,null,null,null,null,null,null,null,null,null,null,null,null,null,null,null,null,null,null,null,{"$f":"IF(SUM(PAPI20_22_23[[#This Row],[Recurso financeiro estimado no ano\n(R$) - Cobrança Estadual]:[Recurso financeiro estimado no ano (R$) - Outras]]) >0,SUM(PAPI20_22_23[[#This Row],[Recurso financeiro estimado no ano\n(R$) - Cobrança Estadual]:[Recurso financeiro estimado no ano (R$) - Outras]]),\"\")","v":""}]
[null,null,null,null,null,null,null,null,null,null,null,null,null,null,null,null,null,null,null,null,{"$f":"IF(SUM(PAPI20_22_23[[#This Row],[Recurso financeiro estimado no ano\n(R$) - Cobrança Estadual]:[Recurso financeiro estimado no ano (R$) - Outras]]) >0,SUM(PAPI20_22_23[[#This Row],[Recurso financeiro estimado no ano\n(R$) - Cobrança Estadual]:[Recurso financeiro estimado no ano (R$) - Outras]]),\"\")","v":""}]
[null,null,null,null,null,null,null,null,null,null,null,null,null,null,null,null,null,null,null,null,{"$f":"IF(SUM(PAPI20_22_23[[#This Row],[Recurso financeiro estimado no ano\n(R$) - Cobrança Estadual]:[Recurso financeiro estimado no ano (R$) - Outras]]) >0,SUM(PAPI20_22_23[[#This Row],[Recurso financeiro estimado no ano\n(R$) - Cobrança Estadual]:[Recurso financeiro estimado no ano (R$) - Outras]]),\"\")","v":""}]
[null,null,null,null,null,null,null,null,null,null,null,null,null,null,null,null,null,null,null,null,{"$f":"IF(SUM(PAPI20_22_23[[#This Row],[Recurso financeiro estimado no ano\n(R$) - Cobrança Estadual]:[Recurso financeiro estimado no ano (R$) - Outras]]) >0,SUM(PAPI20_22_23[[#This Row],[Recurso financeiro estimado no ano\n(R$) - Cobrança Estadual]:[Recurso financeiro estimado no ano (R$) - Outras]]),\"\")","v":""}]
[null,null,null,null,null,null,null,null,null,null,null,null,null,null,null,null,null,null,null,null,{"$f":"IF(SUM(PAPI20_22_23[[#This Row],[Recurso financeiro estimado no ano\n(R$) - Cobrança Estadual]:[Recurso financeiro estimado no ano (R$) - Outras]]) >0,SUM(PAPI20_22_23[[#This Row],[Recurso financeiro estimado no ano\n(R$) - Cobrança Estadual]:[Recurso financeiro estimado no ano (R$) - Outras]]),\"\")","v":""}]
[null,null,null,null,null,null,null,null,null,null,null,null,null,null,null,null,null,null,null,null,{"$f":"IF(SUM(PAPI20_22_23[[#This Row],[Recurso financeiro estimado no ano\n(R$) - Cobrança Estadual]:[Recurso financeiro estimado no ano (R$) - Outras]]) >0,SUM(PAPI20_22_23[[#This Row],[Recurso financeiro estimado no ano\n(R$) - Cobrança Estadual]:[Recurso financeiro estimado no ano (R$) - Outras]]),\"\")","v":""}]
[null,null,null,null,null,null,null,null,null,null,null,null,null,null,null,null,null,null,null,null,{"$f":"IF(SUM(PAPI20_22_23[[#This Row],[Recurso financeiro estimado no ano\n(R$) - Cobrança Estadual]:[Recurso financeiro estimado no ano (R$) - Outras]]) >0,SUM(PAPI20_22_23[[#This Row],[Recurso financeiro estimado no ano\n(R$) - Cobrança Estadual]:[Recurso financeiro estimado no ano (R$) - Outras]]),\"\")","v":""}]
[null,null,null,null,null,null,null,null,null,null,null,null,null,null,null,null,null,null,null,null,{"$f":"IF(SUM(PAPI20_22_23[[#This Row],[Recurso financeiro estimado no ano\n(R$) - Cobrança Estadual]:[Recurso financeiro estimado no ano (R$) - Outras]]) >0,SUM(PAPI20_22_23[[#This Row],[Recurso financeiro estimado no ano\n(R$) - Cobrança Estadual]:[Recurso financeiro estimado no ano (R$) - Outras]]),\"\")","v":""}]
[null,null,null,null,null,null,null,null,null,null,null,null,null,null,null,null,null,null,null,null,{"$f":"IF(SUM(PAPI20_22_23[[#This Row],[Recurso financeiro estimado no ano\n(R$) - Cobrança Estadual]:[Recurso financeiro estimado no ano (R$) - Outras]]) >0,SUM(PAPI20_22_23[[#This Row],[Recurso financeiro estimado no ano\n(R$) - Cobrança Estadual]:[Recurso financeiro estimado no ano (R$) - Outras]]),\"\")","v":""}]
[null,null,null,null,null,null,null,null,null,null,null,null,null,null,null,null,null,null,null,null,{"$f":"IF(SUM(PAPI20_22_23[[#This Row],[Recurso financeiro estimado no ano\n(R$) - Cobrança Estadual]:[Recurso financeiro estimado no ano (R$) - Outras]]) >0,SUM(PAPI20_22_23[[#This Row],[Recurso financeiro estimado no ano\n(R$) - Cobrança Estadual]:[Recurso financeiro estimado no ano (R$) - Outras]]),\"\")","v":""}]
[null,null,null,null,null,null,null,null,null,null,null,null,null,null,null,null,null,null,null,null,{"$f":"IF(SUM(PAPI20_22_23[[#This Row],[Recurso financeiro estimado no ano\n(R$) - Cobrança Estadual]:[Recurso financeiro estimado no ano (R$) - Outras]]) >0,SUM(PAPI20_22_23[[#This Row],[Recurso financeiro estimado no ano\n(R$) - Cobrança Estadual]:[Recurso financeiro estimado no ano (R$) - Outras]]),\"\")","v":""}]
[null,null,null,null,null,null,null,null,null,null,null,null,null,null,null,null,null,null,null,null,{"$f":"IF(SUM(PAPI20_22_23[[#This Row],[Recurso financeiro estimado no ano\n(R$) - Cobrança Estadual]:[Recurso financeiro estimado no ano (R$) - Outras]]) >0,SUM(PAPI20_22_23[[#This Row],[Recurso financeiro estimado no ano\n(R$) - Cobrança Estadual]:[Recurso financeiro estimado no ano (R$) - Outras]]),\"\")","v":""}]
[null,null,null,null,null,null,null,null,null,null,null,null,null,null,null,null,null,null,null,null,{"$f":"IF(SUM(PAPI20_22_23[[#This Row],[Recurso financeiro estimado no ano\n(R$) - Cobrança Estadual]:[Recurso financeiro estimado no ano (R$) - Outras]]) >0,SUM(PAPI20_22_23[[#This Row],[Recurso financeiro estimado no ano\n(R$) - Cobrança Estadual]:[Recurso financeiro estimado no ano (R$) - Outras]]),\"\")","v":""}]
[null,null,null,null,null,null,null,null,null,null,null,null,null,null,null,null,null,null,null,null,{"$f":"IF(SUM(PAPI20_22_23[[#This Row],[Recurso financeiro estimado no ano\n(R$) - Cobrança Estadual]:[Recurso financeiro estimado no ano (R$) - Outras]]) >0,SUM(PAPI20_22_23[[#This Row],[Recurso financeiro estimado no ano\n(R$) - Cobrança Estadual]:[Recurso financeiro estimado no ano (R$) - Outras]]),\"\")","v":""}]
[null,null,null,null,null,null,null,null,null,null,null,null,null,null,null,null,null,null,null,null,{"$f":"IF(SUM(PAPI20_22_23[[#This Row],[Recurso financeiro estimado no ano\n(R$) - Cobrança Estadual]:[Recurso financeiro estimado no ano (R$) - Outras]]) >0,SUM(PAPI20_22_23[[#This Row],[Recurso financeiro estimado no ano\n(R$) - Cobrança Estadual]:[Recurso financeiro estimado no ano (R$) - Outras]]),\"\")","v":""}]
[null,null,null,null,null,null,null,null,null,null,null,null,null,null,null,null,null,null,null,null,{"$f":"IF(SUM(PAPI20_22_23[[#This Row],[Recurso financeiro estimado no ano\n(R$) - Cobrança Estadual]:[Recurso financeiro estimado no ano (R$) - Outras]]) >0,SUM(PAPI20_22_23[[#This Row],[Recurso financeiro estimado no ano\n(R$) - Cobrança Estadual]:[Recurso financeiro estimado no ano (R$) - Outras]]),\"\")","v":""}]
[null,null,null,null,null,null,null,null,null,null,null,null,null,null,null,null,null,null,null,null,{"$f":"IF(SUM(PAPI20_22_23[[#This Row],[Recurso financeiro estimado no ano\n(R$) - Cobrança Estadual]:[Recurso financeiro estimado no ano (R$) - Outras]]) >0,SUM(PAPI20_22_23[[#This Row],[Recurso financeiro estimado no ano\n(R$) - Cobrança Estadual]:[Recurso financeiro estimado no ano (R$) - Outras]]),\"\")","v":""}]
[null,null,null,null,null,null,null,null,null,null,null,null,null,null,null,null,null,null,null,null,{"$f":"IF(SUM(PAPI20_22_23[[#This Row],[Recurso financeiro estimado no ano\n(R$) - Cobrança Estadual]:[Recurso financeiro estimado no ano (R$) - Outras]]) >0,SUM(PAPI20_22_23[[#This Row],[Recurso financeiro estimado no ano\n(R$) - Cobrança Estadual]:[Recurso financeiro estimado no ano (R$) - Outras]]),\"\")","v":""}]
[null,null,null,null,null,null,null,null,null,null,null,null,null,null,null,null,null,null,null,null,{"$f":"IF(SUM(PAPI20_22_23[[#This Row],[Recurso financeiro estimado no ano\n(R$) - Cobrança Estadual]:[Recurso financeiro estimado no ano (R$) - Outras]]) >0,SUM(PAPI20_22_23[[#This Row],[Recurso financeiro estimado no ano\n(R$) - Cobrança Estadual]:[Recurso financeiro estimado no ano (R$) - Outras]]),\"\")","v":""}]
[null,null,null,null,null,null,null,null,null,null,null,null,null,null,null,null,null,null,null,null,{"$f":"IF(SUM(PAPI20_22_23[[#This Row],[Recurso financeiro estimado no ano\n(R$) - Cobrança Estadual]:[Recurso financeiro estimado no ano (R$) - Outras]]) >0,SUM(PAPI20_22_23[[#This Row],[Recurso financeiro estimado no ano\n(R$) - Cobrança Estadual]:[Recurso financeiro estimado no ano (R$) - Outras]]),\"\")","v":""}]
[null,null,null,null,null,null,null,null,null,null,null,null,null,null,null,null,null,null,null,null,{"$f":"IF(SUM(PAPI20_22_23[[#This Row],[Recurso financeiro estimado no ano\n(R$) - Cobrança Estadual]:[Recurso financeiro estimado no ano (R$) - Outras]]) >0,SUM(PAPI20_22_23[[#This Row],[Recurso financeiro estimado no ano\n(R$) - Cobrança Estadual]:[Recurso financeiro estimado no ano (R$) - Outras]]),\"\")","v":""}]
[null,null,null,null,null,null,null,null,null,null,null,null,null,null,null,null,null,null,null,null,{"$f":"IF(SUM(PAPI20_22_23[[#This Row],[Recurso financeiro estimado no ano\n(R$) - Cobrança Estadual]:[Recurso financeiro estimado no ano (R$) - Outras]]) >0,SUM(PAPI20_22_23[[#This Row],[Recurso financeiro estimado no ano\n(R$) - Cobrança Estadual]:[Recurso financeiro estimado no ano (R$) - Outras]]),\"\")","v":""}]
[null,null,null,null,null,null,null,null,null,null,null,null,null,null,null,null,null,null,null,null,{"$f":"IF(SUM(PAPI20_22_23[[#This Row],[Recurso financeiro estimado no ano\n(R$) - Cobrança Estadual]:[Recurso financeiro estimado no ano (R$) - Outras]]) >0,SUM(PAPI20_22_23[[#This Row],[Recurso financeiro estimado no ano\n(R$) - Cobrança Estadual]:[Recurso financeiro estimado no ano (R$) - Outras]]),\"\")","v":""}]
[null,null,null,null,null,null,null,null,null,null,null,null,null,null,null,null,null,null,null,null,{"$f":"IF(SUM(PAPI20_22_23[[#This Row],[Recurso financeiro estimado no ano\n(R$) - Cobrança Estadual]:[Recurso financeiro estimado no ano (R$) - Outras]]) >0,SUM(PAPI20_22_23[[#This Row],[Recurso financeiro estimado no ano\n(R$) - Cobrança Estadual]:[Recurso financeiro estimado no ano (R$) - Outras]]),\"\")","v":""}]
[null,null,null,null,null,null,null,null,null,null,null,null,null,null,null,null,null,null,null,null,{"$f":"IF(SUM(PAPI20_22_23[[#This Row],[Recurso financeiro estimado no ano\n(R$) - Cobrança Estadual]:[Recurso financeiro estimado no ano (R$) - Outras]]) >0,SUM(PAPI20_22_23[[#This Row],[Recurso financeiro estimado no ano\n(R$) - Cobrança Estadual]:[Recurso financeiro estimado no ano (R$) - Outras]]),\"\")","v":""}]
[null,null,null,null,null,null,null,null,null,null,null,null,null,null,null,null,null,null,null,null,{"$f":"IF(SUM(PAPI20_22_23[[#This Row],[Recurso financeiro estimado no ano\n(R$) - Cobrança Estadual]:[Recurso financeiro estimado no ano (R$) - Outras]]) >0,SUM(PAPI20_22_23[[#This Row],[Recurso financeiro estimado no ano\n(R$) - Cobrança Estadual]:[Recurso financeiro estimado no ano (R$) - Outras]]),\"\")","v":""}]
[null,null,null,null,null,null,null,null,null,null,null,null,null,null,null,null,null,null,null,null,{"$f":"IF(SUM(PAPI20_22_23[[#This Row],[Recurso financeiro estimado no ano\n(R$) - Cobrança Estadual]:[Recurso financeiro estimado no ano (R$) - Outras]]) >0,SUM(PAPI20_22_23[[#This Row],[Recurso financeiro estimado no ano\n(R$) - Cobrança Estadual]:[Recurso financeiro estimado no ano (R$) - Outras]]),\"\")","v":""}]
[null,null,null,null,null,null,null,null,null,null,null,null,null,null,null,null,null,null,null,null,{"$f":"IF(SUM(PAPI20_22_23[[#This Row],[Recurso financeiro estimado no ano\n(R$) - Cobrança Estadual]:[Recurso financeiro estimado no ano (R$) - Outras]]) >0,SUM(PAPI20_22_23[[#This Row],[Recurso financeiro estimado no ano\n(R$) - Cobrança Estadual]:[Recurso financeiro estimado no ano (R$) - Outras]]),\"\")","v":""}]
[null,null,null,null,null,null,null,null,null,null,null,null,null,null,null,null,null,null,null,null,{"$f":"IF(SUM(PAPI20_22_23[[#This Row],[Recurso financeiro estimado no ano\n(R$) - Cobrança Estadual]:[Recurso financeiro estimado no ano (R$) - Outras]]) >0,SUM(PAPI20_22_23[[#This Row],[Recurso financeiro estimado no ano\n(R$) - Cobrança Estadual]:[Recurso financeiro estimado no ano (R$) - Outras]]),\"\")","v":""}]
[null,null,null,null,null,null,null,null,null,null,null,null,null,null,null,null,null,null,null,null,{"$f":"IF(SUM(PAPI20_22_23[[#This Row],[Recurso financeiro estimado no ano\n(R$) - Cobrança Estadual]:[Recurso financeiro estimado no ano (R$) - Outras]]) >0,SUM(PAPI20_22_23[[#This Row],[Recurso financeiro estimado no ano\n(R$) - Cobrança Estadual]:[Recurso financeiro estimado no ano (R$) - Outras]]),\"\")","v":""}]
[null,null,null,null,null,null,null,null,null,null,null,null,null,null,null,null,null,null,null,null,{"$f":"IF(SUM(PAPI20_22_23[[#This Row],[Recurso financeiro estimado no ano\n(R$) - Cobrança Estadual]:[Recurso financeiro estimado no ano (R$) - Outras]]) >0,SUM(PAPI20_22_23[[#This Row],[Recurso financeiro estimado no ano\n(R$) - Cobrança Estadual]:[Recurso financeiro estimado no ano (R$) - Outras]]),\"\")","v":""}]
[null,null,null,null,null,null,null,null,null,null,null,null,null,null,null,null,null,null,null,null,{"$f":"IF(SUM(PAPI20_22_23[[#This Row],[Recurso financeiro estimado no ano\n(R$) - Cobrança Estadual]:[Recurso financeiro estimado no ano (R$) - Outras]]) >0,SUM(PAPI20_22_23[[#This Row],[Recurso financeiro estimado no ano\n(R$) - Cobrança Estadual]:[Recurso financeiro estimado no ano (R$) - Outras]]),\"\")","v":""}]

{"sheet":"Identificação das ações 24-27","index":1,"n_rows":43,"n_cols":13,"rows_kept":43,"cut":false,"hidden":false,"merged":[]}
["ID Ação","Descrição da ação","SubPDC","Prioridade do PDC","É (ou será)  empreendimento FEHIDRO?","Requer recursos financeiros?","Quantidade de fontes de recursos ","Segmento do executor","Área de abrangência","Detalhamento da área de abrangência","Início estimado da ação","Fim estimado","Observações"]
["BPG0124","T.1.2.2 . Diagnóstico qualitativo e/ou quantitativo de recursos hídricos superficiais e/ou subterrâneos          1ª                        ","1.2. Planejamento e gestão de recursos hídricos",null,"Sim","Sim",2,"Sociedade Civil","Bacia","Prioritariamente nas sub bacias das áreas consideradas com criticidade no Estudos dos sistemas dos aquíferps Guarani, Bauru e Serra Geral  ","2024-07-01","2027-12-15","Pode ser executado por municipios"]
["BPG0224","T.1.2.3 .Diagnóstico/Levantamento/Modelagem matemática hidrometeorológica para adaptação e mitigação dos efeitos das mudanças climáticas re lacionado aos recursos hídricos.","1.2. Planejamento e gestão de recursos hídricos",null,"Sim","Sim",2,"Sociedade Civil","Bacia","Prioritariamente nas sub bacias das áreas consideradas com criticidade no Estudos dos sistemas dos aquíferps Guarani, Bauru e Serra Geral  ","2024-07-01","2027-12-15","Pode ser executado por municipios"]
["BPG0324","T.1.2.8 . Estudo relacionado à interferência de sistemas agroflorestais, transição agroecológica, recu-","1.2. Planejamento e gestão de recursos hídricos",null,"Sim","Sim",2,"Sociedade Civil","Bacia","Prioritariamente nas sub bacias das áreas consideradas com criticidade no Estudos dos sistemas dos aquíferps Guarani, Bauru e Serra Geral  ","2024-07-01","2027-12-15","Pode ser executado por municipios"]
["BPG0424"," T.1.2.11. Estudo, levantamento, diagnóstico para subsidiar projetos de PSA 3ª","1.2. Planejamento e gestão de recursos hídricos",null,"Sim","Sim",2,"Sociedade Civil","Bacia","Prioritariamente nas sub bacias das áreas consideradas com criticidade no Estudos dos sistemas dos aquíferps Guarani, Bauru e Serra Geral  ","2024-07-01","2027-12-15","Pode ser executado por municipios"]
["BPG0524","T.1.2.14. Mapeamento de áreas suscetíveis a pro cessos erosivos e deslizamentos. 2ª","1.2. Planejamento e gestão de recursos hídricos",null,"Sim","Sim",2,"Sociedade Civil","Bacia","Prioritariamente nas sub bacias das áreas consideradas com criticidade no Estudos dos sistemas dos aquíferps Guarani, Bauru e Serra Geral  ","2024-07-01","2027-12-15","Pode ser executado por municipios"]
["BPG0624","T.1.2.15. Modelagem matemática qualitativa e/ou quantitativa de recursos hídricos superficiais e/ou subterrâneos.","1.2. Planejamento e gestão de recursos hídricos",null,"Sim","Sim",2,"Sociedade Civil","Bacia","Prioritariamente nas sub bacias das áreas consideradas com criticidade no Estudos dos sistemas dos aquíferps Guarani, Bauru e Serra Geral  ","2024-07-01","2027-12-15","Pode ser executado por municipios"]
["BPG0724","T.1.2.16. Planejamento territorial com foco na conservação, proteção, recuperaç ão ou uso dos recursos hídricos","1.2. Planejamento e gestão de recursos hídricos",null,"Sim","Sim",2,"Sociedade Civil","Bacia","Prioritariamente nas sub bacias das áreas consideradas com criticidade no Estudos dos sistemas dos aquíferps Guarani, Bauru e Serra Geral  ","2024-07-01","2027-12-15","Pode ser executado por municipios"]
["BPG0824","T.1.2.21. Plano diretor de controle de perdas. 4ª+D17","1.2. Planejamento e gestão de recursos hídricos",null,"Sim","Sim",2,"Sociedade Civil","Bacia","Prioritariamente nas sub bacias das áreas consideradas com criticidade no Estudos dos sistemas dos aquíferps Guarani, Bauru e Serra Geral  ","2024-07-01","2027-12-15","Pode ser executado por municipios"]
["BPG0924","T.1.2.23. Plano de comunicação Social de Comitê de Bacia Hid rográfica demanda induzida","1.2. Planejamento e gestão de recursos hídricos",null,"Sim","Sim",2,"Sociedade Civil","Bacia","Prioritariamente nas sub bacias das áreas consideradas com criticidade no Estudos dos sistemas dos aquíferps Guarani, Bauru e Serra Geral  ","2024-07-01","2027-12-15","Pode ser executado por municipios"]
["BPG1024","T.2.5.2. Desenvolvimento, implantação, manutenção ou atualização de sistema de informação e/ou de suporte à decisão (SSD) com centro de contole  operacional","2.5 Rede de Monitoramento e Sistemas de Informação sobre Recursos Hídricos",null,"Sim","Sim",3,"Estado","Bacia","Prioritariamente nos aquiferos Guarani, Bauru e Serra  Geral e águas superficiais da bacias do BPG","2024-07-01","2027-12-15","Pode ser executado por municipios e sociedade civil"]
["BPG1124","T.2.5.3. Implantação, manutenção, modernização e ampliação de rede de monitoramento quali\u0002quantitativo","2.5 Rede de Monitoramento e Sistemas de Informação sobre Recursos Hídricos",null,"Sim","Sim",3,"Estado","Bacia","Prioritariamente nos aquiferos Guarani, Bauru e Serra  Geral e águas superficiais da bacias do BPG","2024-07-01","2027-12-15","Pode ser executado por municipios e sociedade civil"]
["BPG1224","T.3.1.1. Projeto (básico e/ou executivo) de obras lineares (rede coletora de esgotos, emissário por gravidade, interceptores ou coletor tronco)","3.1 - Sist. esgotamento",null,"Sim","Sim",3,"Município","Bacia","Municipio que não possuem toda a rede coletora e de afastamento de esgoto ou precisam altera-las","2024-07-01","2027-12-15","Pode ser executado por municipios e sociedade civil"]
["BPG1324","T.3.1.2. Execução de obras lineares (rede coletora, emissário por gravidade, interceptores ou coletor tronco) inclusive substituição.","3.1 - Sist. esgotamento",null,"Sim","Sim",3,"Município","Bacia","Municipio que não possuem toda a rede coletora e de afastamento de esgoto ou precisam altera-las","2024-07-01","2027-12-15","Pode ser executado por municipios e sociedade civil"]
["BPG1424","T.3.1.3. Projeto (básico e/ou executivos) de reformas, melhorias ou obras localizadas (EEE Estação Elevatória de Esgoto e/ou ETE Estação de tratamento de Esgoto)","3.1 - Sist. esgotamento",null,"Sim","Sim",2,"Município","Bacia","Municipio que não possuem toda a vazão de esgoto tratada ou necessita de EEE para afastamento e tratmento do esgoto.","2024-07-01","2027-12-15","Pode ser executado por municipios e sociedade civil"]
["BPG1524","T.3.1.4. Execução de reformas, melhorias ou obras de EEE e/ou ETE","3.1 - Sist. esgotamento",null,"Sim","Sim",2,"Município","Bacia","Municipio que não possuem toda a vazão de esgoto tratada ou necessita de EEE para afastamento e tratmento do esgoto.","2024-07-01","2027-12-15","Pode ser executado por municipios e sociedade civil"]
["BPG1624","T.3.1.6. Projeto de sistema de tratamento de lodo de ETE ou ETA","3.1 - Sist. esgotamento",null,"Sim","Sim",2,"Município","Bacia","Municipio que não possuem toda a vazão de esgoto tratada ou necessita de EEE para afastamento e tratmento do esgotp ou tratamento do lodo de ETA","2024-07-01","2027-12-15","Pode ser executado por municipios e sociedade civil"]
["BPG1724","T.3.1.7. Execução de sistema de tratamento de lodo de ETE ou ETA","3.1 - Sist. esgotamento",null,"Sim","Sim",2,"Município","Bacia","Municipio que não possuem toda a vazão de esgoto tratada ou necessita de EEE para afastamento e tratmento do esgotp ou tratamento do lodo de ETA","2024-07-01","2027-12-15","Pode ser executado por municipios e sociedade civil"]
["BPG1824","T.3.2.1 . Projetos (básicos e/ou executivos) de recuperação de áreas contaminadas","3.2. Áreas contaminadas e poluição difusa",null,"Sim","Sim",3,"Município","Bacia","Municipio que possuem área contaminada por chorume ou necrochorume ou de postos de combustiveis abandonados","2024-07-01","2027-12-15","Pode ser executado por municipios. sociedade civil e iniciativa privada"]
["BPG1924","T.3.2.2. Execução de serviços, obras ou ações de recuperação de áreas contaminadas","3.2. Áreas contaminadas e poluição difusa",null,"Sim","Sim",3,"Município","Bacia","Municipio que  possuem área contaminada por chorume ou necrochorume ou de postos de combustiveis abandonados","2024-07-01","2027-12-15","Pode ser executado por municipios. sociedade civil e iniciativa privada"]
["BPG2024","T.4.1.1 . Projetos (básicos e/ou executivos) para prevenção e controle de processos erosivos, tais como ravinas, voçorocas e deslizamentos","4.1. Controle de processos erosivos",null,"Sim","Sim",4,"Município","Bacia","Municipio que possuem processos erosivos  na área urbana ou rural","2024-07-01","2027-12-15","Pode ser executado por municipios. sociedade civil e iniciativa privada"]
["BPG2124","T.4.1.2. Obras/serviços para prevenção e controle de processos erosivos, tais como ravinas, voçorocas e deslizamento, , envolvendo muros de proteção, escadas de dissipação, componentes do sistema de drenagem, curvas de nível, terraceamento, sumidouro, reade quação de estradas rurais, dentre outros-","4.1. Controle de processos erosivos",null,"Sim","Sim",4,"Município","Bacia","Municipio que possuem processos erosivos  na área urbana ou rural","2024-07-01","2027-12-15","Pode ser executado por municipios. sociedade civil e iniciativa privada"]
["BPG2224","T.4.1.3. Projetos (básicos e/ou executivos) para proteção e/ou contenção de margens de curso dagua","4.1. Controle de processos erosivos",null,"Sim","Sim",4,"Município","Bacia","Municipio que possuem processos erosivos  nas margens dos cursos dágua na área urbana ou rural","2024-07-01","2027-12-15","Pode ser executado por municipios. sociedade civil e iniciativa privada"]
["BPG2324","T.4.1.4. Obras/serviços de proteção e/ou contenção de margens de curso d´água","4.1. Controle de processos erosivos",null,"Sim","Sim",4,"Município","Bacia","Municipio que possuem processos erosivos  nas margens dos cursos dágua na área urbana ou rural","2024-07-01","2027-12-15","Pode ser executado por municipios. sociedade civil e iniciativa privada"]
["BPG2424"," T.4.1.5. Projetos (básicos e/ou executivos) de desassoreamento de curso d'água+D33","4.1. Controle de processos erosivos",null,"Sim","Sim",4,"Município","Bacia","Municipio que possuem  cursos dágua na área urbana ou rural assoreados.","2024-07-01","2027-12-15","Pode ser executado por municipios. sociedade civil e iniciativa privada"]
["BPG2524","T.4.1.6. Obras/serviços de desassoreamento em curso d´água","4.1. Controle de processos erosivos",null,"Sim","Sim",4,"Município","Bacia","Municipio que possuem  cursos dágua na área urbana ou rural assoreados.","2024-07-01","2027-12-15","Pode ser executado por municipios. sociedade civil e iniciativa privada"]
["BPG2624","T.4.2.4. Execução de restauração ecológica","4.2. Soluções baseadas na natureza",null,"Sim","Sim",4,"Município","Bacia","Municipio que possuem  cursos dágua na área urbana ou rural assoreados.","2024-07-01","2027-12-15","Pode ser executado por municipios. sociedade civil e iniciativa privada"]
["BPG2724","T.5.1.1. Elaboração de Projeto de setorização da rede de abastecimento de água","5.1 - Controle de perdas",null,"Sim","Sim",2,"Município","Bacia","Municípios da UGRHI priorizados conforme alto índices de perdas de água no sistema  abastecimento público, com mais de 25%","2024-07-01","2027-12-15","Pode ser executado por municipios. sociedade civil"]
["BPG2824","T.5.1.2. Execução d a setorização de rede de abaste cimento de água","5.1 - Controle de perdas",null,"Sim","Sim",2,"Município","Bacia","Municípios da UGRHI priorizados conforme alto índices de perdas de água no sistema  abastecimento público, com mais de 25%","2024-07-01","2027-12-15","Pode ser executado por municipios. sociedade civil"]
["BPG2924","T.5.1.3. Fornecimento e instalação de hidrômetros","5.1 - Controle de perdas",null,"Sim","Sim",2,"Município","Bacia","Municípios da UGRHI priorizados conforme alto índices de perdas de água no sistema  abastecimento público, com mais de 25%","2024-07-01","2027-12-15","Pode ser executado por municipios. sociedade civil"]
["BPG3024","T.5.1.4. Fornecimento e instalação de macromedidores","5.1 - Controle de perdas",null,"Sim","Sim",2,"Município","Bacia","Municípios da UGRHI priorizados conforme alto índices de perdas de água no sistema  abastecimento público, com mais de 25%","2024-07-01","2027-12-15","Pode ser executado por municipios. sociedade civil"]
["BPG3124","T.6.1.2. Obras/serviços para captação e/ou adução de recursos hídricos subterrâneos do poço até o reservatório","6.1. Captação de recursos hídricos",null,"Sim","Sim",2,"Município","Bacia","Municípios da UGRHI priorizados conforme alto índices de perdas de água no sistema  abastecimento público, com mais de 25%","2024-07-01","2027-12-15","Pode ser executado por municipios. sociedade civil"]
["BPG3224","T.6.1.3. Projetos (básicos e/ou executivos) para captação e/ou adução de recursos hídricos superficiais -do corpo d'água até o sistema de tratamento ou local do uso pretendido","6.1. Captação de recursos hídricos",null,"Sim","Sim",2,"Município","Bacia","Municipios cujo o valor da vazão subterrânea outorgada  m³/s está maior que em 2018 ou priorizam o abastecimento com água superficial.","2024-07-01","2027-12-15","Pode ser executado por municipios. sociedade civil"]
["BPG3324","T.6.1.4. Obras/serviços para captação e/ou adução de recursos hídricos superficiais do corpo d'água","6.1. Captação de recursos hídricos",null,"Sim","Sim",2,"Município","Bacia","Municipios cujo o valor da vazão subterrânea outorgada  m³/s está maior que em 2018 ou priorizam o abastecimento com água superficial.","2024-07-01","2027-12-15","Pode ser executado por municipios. sociedade civil"]
["BPG3424","T.6.2.2. Obras/serviços para construção, ampliação ou recuperação de barramento, cisterna, açude","6.2 - Segurança hídrica",null,"Sim","Sim",3,"Município","Bacia","Municipios cujo o valor da vazão subterrânea outorgada  m³/s está maior que em 2018 ou priorizam o abastecimento com água superficial.","2024-07-01","2027-12-15","Pode ser executado por municipios. sociedade civil"]
["BPG3524","T.7.1.2. Obras/serviços de microdrenagem (sarjetas, guias, bocas de lobo, poços de visita, galerias, pavimentação com material drenante entre outros).","7.1. Ações estruturais de micro ou macro drenagem para mitigação de inundações e alagamentos",null,"Sim","Sim",2,"Município","Bacia","Municipios que possuem áreas de alagamento ou inundação mapeadas, ou em Plano de Macrodrenagem.","2024-07-01","2027-12-15","Pode ser executado por municipios. sociedade civil"]
["BPG3624","T.7.1.3. Projetos (básicos e/ou executivos) de macrodrenagem (canalizações, retificações, travessias entre outros, inclusive Planos de Drenagem","7.1. Ações estruturais de micro ou macro drenagem para mitigação de inundações e alagamentos",null,"Sim","Sim",2,"Município","Bacia","Municipios que possuem áreas de alagamento ou inundação mapeadas, ou em Plano de Macrodrenagem.","2024-07-01","2027-12-15","Pode ser executado por municipios. sociedade civil"]
["BPG3724","T.7.1.4. Obras/serviços de macrodrenagem (canalizações, retificações, travessias entre outros)","7.1. Ações estruturais de micro ou macro drenagem para mitigação de inundações e alagamentos",null,"Sim","Sim",2,"Município","Bacia","Municipios que possuem áreas de alagamento ou inundação mapeadas, ou em Plano de Macrodrenagem.","2024-07-01","2027-12-15","Pode ser executado por municipios. sociedade civil"]
["BPG3824","T.8.1.1. Organização de congressos, simpósios, workshops e eventos afins voltados a gestão dos recursos hídricos","8.1. Capacitação técnica em planejamento e gestão de recursos hídricos",null,"Sim","Sim",3,"Sociedade Civil","Bacia","Todaa a UGRHI 12","2024-07-01","2027-12-15","Pode ser executado por municipios. sociedade civil"]
["BPG3924","T.8.1.2. Organização de capacitação (cursos formais) em gestão de recursos hídricos voltada a técnicos, profissionais e/ou educadores","8.1. Capacitação técnica em planejamento e gestão de recursos hídricos",null,"Sim","Sim",3,"Sociedade Civil","Bacia","Todaa a UGRHI 12","2024-07-01","2027-12-15","Pode ser executado por municipios. sociedade civil"]
["BPG4024","T.8.2.1. Processos formativos de educação voltados à gestão dos recursos hídricos para a sociedade","8.2. Educação ambiental vinculada às ações dos planos de bacias",null,"Sim","Sim",3,"Sociedade Civil","Bacia","Todaa a UGRHI 12","2024-07-01","2027-12-15","Pode ser executado por municipios. sociedade civil"]
["BPG4124","T.8.3.1 . Campanha educativa voltada para a conservação e gestão dos recursos hídricos","8.3. Comunicação social e difusão de informações relacionadas à gestão",null,"Sim","Sim",3,"Sociedade Civil","Bacia","Todaa a UGRHI 12","2024-07-01","2027-12-15","Pode ser executado por municipios. sociedade civil"]
["BPG4224","T.8.3.2. Serviços afetos à elaboração e divulgação de instrumentos de comunicação social","8.3. Comunicação social e difusão de informações relacionadas à gestão",null,"Sim","Sim",3,"Sociedade Civil","Bacia","Todaa a UGRHI 12","2024-07-01","2027-12-15","Pode ser executado por municipios. sociedade civil"]

{"sheet":"PAPI-2024-2027","index":2,"n_rows":43,"n_cols":13,"rows_kept":43,"cut":false,"hidden":false,"merged":[]}
["ID Ação","Descrição da ação","Meta","Fonte",2024,2025,2026,2027,"SubPDC","Prioridade do PDC","Segmento do executor","Área de abrangência","Nome da área de abrangência"]
[{"$f":"IF(INDEX(Financeiro[],,1)=0,\"\",(INDEX(Financeiro[],,1)))","v":"BPG0124"},"T.1.2.2 . Diagnóstico qualitativo e/ou quantitativo de recursos hídricos superficiais e/ou subterrâneos          1ª                        ","Ampliar o sistema de informações hidrometeorologicas, quantidade e qualidade das águas subterrãneas e superficiais, situação de nascentes e APPs da Bacia do Baixo Pardo Grande","Cobrança Estadual",0,160000,160000,160000,"1.2. Planejamento e gestão de recursos hídricos","<25%","A definir",{"$f":"'Identificação das ações 24-27'!I2","v":"Bacia"},{"$f":"'Identificação das ações 24-27'!J2","v":"Prioritariamente nas sub bacias das áreas consideradas com criticidade no Estudos dos sistemas dos aquíferps Guarani, Bauru e Serra Geral  "}]
["BPG0124","T.1.2.3 .Diagnóstico/Levantamento/Modelagem matemática hidrometeorológica para adaptação e mitigação dos efeitos das mudanças climáticas re lacionado aos recursos hídricos.","Ampliar o sistema de informações hidrometeorologicas, quantidade e qualidade das águas subterrãneas e superficiais, situação de nascentes e APPs da Bacia do Baixo Pardo Grande","Cobrança Estadual",0,0,0,160000,"1.2. Planejamento e gestão de recursos hídricos","<25%","A definir",{"$f":"'Identificação das ações 24-27'!I3","v":"Bacia"},{"$f":"'Identificação das ações 24-27'!J3","v":"Prioritariamente nas sub bacias das áreas consideradas com criticidade no Estudos dos sistemas dos aquíferps Guarani, Bauru e Serra Geral  "}]
["BPG0224","T.1.2.8 . Estudo relacionado à interferência de sistemas agroflorestais, transição agroecológica, recu-","Ampliar o sistema de informações hidrometeorologicas, quantidade e qualidade das águas subterrãneas e superficiais, situação de nascentes e APPs da Bacia do Baixo Pardo Grande","Cobrança Estadual",0,160000,0,160000,"1.2. Planejamento e gestão de recursos hídricos","<25%","A definir",{"$f":"'Identificação das ações 24-27'!I4","v":"Bacia"},{"$f":"'Identificação das ações 24-27'!J4","v":"Prioritariamente nas sub bacias das áreas consideradas com criticidade no Estudos dos sistemas dos aquíferps Guarani, Bauru e Serra Geral  "}]
["BPG0224"," T.1.2.11. Estudo, levantamento, diagnóstico para subsidiar projetos de PSA 3ª","Ampliar o sistema de informações hidrometeorologicas, quantidade e qualidade das águas subterrãneas e superficiais, situação de nascentes e APPs da Bacia do Baixo Pardo Grande","Cobrança Estadual",0,0,0,160000,"1.2. Planejamento e gestão de recursos hídricos","<25%","A definir",{"$f":"'Identificação das ações 24-27'!I5","v":"Bacia"},{"$f":"'Identificação das ações 24-27'!J5","v":"Prioritariamente nas sub bacias das áreas consideradas com criticidade no Estudos dos sistemas dos aquíferps Guarani, Bauru e Serra Geral  "}]
["BPG0324","T.1.2.14. Mapeamento de áreas suscetíveis a pro cessos erosivos e deslizamentos. 2ª","Ampliar o sistema de informações hidrometeorologicas, quantidade e qualidade das águas subterrãneas e superficiais, situação de nascentes e APPs da Bacia do Baixo Pardo Grande","Cobrança Estadual",160000,0,{"$f":"160000+22747","v":182747},0,"1.2. Planejamento e gestão de recursos hídricos","<25%","A definir",{"$f":"'Identificação das ações 24-27'!I6","v":"Bacia"},{"$f":"'Identificação das ações 24-27'!J6","v":"Prioritariamente nas sub bacias das áreas consideradas com criticidade no Estudos dos sistemas dos aquíferps Guarani, Bauru e Serra Geral  "}]
["BPG0324","T.1.2.15. Modelagem matemática qualitativa e/ou quantitativa de recursos hídricos superficiais e/ou subterrâneos.","Ampliar o sistema de informações hidrometeorologicas, quantidade e qualidade das águas subterrãneas e superficiais, situação de nascentes e APPs da Bacia do Baixo Pardo Grande","Cobrança Estadual",0,0,160000,0,"1.2. Planejamento e gestão de recursos hídricos","<25%","A definir",{"$f":"'Identificação das ações 24-27'!I7","v":"Bacia"},{"$f":"'Identificação das ações 24-27'!J7","v":"Prioritariamente nas sub bacias das áreas consideradas com criticidade no Estudos dos sistemas dos aquíferps Guarani, Bauru e Serra Geral  "}]
["BPG0424","T.1.2.16. Planejamento territorial com foco na conservação, proteção, recuperaç ão ou uso dos recursos hídricos","Ampliar o sistema de informações hidrometeorologicas, quantidade e qualidade das águas subterrãneas e superficiais, situação de nascentes e APPs da Bacia do Baixo Pardo Grande","Cobrança Estadual",160000,160000,0,160000,"1.2. Planejamento e gestão de recursos hídricos","<25%","A definir",{"$f":"'Identificação das ações 24-27'!I8","v":"Bacia"},{"$f":"'Identificação das ações 24-27'!J8","v":"Prioritariamente nas sub bacias das áreas consideradas com criticidade no Estudos dos sistemas dos aquíferps Guarani, Bauru e Serra Geral  "}]
["BPG0424","T.1.2.21. Plano diretor de controle de perdas. 4ª+D17","Ampliar o sistema de informações hidrometeorologicas, quantidade e qualidade das águas subterrãneas e superficiais, situação de nascentes e APPs da Bacia do Baixo Pardo Grande","Cobrança Estadual",0,0,160000,0,"1.2. Planejamento e gestão de recursos hídricos","<25%","Autarquias e Concessionárias de saneamento",{"$f":"'Identificação das ações 24-27'!I9","v":"Bacia"},{"$f":"'Identificação das ações 24-27'!J9","v":"Prioritariamente nas sub bacias das áreas consideradas com criticidade no Estudos dos sistemas dos aquíferps Guarani, Bauru e Serra Geral  "}]
["BPG0524","T.1.2.23. Plano de comunicação Social de Comitê de Bacia Hid rográfica demanda induzida","Ampliar o sistema de informações hidrometeorologicas, quantidade e qualidade das águas subterrãneas e superficiais, situação de nascentes e APPs da Bacia do Baixo Pardo Grande","Cobrança Estadual",0,160000,0,0,"1.2. Planejamento e gestão de recursos hídricos","<25%","A definir",{"$f":"'Identificação das ações 24-27'!I10","v":"Bacia"},{"$f":"'Identificação das ações 24-27'!J10","v":"Prioritariamente nas sub bacias das áreas consideradas com criticidade no Estudos dos sistemas dos aquíferps Guarani, Bauru e Serra Geral  "}]
["BPG0524","T.2.5.2. Desenvolvimento, implantação, manutenção ou atualização de sistema de informação e/ou de suporte à decisão (SSD)","Criar o Centro Controle Operacional  para reunião e ´facilitar a análise de dados da UGRHI 12","Cobrança Estadual",360000,0,160000,0,"2.5 Rede de Monitoramento e Sistemas de Informação sobre Recursos Hídricos","<25%","A definir",{"$f":"'Identificação das ações 24-27'!I11","v":"Bacia"},{"$f":"'Identificação das ações 24-27'!J11","v":"Prioritariamente nos aquiferos Guarani, Bauru e Serra  Geral e águas superficiais da bacias do BPG"}]
["BPG0624","T.2.5.3. Implantação, manutenção, modernização e ampliação de rede de monitoramento quali\u0002quantitativo","aumentar a rede de monitormento de vazão dos corpos dágua","Cobrança Estadual",0,160000,0,160000,"2.5 Rede de Monitoramento e Sistemas de Informação sobre Recursos Hídricos","<25%","A definir",{"$f":"'Identificação das ações 24-27'!I12","v":"Bacia"},{"$f":"'Identificação das ações 24-27'!J12","v":"Prioritariamente nos aquiferos Guarani, Bauru e Serra  Geral e águas superficiais da bacias do BPG"}]
[{"$f":"'Identificação das ações 24-27'!A13","v":"BPG1224"},{"$f":"'Identificação das ações 24-27'!B13","v":"T.3.1.1. Projeto (básico e/ou executivo) de obras lineares (rede coletora de esgotos, emissário por gravidade, interceptores ou coletor tronco)"},"Aprimorar o sistema de esgotamento sanitário em todos os municipios da bacia, aumentando a eficiência dos sistemas e cumprimento da legislação ambiental","Cobrança Estadual",0,160000,0,0,"3.1 - Sist. esgotamento","Prioritário > 60%","A definir",{"$f":"'Identificação das ações 24-27'!I13","v":"Bacia"},{"$f":"'Identificação das ações 24-27'!J13","v":"Municipio que não possuem toda a rede coletora e de afastamento de esgoto ou precisam altera-las"}]
[{"$f":"'Identificação das ações 24-27'!A14","v":"BPG1324"},{"$f":"'Identificação das ações 24-27'!B14","v":"T.3.1.2. Execução de obras lineares (rede coletora, emissário por gravidade, interceptores ou coletor tronco) inclusive substituição."},"Aprimorar o sistema de esgotamento sanitário em todos os municipios da bacia, aumentando a eficiência dos sistemas e cumprimento da legislação ambiental","Cobrança Estadual",1000000,{"$f":"500000+44300-160000-160000+50000+50000+137827.37-309.5","v":461817.87},{"$f":"500000-237232+100010","v":362778},{"$f":"250000+355290.75+6102.2","v":611392.94999999995},"3.1 - Sist. esgotamento","Prioritário > 60%","A definir",{"$f":"'Identificação das ações 24-27'!I14","v":"Bacia"},{"$f":"'Identificação das ações 24-27'!J14","v":"Municipio que não possuem toda a rede coletora e de afastamento de esgoto ou precisam altera-las"}]
[{"$f":"'Identificação das ações 24-27'!A15","v":"BPG1424"},{"$f":"'Identificação das ações 24-27'!B15","v":"T.3.1.3. Projeto (básico e/ou executivos) de reformas, melhorias ou obras localizadas (EEE Estação Elevatória de Esgoto e/ou ETE Estação de tratamento de Esgoto)"},"Aprimorar o sistema de esgotamento sanitário em todos os municipios da bacia, aumentando a eficiência dos sistemas e cumprimento da legislação ambiental","Cobrança Estadual",0,0,0,160000,"3.1 - Sist. esgotamento","Prioritário > 60%","A definir",{"$f":"'Identificação das ações 24-27'!I15","v":"Bacia"},{"$f":"'Identificação das ações 24-27'!J15","v":"Municipio que não possuem toda a vazão de esgoto tratada ou necessita de EEE para afastamento e tratmento do esgoto."}]
[{"$f":"'Identificação das ações 24-27'!A16","v":"BPG1524"},{"$f":"'Identificação das ações 24-27'!B16","v":"T.3.1.4. Execução de reformas, melhorias ou obras de EEE e/ou ETE"},"Aprimorar o sistema de esgotamento sanitário em todos os municipios da bacia, aumentando a eficiência dos sistemas e cumprimento da legislação ambiental","Cobrança Estadual",600000,600000,600000,{"$f":"600000+100246.09","v":700246.09},"3.1 - Sist. esgotamento","Prioritário > 60%","A definir",{"$f":"'Identificação das ações 24-27'!I16","v":"Bacia"},{"$f":"'Identificação das ações 24-27'!J16","v":"Municipio que não possuem toda a vazão de esgoto tratada ou necessita de EEE para afastamento e tratmento do esgoto."}]
[{"$f":"'Identificação das ações 24-27'!A17","v":"BPG1624"},{"$f":"'Identificação das ações 24-27'!B17","v":"T.3.1.6. Projeto de sistema de tratamento de lodo de ETE ou ETA"},"Aprimorar o sistema de esgotamento sanitário em todos os municipios da bacia, aumentando a eficiência dos sistemas e cumprimento da legislação ambiental","3.1 - Sist. esgotamento",0,0,0,0,"3.1 - Sist. esgotamento","Prioritário > 60%","A definir",{"$f":"'Identificação das ações 24-27'!I17","v":"Bacia"},{"$f":"'Identificação das ações 24-27'!J17","v":"Municipio que não possuem toda a vazão de esgoto tratada ou necessita de EEE para afastamento e tratmento do esgotp ou tratamento do lodo de ETA"}]
[{"$f":"'Identificação das ações 24-27'!A18","v":"BPG1724"},{"$f":"'Identificação das ações 24-27'!B18","v":"T.3.1.7. Execução de sistema de tratamento de lodo de ETE ou ETA"},"Aprimorar o sistema de esgotamento sanitário em todos os municipios da bacia, aumentando a eficiência dos sistemas e cumprimento da legislação ambiental","Cobrança Estadual",{"$f":"600000-21667-0.63","v":578332.37},600000,600000,802000,"3.1 - Sist. esgotamento","Prioritário > 60%","A definir",{"$f":"'Identificação das ações 24-27'!I18","v":"Bacia"},{"$f":"'Identificação das ações 24-27'!J18","v":"Municipio que não possuem toda a vazão de esgoto tratada ou necessita de EEE para afastamento e tratmento do esgotp ou tratamento do lodo de ETA"}]
[{"$f":"'Identificação das ações 24-27'!A19","v":"BPG1824"},{"$f":"'Identificação das ações 24-27'!B19","v":"T.3.2.1 . Projetos (básicos e/ou executivos) de recuperação de áreas contaminadas"},"Projetos (básicos e/ou executivos), serviços, obras ou ações de recuperação de áreas contaminadas e de controle da poluição difusa","Cobrança Estadual",0,0,160000,0,"3.2. Áreas contaminadas e poluição difusa","Prioritário > 60%","A definir",{"$f":"'Identificação das ações 24-27'!I19","v":"Bacia"},{"$f":"'Identificação das ações 24-27'!J19","v":"Municipio que possuem área contaminada por chorume ou necrochorume ou de postos de combustiveis abandonados"}]
[{"$f":"'Identificação das ações 24-27'!A20","v":"BPG1924"},{"$f":"'Identificação das ações 24-27'!B20","v":"T.3.2.2. Execução de serviços, obras ou ações de recuperação de áreas contaminadas"},"Elaboração de Projetos (básicos e/ou executivos), serviços, obras ou ações de recuperação de áreas contaminadas e de controle da poluição difusa","Cobrança Estadual",0,160000,0,0,"3.2. Áreas contaminadas e poluição difusa","Prioritário > 60%","A definir",{"$f":"'Identificação das ações 24-27'!I20","v":"Bacia"},{"$f":"'Identificação das ações 24-27'!J20","v":"Municipio que  possuem área contaminada por chorume ou necrochorume ou de postos de combustiveis abandonados"}]
[{"$f":"'Identificação das ações 24-27'!A21","v":"BPG2024"},{"$f":"'Identificação das ações 24-27'!B21","v":"T.4.1.1 . Projetos (básicos e/ou executivos) para prevenção e controle de processos erosivos, tais como ravinas, voçorocas e deslizamentos"},"Elaboração de Projetos (básicos e/ou executivos), serviços ou obras de prevenção e controle da erosão do solo ou do assoreamento dos corpos d’água, visando a melhoria ou recuperação dos corpos d’água","Cobrança Estadual",160000,0,160000,0,"4.1. Controle de processos erosivos","< 15%","A definir",{"$f":"'Identificação das ações 24-27'!I21","v":"Bacia"},{"$f":"'Identificação das ações 24-27'!J21","v":"Municipio que possuem processos erosivos  na área urbana ou rural"}]
[{"$f":"'Identificação das ações 24-27'!A22","v":"BPG2124"},{"$f":"'Identificação das ações 24-27'!B22","v":"T.4.1.2. Obras/serviços para prevenção e controle de processos erosivos, tais como ravinas, voçorocas e deslizamento, , envolvendo muros de proteção, escadas de dissipação, componentes do sistema de drenagem, curvas de nível, terraceamento, sumidouro, reade quação de estradas rurais, dentre outros-"},"Elaboração de Projetos (básicos e/ou executivos), serviços ou obras de prevenção e controle da erosão do solo ou do assoreamento dos corpos d’água, visando a melhoria ou recuperação dos corpos d’água","Cobrança Estadual",0,200000,0,250000,"4.1. Controle de processos erosivos","< 15%","A definir",{"$f":"'Identificação das ações 24-27'!I22","v":"Bacia"},{"$f":"'Identificação das ações 24-27'!J22","v":"Municipio que possuem processos erosivos  na área urbana ou rural"}]
[{"$f":"'Identificação das ações 24-27'!A23","v":"BPG2224"},{"$f":"'Identificação das ações 24-27'!B23","v":"T.4.1.3. Projetos (básicos e/ou executivos) para proteção e/ou contenção de margens de curso dagua"},"Elaboração de Projetos (básicos e/ou executivos), serviços ou obras de prevenção e controle da erosão do solo ou do assoreamento dos corpos d’água, visando a melhoria ou recuperação dos corpos d’água","Cobrança Estadual",0,0,160000,0,"4.1. Controle de processos erosivos","< 15%","A definir",{"$f":"'Identificação das ações 24-27'!I23","v":"Bacia"},{"$f":"'Identificação das ações 24-27'!J23","v":"Municipio que possuem processos erosivos  nas margens dos cursos dágua na área urbana ou rural"}]
[{"$f":"'Identificação das ações 24-27'!A24","v":"BPG2324"},{"$f":"'Identificação das ações 24-27'!B24","v":"T.4.1.4. Obras/serviços de proteção e/ou contenção de margens de curso d´água"},"Elaboração de Projetos (básicos e/ou executivos), serviços ou obras de prevenção e controle da erosão do solo ou do assoreamento dos corpos d’água, visando a melhoria ou recuperação dos corpos d’água","Cobrança Estadual",160000,0,0,160000,"4.1. Controle de processos erosivos","< 15%","A definir",{"$f":"'Identificação das ações 24-27'!I24","v":"Bacia"},{"$f":"'Identificação das ações 24-27'!J24","v":"Municipio que possuem processos erosivos  nas margens dos cursos dágua na área urbana ou rural"}]
[{"$f":"'Identificação das ações 24-27'!A25","v":"BPG2424"},{"$f":"'Identificação das ações 24-27'!B25","v":" T.4.1.5. Projetos (básicos e/ou executivos) de desassoreamento de curso d'água+D33"},"Elaboração de Projetos (básicos e/ou executivos), serviços ou obras de prevenção e controle da erosão do solo ou do assoreamento dos corpos d’água, visando a melhoria ou recuperação dos corpos d’água","Cobrança Estadual",160000,0,160000,0,"4.1. Controle de processos erosivos","< 15%","A definir",{"$f":"'Identificação das ações 24-27'!I25","v":"Bacia"},{"$f":"'Identificação das ações 24-27'!J25","v":"Municipio que possuem  cursos dágua na área urbana ou rural assoreados."}]
[{"$f":"'Identificação das ações 24-27'!A26","v":"BPG2524"},{"$f":"'Identificação das ações 24-27'!B26","v":"T.4.1.6. Obras/serviços de desassoreamento em curso d´água"},"Elaboração de Projetos (básicos e/ou executivos), serviços ou obras de prevenção e controle da erosão do solo ou do assoreamento dos corpos d’água, visando a melhoria ou recuperação dos corpos d’água","Cobrança Estadual",160000,0,160000,160000,"4.1. Controle de processos erosivos","< 15%","A definir",{"$f":"'Identificação das ações 24-27'!I26","v":"Bacia"},{"$f":"'Identificação das ações 24-27'!J26","v":"Municipio que possuem  cursos dágua na área urbana ou rural assoreados."}]
[{"$f":"'Identificação das ações 24-27'!A27","v":"BPG2624"},{"$f":"'Identificação das ações 24-27'!B27","v":"T.4.2.4. Execução de restauração ecológica"},"Elaboração de Projetos (básicos e/ou executivos), serviços ou intervenções contemplando soluções baseada na natureza que subsidiem a proteção e recuperação de corpos d'água e as práticas de conservação de solo e água (incluindo transição agroecológica) ou que resultem em aumento de áreas permeáveis, redução do escoamento superficial e aumento da resiliência de sistemas estuarino-lagunares","Cobrança Estadual",160000,160000,160000,160000,"4.2. Soluções baseadas na natureza","< 15%","A definir",{"$f":"'Identificação das ações 24-27'!I27","v":"Bacia"},{"$f":"'Identificação das ações 24-27'!J27","v":"Municipio que possuem  cursos dágua na área urbana ou rural assoreados."}]
[{"$f":"'Identificação das ações 24-27'!A28","v":"BPG2724"},{"$f":"'Identificação das ações 24-27'!B28","v":"T.5.1.1. Elaboração de Projeto de setorização da rede de abastecimento de água"},"Aprimorar o sistema de controle de perdas para reduzir as perdas no mínimo em 7%","Cobrança Estadual",300000,0,0,160000,"5.1 - Controle de perdas","Prioritário > 60%","A definir",{"$f":"'Identificação das ações 24-27'!I28","v":"Bacia"},{"$f":"'Identificação das ações 24-27'!J28","v":"Municípios da UGRHI priorizados conforme alto índices de perdas de água no sistema  abastecimento público, com mais de 25%"}]
[{"$f":"'Identificação das ações 24-27'!A29","v":"BPG2824"},{"$f":"'Identificação das ações 24-27'!B29","v":"T.5.1.2. Execução d a setorização de rede de abaste cimento de água"},"Aprimorar o sistema de controle de perdas para reduzir as perdas no mínimo em 7%","Cobrança Estadual",480000,800000,1106606.05,1000000,"5.1 - Controle de perdas","Prioritário > 60%","A definir",{"$f":"'Identificação das ações 24-27'!I29","v":"Bacia"},{"$f":"'Identificação das ações 24-27'!J29","v":"Municípios da UGRHI priorizados conforme alto índices de perdas de água no sistema  abastecimento público, com mais de 25%"}]
[{"$f":"'Identificação das ações 24-27'!A30","v":"BPG2924"},{"$f":"'Identificação das ações 24-27'!B30","v":"T.5.1.3. Fornecimento e instalação de hidrômetros"},"Aprimorar o sistema de controle de perdas para reduzir as perdas no mínimo em 7%","Cobrança Estadual",300000,200000,200000,20000,"5.1 - Controle de perdas","Prioritário > 60%","A definir",{"$f":"'Identificação das ações 24-27'!I30","v":"Bacia"},{"$f":"'Identificação das ações 24-27'!J30","v":"Municípios da UGRHI priorizados conforme alto índices de perdas de água no sistema  abastecimento público, com mais de 25%"}]
[{"$f":"'Identificação das ações 24-27'!A31","v":"BPG3024"},{"$f":"'Identificação das ações 24-27'!B31","v":"T.5.1.4. Fornecimento e instalação de macromedidores"},"Aprimorar o sistema de controle de perdas para reduzir as perdas no mínimo em 7%","Cobrança Estadual",300000,600000,200000,200000,"5.1 - Controle de perdas","Prioritário > 60%","A definir",{"$f":"'Identificação das ações 24-27'!I31","v":"Bacia"},{"$f":"'Identificação das ações 24-27'!J31","v":"Municípios da UGRHI priorizados conforme alto índices de perdas de água no sistema  abastecimento público, com mais de 25%"}]
[{"$f":"'Identificação das ações 24-27'!A32","v":"BPG3124"},{"$f":"'Identificação das ações 24-27'!B32","v":"T.6.1.2. Obras/serviços para captação e/ou adução de recursos hídricos subterrâneos do poço até o reservatório"},"Inverter o uso predominante da água subterrânea para superficial aos níveis de 2019 e garantir a água subterrânea com reserva estratégica","Cobrança Estadual",0,160000,0,0,"6.1. Captação de recursos hídricos","< 15%","A definir",{"$f":"'Identificação das ações 24-27'!I32","v":"Bacia"},{"$f":"'Identificação das ações 24-27'!J32","v":"Municípios da UGRHI priorizados conforme alto índices de perdas de água no sistema  abastecimento público, com mais de 25%"}]
[{"$f":"'Identificação das ações 24-27'!A33","v":"BPG3224"},{"$f":"'Identificação das ações 24-27'!B33","v":"T.6.1.3. Projetos (básicos e/ou executivos) para captação e/ou adução de recursos hídricos superficiais -do corpo d'água até o sistema de tratamento ou local do uso pretendido"},"Inverter o uso predominante da água subterrânea para superficial aos níveis de 2019 e garantir a água subterrânea com reserva estratégica","Cobrança Estadual",160000,0,0,0,"6.1. Captação de recursos hídricos","< 15%","A definir",{"$f":"'Identificação das ações 24-27'!I33","v":"Bacia"},{"$f":"'Identificação das ações 24-27'!J33","v":"Municipios cujo o valor da vazão subterrânea outorgada  m³/s está maior que em 2018 ou priorizam o abastecimento com água superficial."}]
[{"$f":"'Identificação das ações 24-27'!A34","v":"BPG3324"},{"$f":"'Identificação das ações 24-27'!B34","v":"T.6.1.4. Obras/serviços para captação e/ou adução de recursos hídricos superficiais do corpo d'água"},"Inverter o uso predominante da água subterrânea para superficial aos níveis de 2019 e garantir a água subterrânea com reserva estratégica","Cobrança Estadual",0,0,160000,0,"6.1. Captação de recursos hídricos","< 15%","A definir",{"$f":"'Identificação das ações 24-27'!I34","v":"Bacia"},{"$f":"'Identificação das ações 24-27'!J34","v":"Municipios cujo o valor da vazão subterrânea outorgada  m³/s está maior que em 2018 ou priorizam o abastecimento com água superficial."}]
[{"$f":"'Identificação das ações 24-27'!A35","v":"BPG3424"},{"$f":"'Identificação das ações 24-27'!B35","v":"T.6.2.2. Obras/serviços para construção, ampliação ou recuperação de barramento, cisterna, açude"},"Inverter o uso predominante da água subterrânea para superficial aos níveis de 2019 e garantir a água subterrânea com reserva estratégica","Cobrança Estadual",0,0,0,0,"6.2 - Segurança hídrica","< 15%","A definir",{"$f":"'Identificação das ações 24-27'!I35","v":"Bacia"},{"$f":"'Identificação das ações 24-27'!J35","v":"Municipios cujo o valor da vazão subterrânea outorgada  m³/s está maior que em 2018 ou priorizam o abastecimento com água superficial."}]
[{"$f":"'Identificação das ações 24-27'!A36","v":"BPG3524"},{"$f":"'Identificação das ações 24-27'!B36","v":"T.7.1.2. Obras/serviços de microdrenagem (sarjetas, guias, bocas de lobo, poços de visita, galerias, pavimentação com material drenante entre outros)."},"Elaboração de Projetos (básicos e/ou executivos), serviços ou obras para contenção de inundações, alagamentos e regularizações de descargas e assim todos os municipios tenham atualizado seus Planos diretores de drenagem ou macrodrenagem e Planos de Contigência para mitigação dos efeitos de eventos climáticos extremos. ","Compensação Financeira",900000,1600000,1700000,1800000,"7.1. Ações estruturais de micro ou macro drenagem para mitigação de inundações e alagamentos","Prioritário > 60%","A definir",{"$f":"'Identificação das ações 24-27'!I36","v":"Bacia"},{"$f":"'Identificação das ações 24-27'!J36","v":"Municipios que possuem áreas de alagamento ou inundação mapeadas, ou em Plano de Macrodrenagem."}]
[{"$f":"'Identificação das ações 24-27'!A37","v":"BPG3624"},{"$f":"'Identificação das ações 24-27'!B37","v":"T.7.1.3. Projetos (básicos e/ou executivos) de macrodrenagem (canalizações, retificações, travessias entre outros, inclusive Planos de Drenagem"},"Elaboração de Projetos (básicos e/ou executivos), serviços ou obras para contenção de inundações, alagamentos e regularizações de descargas e assim todos os municipios tenham atualizado seus Planos diretores de drenagem ou macrodrenagem e Planos de Contigência para mitigação dos efeitos de eventos climáticos extremos. ","Compensação Financeira",200000,300000,300000,160000,"7.1. Ações estruturais de micro ou macro drenagem para mitigação de inundações e alagamentos","Prioritário > 60%","A definir",{"$f":"'Identificação das ações 24-27'!I37","v":"Bacia"},{"$f":"'Identificação das ações 24-27'!J37","v":"Municipios que possuem áreas de alagamento ou inundação mapeadas, ou em Plano de Macrodrenagem."}]
[{"$f":"'Identificação das ações 24-27'!A38","v":"BPG3724"},{"$f":"'Identificação das ações 24-27'!B38","v":"T.7.1.4. Obras/serviços de macrodrenagem (canalizações, retificações, travessias entre outros)"},"Elaboração de Projetos (básicos e/ou executivos), serviços ou obras para contenção de inundações, alagamentos e regularizações de descargas e assim todos os municipios tenham atualizado seus Planos diretores de drenagem ou macrodrenagem e Planos de Contigência para mitigação dos efeitos de eventos climáticos extremos. ","Compensação Financeira",{"$f":"1712218.99-E36-E37","v":612218.99},800000,900000,1000000,"7.1. Ações estruturais de micro ou macro drenagem para mitigação de inundações e alagamentos","Prioritário > 60%","A definir",{"$f":"'Identificação das ações 24-27'!I38","v":"Bacia"},{"$f":"'Identificação das ações 24-27'!J38","v":"Municipios que possuem áreas de alagamento ou inundação mapeadas, ou em Plano de Macrodrenagem."}]
[{"$f":"'Identificação das ações 24-27'!A39","v":"BPG3824"},{"$f":"'Identificação das ações 24-27'!B39","v":"T.8.1.1. Organização de congressos, simpósios, workshops e eventos afins voltados a gestão dos recursos hídricos"},"Oferecer ao menos 2 eventos  relacionados à gestão dos recursos hídricos    ","Cobrança Estadual",0,0,0,0,"8.1. Capacitação técnica em planejamento e gestão de recursos hídricos","< 15%","A definir",{"$f":"'Identificação das ações 24-27'!I39","v":"Bacia"},{"$f":"'Identificação das ações 24-27'!J39","v":"Todaa a UGRHI 12"}]
[{"$f":"'Identificação das ações 24-27'!A40","v":"BPG3924"},{"$f":"'Identificação das ações 24-27'!B40","v":"T.8.1.2. Organização de capacitação (cursos formais) em gestão de recursos hídricos voltada a técnicos, profissionais e/ou educadores"},"Oferecer ao menos 1 capacitação técnica relacionada à gestão dos recursos hídricos    ","Cobrança Estadual",160000,0,0,0,"8.1. Capacitação técnica em planejamento e gestão de recursos hídricos","< 15%","A definir",{"$f":"'Identificação das ações 24-27'!I40","v":"Bacia"},{"$f":"'Identificação das ações 24-27'!J40","v":"Todaa a UGRHI 12"}]
[{"$f":"'Identificação das ações 24-27'!A41","v":"BPG4024"},{"$f":"'Identificação das ações 24-27'!B41","v":"T.8.2.1. Processos formativos de educação voltados à gestão dos recursos hídricos para a sociedade"},"Oferecer ao menos 1 capacitação técnica relacionada à gestão dos recursos hídricos    ","Cobrança Estadual",0,0,0,160000,"8.2. Educação ambiental vinculada às ações dos planos de bacias","< 15%","A definir",{"$f":"'Identificação das ações 24-27'!I41","v":"Bacia"},{"$f":"'Identificação das ações 24-27'!J41","v":"Todaa a UGRHI 12"}]
[{"$f":"'Identificação das ações 24-27'!A42","v":"BPG4124"},{"$f":"'Identificação das ações 24-27'!B42","v":"T.8.3.1 . Campanha educativa voltada para a conservação e gestão dos recursos hídricos"},"Elaborar e Implantar ao menos 1 Plano de Comunicação Social do monitoramento dos recursos hídricos e realizar no minio 2 campanhas","Cobrança Estadual",0,0,160000,0,"8.3. Comunicação social e difusão de informações relacionadas à gestão","< 15%","A definir",{"$f":"'Identificação das ações 24-27'!I42","v":"Bacia"},{"$f":"'Identificação das ações 24-27'!J42","v":"Todaa a UGRHI 12"}]
[{"$f":"'Identificação das ações 24-27'!A43","v":"BPG4224"},{"$f":"'Identificação das ações 24-27'!B43","v":"T.8.3.2. Serviços afetos à elaboração e divulgação de instrumentos de comunicação social"},"Difundir informações apontadas pela rede de monitoramento dos recursos hídricos,por meio de mídias digitais para acesso da população prioizanado no CCO do BPG.  ","Cobrança Estadual",0,0,0,0,"8.3. Comunicação social e difusão de informações relacionadas à gestão","< 15%","A definir",{"$f":"'Identificação das ações 24-27'!I43","v":"Bacia"},{"$f":"'Identificação das ações 24-27'!J43","v":"Todaa a UGRHI 12"}]

{"sheet":"Acompanhamento das metas 24-27","index":3,"n_rows":50,"n_cols":12,"rows_kept":50,"cut":false,"hidden":false,"merged":[]}
["ID","Descrição da ação","Meta do quadriênio","Meta 2024","% de execução física da meta (2024)","Meta 2025","% de execução física da meta (2025)","Meta 2026","% de execução física da meta (2026)","Meta 2027","% de execução física da meta (2027)","Observações"]
[{"$f":"IF(INDEX(IdentAcoes[],,1)=0,\"\",(INDEX(IdentAcoes[],,1)))","v":"BPG0124"},{"$f":"IF(INDEX(IdentAcoes[],,4)=0,\"\",(INDEX(IdentAcoes[],,2)))","v":""}]
["BPG0224",""]
["BPG0324",""]
["BPG0424",""]
["BPG0524",""]
["BPG0624",""]
["BPG0724",""]
["BPG0824",""]
["BPG0924",""]
["BPG1024",""]
["BPG1124",""]
["BPG1224",""]
["BPG1324",""]
["BPG1424",""]
["BPG1524",""]
["BPG1624",""]
["BPG1724",""]
["BPG1824",""]
["BPG1924",""]
["BPG2024",""]
["BPG2124",""]
["BPG2224",""]
["BPG2324",""]
["BPG2424",""]
["BPG2524",""]
["BPG2624",""]
["BPG2724",""]
["BPG2824",""]
["BPG2924",""]
["BPG3024",""]
["BPG3124",""]
["BPG3224",""]
["BPG3324",""]
["BPG3424",""]
["BPG3524",""]
["BPG3624",""]
["BPG3724",""]
["BPG3824",""]
["BPG3924",""]
["BPG4024",""]
["BPG4124",""]
["BPG4224",""]
["",""]
["",""]
["",""]
["",""]
["",""]
["",""]
["",""]

{"sheet":"Acomp. financeiro  24-27","index":4,"n_rows":50,"n_cols":16,"rows_kept":50,"cut":false,"hidden":false,"merged":[]}
["ID Ação","Descrição da ação","Fonte","R$  Planejado (2024)","R$  Disponibilizado (2024)","R$  Executado (2024)","R$  Planejado (2025)","R$  Disponibilizado (2025)","R$  Executado (2025)","R$  Planejado (2026)","R$  Disponibilizado (2026)","R$  Executado (2026)","R$  Planejado (2027)","R$  Disponibilizado (2027)","R$  Executado (2027)","Observações sobre execução financeira da meta"]
[{"$f":"IFERROR(INDEX(IdentAcoes[ID Ação],MATCH(0,INDEX(--(COUNTIF(A$1:A1,IdentAcoes[ID Ação])=IdentAcoes[[Quantidade de fontes de recursos ]]),0),0)),\"\")","v":"BPG0124"},{"$f":"IFERROR(INDEX(IdentAcoes[Descrição da ação],MATCH(0,INDEX(--(COUNTIF(B$1:B1,IdentAcoes[Descrição da ação])=IdentAcoes[[Quantidade de fontes de recursos ]]),0),0)),\"\")","v":"T.1.2.2 . Diagnóstico qualitativo e/ou quantitativo de recursos hídricos superficiais e/ou subterrâneos          1ª                        "}]
[{"$f":"IFERROR(INDEX(IdentAcoes[ID Ação],MATCH(0,INDEX(--(COUNTIF(A$1:A2,IdentAcoes[ID Ação])=IdentAcoes[[Quantidade de fontes de recursos ]]),0),0)),\"\")","v":"BPG0124"},{"$f":"IFERROR(INDEX(IdentAcoes[Descrição da ação],MATCH(0,INDEX(--(COUNTIF(B$1:B2,IdentAcoes[Descrição da ação])=IdentAcoes[[Quantidade de fontes de recursos ]]),0),0)),\"\")","v":"T.1.2.2 . Diagnóstico qualitativo e/ou quantitativo de recursos hídricos superficiais e/ou subterrâneos          1ª                        "}]
[{"$f":"IFERROR(INDEX(IdentAcoes[ID Ação],MATCH(0,INDEX(--(COUNTIF(A$1:A3,IdentAcoes[ID Ação])=IdentAcoes[[Quantidade de fontes de recursos ]]),0),0)),\"\")","v":"BPG0224"},{"$f":"IFERROR(INDEX(IdentAcoes[Descrição da ação],MATCH(0,INDEX(--(COUNTIF(B$1:B3,IdentAcoes[Descrição da ação])=IdentAcoes[[Quantidade de fontes de recursos ]]),0),0)),\"\")","v":"T.1.2.3 .Diagnóstico/Levantamento/Modelagem matemática hidrometeorológica para adaptação e mitigação dos efeitos das mudanças climáticas re lacionado aos recursos hídricos."}]
[{"$f":"IFERROR(INDEX(IdentAcoes[ID Ação],MATCH(0,INDEX(--(COUNTIF(A$1:A4,IdentAcoes[ID Ação])=IdentAcoes[[Quantidade de fontes de recursos ]]),0),0)),\"\")","v":"BPG0224"},{"$f":"IFERROR(INDEX(IdentAcoes[Descrição da ação],MATCH(0,INDEX(--(COUNTIF(B$1:B4,IdentAcoes[Descrição da ação])=IdentAcoes[[Quantidade de fontes de recursos ]]),0),0)),\"\")","v":"T.1.2.3 .Diagnóstico/Levantamento/Modelagem matemática hidrometeorológica para adaptação e mitigação dos efeitos das mudanças climáticas re lacionado aos recursos hídricos."}]
[{"$f":"IFERROR(INDEX(IdentAcoes[ID Ação],MATCH(0,INDEX(--(COUNTIF(A$1:A5,IdentAcoes[ID Ação])=IdentAcoes[[Quantidade de fontes de recursos ]]),0),0)),\"\")","v":"BPG0324"},{"$f":"IFERROR(INDEX(IdentAcoes[Descrição da ação],MATCH(0,INDEX(--(COUNTIF(B$1:B5,IdentAcoes[Descrição da ação])=IdentAcoes[[Quantidade de fontes de recursos ]]),0),0)),\"\")","v":"T.1.2.8 . Estudo relacionado à interferência de sistemas agroflorestais, transição agroecológica, recu-"}]
[{"$f":"IFERROR(INDEX(IdentAcoes[ID Ação],MATCH(0,INDEX(--(COUNTIF(A$1:A6,IdentAcoes[ID Ação])=IdentAcoes[[Quantidade de fontes de recursos ]]),0),0)),\"\")","v":"BPG0324"},{"$f":"IFERROR(INDEX(IdentAcoes[Descrição da ação],MATCH(0,INDEX(--(COUNTIF(B$1:B6,IdentAcoes[Descrição da ação])=IdentAcoes[[Quantidade de fontes de recursos ]]),0),0)),\"\")","v":"T.1.2.8 . Estudo relacionado à interferência de sistemas agroflorestais, transição agroecológica, recu-"}]
[{"$f":"IFERROR(INDEX(IdentAcoes[ID Ação],MATCH(0,INDEX(--(COUNTIF(A$1:A7,IdentAcoes[ID Ação])=IdentAcoes[[Quantidade de fontes de recursos ]]),0),0)),\"\")","v":"BPG0424"},{"$f":"IFERROR(INDEX(IdentAcoes[Descrição da ação],MATCH(0,INDEX(--(COUNTIF(B$1:B7,IdentAcoes[Descrição da ação])=IdentAcoes[[Quantidade de fontes de recursos ]]),0),0)),\"\")","v":" T.1.2.11. Estudo, levantamento, diagnóstico para subsidiar projetos de PSA 3ª"}]
[{"$f":"IFERROR(INDEX(IdentAcoes[ID Ação],MATCH(0,INDEX(--(COUNTIF(A$1:A8,IdentAcoes[ID Ação])=IdentAcoes[[Quantidade de fontes de recursos ]]),0),0)),\"\")","v":"BPG0424"},{"$f":"IFERROR(INDEX(IdentAcoes[Descrição da ação],MATCH(0,INDEX(--(COUNTIF(B$1:B8,IdentAcoes[Descrição da ação])=IdentAcoes[[Quantidade de fontes de recursos ]]),0),0)),\"\")","v":" T.1.2.11. Estudo, levantamento, diagnóstico para subsidiar projetos de PSA 3ª"}]
[{"$f":"IFERROR(INDEX(IdentAcoes[ID Ação],MATCH(0,INDEX(--(COUNTIF(A$1:A9,IdentAcoes[ID Ação])=IdentAcoes[[Quantidade de fontes de recursos ]]),0),0)),\"\")","v":"BPG0524"},{"$f":"IFERROR(INDEX(IdentAcoes[Descrição da ação],MATCH(0,INDEX(--(COUNTIF(B$1:B9,IdentAcoes[Descrição da ação])=IdentAcoes[[Quantidade de fontes de recursos ]]),0),0)),\"\")","v":"T.1.2.14. Mapeamento de áreas suscetíveis a pro cessos erosivos e deslizamentos. 2ª"}]
[{"$f":"IFERROR(INDEX(IdentAcoes[ID Ação],MATCH(0,INDEX(--(COUNTIF(A$1:A10,IdentAcoes[ID Ação])=IdentAcoes[[Quantidade de fontes de recursos ]]),0),0)),\"\")","v":"BPG0524"},{"$f":"IFERROR(INDEX(IdentAcoes[Descrição da ação],MATCH(0,INDEX(--(COUNTIF(B$1:B10,IdentAcoes[Descrição da ação])=IdentAcoes[[Quantidade de fontes de recursos ]]),0),0)),\"\")","v":"T.1.2.14. Mapeamento de áreas suscetíveis a pro cessos erosivos e deslizamentos. 2ª"}]
[{"$f":"IFERROR(INDEX(IdentAcoes[ID Ação],MATCH(0,INDEX(--(COUNTIF(A$1:A11,IdentAcoes[ID Ação])=IdentAcoes[[Quantidade de fontes de recursos ]]),0),0)),\"\")","v":"BPG0624"},{"$f":"IFERROR(INDEX(IdentAcoes[Descrição da ação],MATCH(0,INDEX(--(COUNTIF(B$1:B11,IdentAcoes[Descrição da ação])=IdentAcoes[[Quantidade de fontes de recursos ]]),0),0)),\"\")","v":"T.1.2.15. Modelagem matemática qualitativa e/ou quantitativa de recursos hídricos superficiais e/ou subterrâneos."}]
[{"$f":"IFERROR(INDEX(IdentAcoes[ID Ação],MATCH(0,INDEX(--(COUNTIF(A$1:A12,IdentAcoes[ID Ação])=IdentAcoes[[Quantidade de fontes de recursos ]]),0),0)),\"\")","v":"BPG0624"},{"$f":"IFERROR(INDEX(IdentAcoes[Descrição da ação],MATCH(0,INDEX(--(COUNTIF(B$1:B12,IdentAcoes[Descrição da ação])=IdentAcoes[[Quantidade de fontes de recursos ]]),0),0)),\"\")","v":"T.1.2.15. Modelagem matemática qualitativa e/ou quantitativa de recursos hídricos superficiais e/ou subterrâneos."}]
[{"$f":"IFERROR(INDEX(IdentAcoes[ID Ação],MATCH(0,INDEX(--(COUNTIF(A$1:A13,IdentAcoes[ID Ação])=IdentAcoes[[Quantidade de fontes de recursos ]]),0),0)),\"\")","v":"BPG0724"},{"$f":"IFERROR(INDEX(IdentAcoes[Descrição da ação],MATCH(0,INDEX(--(COUNTIF(B$1:B13,IdentAcoes[Descrição da ação])=IdentAcoes[[Quantidade de fontes de recursos ]]),0),0)),\"\")","v":"T.1.2.16. Planejamento territorial com foco na conservação, proteção, recuperaç ão ou uso dos recursos hídricos"}]
[{"$f":"IFERROR(INDEX(IdentAcoes[ID Ação],MATCH(0,INDEX(--(COUNTIF(A$1:A14,IdentAcoes[ID Ação])=IdentAcoes[[Quantidade de fontes de recursos ]]),0),0)),\"\")","v":"BPG0724"},{"$f":"IFERROR(INDEX(IdentAcoes[Descrição da ação],MATCH(0,INDEX(--(COUNTIF(B$1:B14,IdentAcoes[Descrição da ação])=IdentAcoes[[Quantidade de fontes de recursos ]]),0),0)),\"\")","v":"T.1.2.16. Planejamento territorial com foco na conservação, proteção, recuperaç ão ou uso dos recursos hídricos"}]
[{"$f":"IFERROR(INDEX(IdentAcoes[ID Ação],MATCH(0,INDEX(--(COUNTIF(A$1:A15,IdentAcoes[ID Ação])=IdentAcoes[[Quantidade de fontes de recursos ]]),0),0)),\"\")","v":"BPG0824"},{"$f":"IFERROR(INDEX(IdentAcoes[Descrição da ação],MATCH(0,INDEX(--(COUNTIF(B$1:B15,IdentAcoes[Descrição da ação])=IdentAcoes[[Quantidade de fontes de recursos ]]),0),0)),\"\")","v":"T.1.2.21. Plano diretor de controle de perdas. 4ª+D17"}]
[{"$f":"IFERROR(INDEX(IdentAcoes[ID Ação],MATCH(0,INDEX(--(COUNTIF(A$1:A16,IdentAcoes[ID Ação])=IdentAcoes[[Quantidade de fontes de recursos ]]),0),0)),\"\")","v":"BPG0824"},{"$f":"IFERROR(INDEX(IdentAcoes[Descrição da ação],MATCH(0,INDEX(--(COUNTIF(B$1:B16,IdentAcoes[Descrição da ação])=IdentAcoes[[Quantidade de fontes de recursos ]]),0),0)),\"\")","v":"T.1.2.21. Plano diretor de controle de perdas. 4ª+D17"}]
[{"$f":"IFERROR(INDEX(IdentAcoes[ID Ação],MATCH(0,INDEX(--(COUNTIF(A$1:A17,IdentAcoes[ID Ação])=IdentAcoes[[Quantidade de fontes de recursos ]]),0),0)),\"\")","v":"BPG0924"},{"$f":"IFERROR(INDEX(IdentAcoes[Descrição da ação],MATCH(0,INDEX(--(COUNTIF(B$1:B17,IdentAcoes[Descrição da ação])=IdentAcoes[[Quantidade de fontes de recursos ]]),0),0)),\"\")","v":"T.1.2.23. Plano de comunicação Social de Comitê de Bacia Hid rográfica demanda induzida"}]
[{"$f":"IFERROR(INDEX(IdentAcoes[ID Ação],MATCH(0,INDEX(--(COUNTIF(A$1:A18,IdentAcoes[ID Ação])=IdentAcoes[[Quantidade de fontes de recursos ]]),0),0)),\"\")","v":"BPG0924"},{"$f":"IFERROR(INDEX(IdentAcoes[Descrição da ação],MATCH(0,INDEX(--(COUNTIF(B$1:B18,IdentAcoes[Descrição da ação])=IdentAcoes[[Quantidade de fontes de recursos ]]),0),0)),\"\")","v":"T.1.2.23. Plano de comunicação Social de Comitê de Bacia Hid rográfica demanda induzida"}]
[{"$f":"IFERROR(INDEX(IdentAcoes[ID Ação],MATCH(0,INDEX(--(COUNTIF(A$1:A19,IdentAcoes[ID Ação])=IdentAcoes[[Quantidade de fontes de recursos ]]),0),0)),\"\")","v":"BPG1024"},{"$f":"IFERROR(INDEX(IdentAcoes[Descrição da ação],MATCH(0,INDEX(--(COUNTIF(B$1:B19,IdentAcoes[Descrição da ação])=IdentAcoes[[Quantidade de fontes de recursos ]]),0),0)),\"\")","v":"T.2.5.2. Desenvolvimento, implantação, manutenção ou atualização de sistema de informação e/ou de suporte à decisão (SSD) com centro de contole  operacional"}]
[{"$f":"IFERROR(INDEX(IdentAcoes[ID Ação],MATCH(0,INDEX(--(COUNTIF(A$1:A20,IdentAcoes[ID Ação])=IdentAcoes[[Quantidade de fontes de recursos ]]),0),0)),\"\")","v":"BPG1024"},{"$f":"IFERROR(INDEX(IdentAcoes[Descrição da ação],MATCH(0,INDEX(--(COUNTIF(B$1:B20,IdentAcoes[Descrição da ação])=IdentAcoes[[Quantidade de fontes de recursos ]]),0),0)),\"\")","v":"T.2.5.2. Desenvolvimento, implantação, manutenção ou atualização de sistema de informação e/ou de suporte à decisão (SSD) com centro de contole  operacional"}]
[{"$f":"IFERROR(INDEX(IdentAcoes[ID Ação],MATCH(0,INDEX(--(COUNTIF(A$1:A21,IdentAcoes[ID Ação])=IdentAcoes[[Quantidade de fontes de recursos ]]),0),0)),\"\")","v":"BPG1024"},{"$f":"IFERROR(INDEX(IdentAcoes[Descrição da ação],MATCH(0,INDEX(--(COUNTIF(B$1:B21,IdentAcoes[Descrição da ação])=IdentAcoes[[Quantidade de fontes de recursos ]]),0),0)),\"\")","v":"T.2.5.2. Desenvolvimento, implantação, manutenção ou atualização de sistema de informação e/ou de suporte à decisão (SSD) com centro de contole  operacional"}]
[{"$f":"IFERROR(INDEX(IdentAcoes[ID Ação],MATCH(0,INDEX(--(COUNTIF(A$1:A22,IdentAcoes[ID Ação])=IdentAcoes[[Quantidade de fontes de recursos ]]),0),0)),\"\")","v":"BPG1124"},{"$f":"IFERROR(INDEX(IdentAcoes[Descrição da ação],MATCH(0,INDEX(--(COUNTIF(B$1:B22,IdentAcoes[Descrição da ação])=IdentAcoes[[Quantidade de fontes de recursos ]]),0),0)),\"\")","v":"T.2.5.3. Implantação, manutenção, modernização e ampliação de rede de monitoramento quali\u0002quantitativo"}]
[{"$f":"IFERROR(INDEX(IdentAcoes[ID Ação],MATCH(0,INDEX(--(COUNTIF(A$1:A23,IdentAcoes[ID Ação])=IdentAcoes[[Quantidade de fontes de recursos ]]),0),0)),\"\")","v":"BPG1124"},{"$f":"IFERROR(INDEX(IdentAcoes[Descrição da ação],MATCH(0,INDEX(--(COUNTIF(B$1:B23,IdentAcoes[Descrição da ação])=IdentAcoes[[Quantidade de fontes de recursos ]]),0),0)),\"\")","v":"T.2.5.3. Implantação, manutenção, modernização e ampliação de rede de monitoramento quali\u0002quantitativo"}]
[{"$f":"IFERROR(INDEX(IdentAcoes[ID Ação],MATCH(0,INDEX(--(COUNTIF(A$1:A24,IdentAcoes[ID Ação])=IdentAcoes[[Quantidade de fontes de recursos ]]),0),0)),\"\")","v":"BPG1124"},{"$f":"IFERROR(INDEX(IdentAcoes[Descrição da ação],MATCH(0,INDEX(--(COUNTIF(B$1:B24,IdentAcoes[Descrição da ação])=IdentAcoes[[Quantidade de fontes de recursos ]]),0),0)),\"\")","v":"T.2.5.3. Implantação, manutenção, modernização e ampliação de rede de monitoramento quali\u0002quantitativo"}]
[{"$f":"IFERROR(INDEX(IdentAcoes[ID Ação],MATCH(0,INDEX(--(COUNTIF(A$1:A25,IdentAcoes[ID Ação])=IdentAcoes[[Quantidade de fontes de recursos ]]),0),0)),\"\")","v":"BPG1224"},{"$f":"IFERROR(INDEX(IdentAcoes[Descrição da ação],MATCH(0,INDEX(--(COUNTIF(B$1:B25,IdentAcoes[Descrição da ação])=IdentAcoes[[Quantidade de fontes de recursos ]]),0),0)),\"\")","v":"T.3.1.1. Projeto (básico e/ou executivo) de obras lineares (rede coletora de esgotos, emissário por gravidade, interceptores ou coletor tronco)"}]
[{"$f":"IFERROR(INDEX(IdentAcoes[ID Ação],MATCH(0,INDEX(--(COUNTIF(A$1:A26,IdentAcoes[ID Ação])=IdentAcoes[[Quantidade de fontes de recursos ]]),0),0)),\"\")","v":"BPG1224"},{"$f":"IFERROR(INDEX(IdentAcoes[Descrição da ação],MATCH(0,INDEX(--(COUNTIF(B$1:B26,IdentAcoes[Descrição da ação])=IdentAcoes[[Quantidade de fontes de recursos ]]),0),0)),\"\")","v":"T.3.1.1. Projeto (básico e/ou executivo) de obras lineares (rede coletora de esgotos, emissário por gravidade, interceptores ou coletor tronco)"}]
[{"$f":"IFERROR(INDEX(IdentAcoes[ID Ação],MATCH(0,INDEX(--(COUNTIF(A$1:A27,IdentAcoes[ID Ação])=IdentAcoes[[Quantidade de fontes de recursos ]]),0),0)),\"\")","v":"BPG1224"},{"$f":"IFERROR(INDEX(IdentAcoes[Descrição da ação],MATCH(0,INDEX(--(COUNTIF(B$1:B27,IdentAcoes[Descrição da ação])=IdentAcoes[[Quantidade de fontes de recursos ]]),0),0)),\"\")","v":"T.3.1.1. Projeto (básico e/ou executivo) de obras lineares (rede coletora de esgotos, emissário por gravidade, interceptores ou coletor tronco)"}]
[{"$f":"IFERROR(INDEX(IdentAcoes[ID Ação],MATCH(0,INDEX(--(COUNTIF(A$1:A28,IdentAcoes[ID Ação])=IdentAcoes[[Quantidade de fontes de recursos ]]),0),0)),\"\")","v":"BPG1324"},{"$f":"IFERROR(INDEX(IdentAcoes[Descrição da ação],MATCH(0,INDEX(--(COUNTIF(B$1:B28,IdentAcoes[Descrição da ação])=IdentAcoes[[Quantidade de fontes de recursos ]]),0),0)),\"\")","v":"T.3.1.2. Execução de obras lineares (rede coletora, emissário por gravidade, interceptores ou coletor tronco) inclusive substituição."}]
[{"$f":"IFERROR(INDEX(IdentAcoes[ID Ação],MATCH(0,INDEX(--(COUNTIF(A$1:A29,IdentAcoes[ID Ação])=IdentAcoes[[Quantidade de fontes de recursos ]]),0),0)),\"\")","v":"BPG1324"},{"$f":"IFERROR(INDEX(IdentAcoes[Descrição da ação],MATCH(0,INDEX(--(COUNTIF(B$1:B29,IdentAcoes[Descrição da ação])=IdentAcoes[[Quantidade de fontes de recursos ]]),0),0)),\"\")","v":"T.3.1.2. Execução de obras lineares (rede coletora, emissário por gravidade, interceptores ou coletor tronco) inclusive substituição."}]
[{"$f":"IFERROR(INDEX(IdentAcoes[ID Ação],MATCH(0,INDEX(--(COUNTIF(A$1:A30,IdentAcoes[ID Ação])=IdentAcoes[[Quantidade de fontes de recursos ]]),0),0)),\"\")","v":"BPG1324"},{"$f":"IFERROR(INDEX(IdentAcoes[Descrição da ação],MATCH(0,INDEX(--(COUNTIF(B$1:B30,IdentAcoes[Descrição da ação])=IdentAcoes[[Quantidade de fontes de recursos ]]),0),0)),\"\")","v":"T.3.1.2. Execução de obras lineares (rede coletora, emissário por gravidade, interceptores ou coletor tronco) inclusive substituição."}]
[{"$f":"IFERROR(INDEX(IdentAcoes[ID Ação],MATCH(0,INDEX(--(COUNTIF(A$1:A31,IdentAcoes[ID Ação])=IdentAcoes[[Quantidade de fontes de recursos ]]),0),0)),\"\")","v":"BPG1424"},{"$f":"IFERROR(INDEX(IdentAcoes[Descrição da ação],MATCH(0,INDEX(--(COUNTIF(B$1:B31,IdentAcoes[Descrição da ação])=IdentAcoes[[Quantidade de fontes de recursos ]]),0),0)),\"\")","v":"T.3.1.3. Projeto (básico e/ou executivos) de reformas, melhorias ou obras localizadas (EEE Estação Elevatória de Esgoto e/ou ETE Estação de tratamento de Esgoto)"}]
[{"$f":"IFERROR(INDEX(IdentAcoes[ID Ação],MATCH(0,INDEX(--(COUNTIF(A$1:A32,IdentAcoes[ID Ação])=IdentAcoes[[Quantidade de fontes de recursos ]]),0),0)),\"\")","v":"BPG1424"},{"$f":"IFERROR(INDEX(IdentAcoes[Descrição da ação],MATCH(0,INDEX(--(COUNTIF(B$1:B32,IdentAcoes[Descrição da ação])=IdentAcoes[[Quantidade de fontes de recursos ]]),0),0)),\"\")","v":"T.3.1.3. Projeto (básico e/ou executivos) de reformas, melhorias ou obras localizadas (EEE Estação Elevatória de Esgoto e/ou ETE Estação de tratamento de Esgoto)"}]
[{"$f":"IFERROR(INDEX(IdentAcoes[ID Ação],MATCH(0,INDEX(--(COUNTIF(A$1:A33,IdentAcoes[ID Ação])=IdentAcoes[[Quantidade de fontes de recursos ]]),0),0)),\"\")","v":"BPG1524"},{"$f":"IFERROR(INDEX(IdentAcoes[Descrição da ação],MATCH(0,INDEX(--(COUNTIF(B$1:B33,IdentAcoes[Descrição da ação])=IdentAcoes[[Quantidade de fontes de recursos ]]),0),0)),\"\")","v":"T.3.1.4. Execução de reformas, melhorias ou obras de EEE e/ou ETE"}]
[{"$f":"IFERROR(INDEX(IdentAcoes[ID Ação],MATCH(0,INDEX(--(COUNTIF(A$1:A34,IdentAcoes[ID Ação])=IdentAcoes[[Quantidade de fontes de recursos ]]),0),0)),\"\")","v":"BPG1524"},{"$f":"IFERROR(INDEX(IdentAcoes[Descrição da ação],MATCH(0,INDEX(--(COUNTIF(B$1:B34,IdentAcoes[Descrição da ação])=IdentAcoes[[Quantidade de fontes de recursos ]]),0),0)),\"\")","v":"T.3.1.4. Execução de reformas, melhorias ou obras de EEE e/ou ETE"}]
[{"$f":"IFERROR(INDEX(IdentAcoes[ID Ação],MATCH(0,INDEX(--(COUNTIF(A$1:A35,IdentAcoes[ID Ação])=IdentAcoes[[Quantidade de fontes de recursos ]]),0),0)),\"\")","v":"BPG1624"},{"$f":"IFERROR(INDEX(IdentAcoes[Descrição da ação],MATCH(0,INDEX(--(COUNTIF(B$1:B35,IdentAcoes[Descrição da ação])=IdentAcoes[[Quantidade de fontes de recursos ]]),0),0)),\"\")","v":"T.3.1.6. Projeto de sistema de tratamento de lodo de ETE ou ETA"}]
[{"$f":"IFERROR(INDEX(IdentAcoes[ID Ação],MATCH(0,INDEX(--(COUNTIF(A$1:A36,IdentAcoes[ID Ação])=IdentAcoes[[Quantidade de fontes de recursos ]]),0),0)),\"\")","v":"BPG1624"},{"$f":"IFERROR(INDEX(IdentAcoes[Descrição da ação],MATCH(0,INDEX(--(COUNTIF(B$1:B36,IdentAcoes[Descrição da ação])=IdentAcoes[[Quantidade de fontes de recursos ]]),0),0)),\"\")","v":"T.3.1.6. Projeto de sistema de tratamento de lodo de ETE ou ETA"}]
[{"$f":"IFERROR(INDEX(IdentAcoes[ID Ação],MATCH(0,INDEX(--(COUNTIF(A$1:A37,IdentAcoes[ID Ação])=IdentAcoes[[Quantidade de fontes de recursos ]]),0),0)),\"\")","v":"BPG1724"},{"$f":"IFERROR(INDEX(IdentAcoes[Descrição da ação],MATCH(0,INDEX(--(COUNTIF(B$1:B37,IdentAcoes[Descrição da ação])=IdentAcoes[[Quantidade de fontes de recursos ]]),0),0)),\"\")","v":"T.3.1.7. Execução de sistema de tratamento de lodo de ETE ou ETA"}]
[{"$f":"IFERROR(INDEX(IdentAcoes[ID Ação],MATCH(0,INDEX(--(COUNTIF(A$1:A38,IdentAcoes[ID Ação])=IdentAcoes[[Quantidade de fontes de recursos ]]),0),0)),\"\")","v":"BPG1724"},{"$f":"IFERROR(INDEX(IdentAcoes[Descrição da ação],MATCH(0,INDEX(--(COUNTIF(B$1:B38,IdentAcoes[Descrição da ação])=IdentAcoes[[Quantidade de fontes de recursos ]]),0),0)),\"\")","v":"T.3.1.7. Execução de sistema de tratamento de lodo de ETE ou ETA"}]
[{"$f":"IFERROR(INDEX(IdentAcoes[ID Ação],MATCH(0,INDEX(--(COUNTIF(A$1:A39,IdentAcoes[ID Ação])=IdentAcoes[[Quantidade de fontes de recursos ]]),0),0)),\"\")","v":"BPG1824"},{"$f":"IFERROR(INDEX(IdentAcoes[Descrição da ação],MATCH(0,INDEX(--(COUNTIF(B$1:B39,IdentAcoes[Descrição da ação])=IdentAcoes[[Quantidade de fontes de recursos ]]),0),0)),\"\")","v":"T.3.2.1 . Projetos (básicos e/ou executivos) de recuperação de áreas contaminadas"}]
[{"$f":"IFERROR(INDEX(IdentAcoes[ID Ação],MATCH(0,INDEX(--(COUNTIF(A$1:A40,IdentAcoes[ID Ação])=IdentAcoes[[Quantidade de fontes de recursos ]]),0),0)),\"\")","v":"BPG1824"},{"$f":"IFERROR(INDEX(IdentAcoes[Descrição da ação],MATCH(0,INDEX(--(COUNTIF(B$1:B40,IdentAcoes[Descrição da ação])=IdentAcoes[[Quantidade de fontes de recursos ]]),0),0)),\"\")","v":"T.3.2.1 . Projetos (básicos e/ou executivos) de recuperação de áreas contaminadas"}]
[{"$f":"IFERROR(INDEX(IdentAcoes[ID Ação],MATCH(0,INDEX(--(COUNTIF(A$1:A41,IdentAcoes[ID Ação])=IdentAcoes[[Quantidade de fontes de recursos ]]),0),0)),\"\")","v":"BPG1824"},{"$f":"IFERROR(INDEX(IdentAcoes[Descrição da ação],MATCH(0,INDEX(--(COUNTIF(B$1:B41,IdentAcoes[Descrição da ação])=IdentAcoes[[Quantidade de fontes de recursos ]]),0),0)),\"\")","v":"T.3.2.1 . Projetos (básicos e/ou executivos) de recuperação de áreas contaminadas"}]
[{"$f":"IFERROR(INDEX(IdentAcoes[ID Ação],MATCH(0,INDEX(--(COUNTIF(A$1:A42,IdentAcoes[ID Ação])=IdentAcoes[[Quantidade de fontes de recursos ]]),0),0)),\"\")","v":"BPG1924"},{"$f":"IFERROR(INDEX(IdentAcoes[Descrição da ação],MATCH(0,INDEX(--(COUNTIF(B$1:B42,IdentAcoes[Descrição da ação])=IdentAcoes[[Quantidade de fontes de recursos ]]),0),0)),\"\")","v":"T.3.2.2. Execução de serviços, obras ou ações de recuperação de áreas contaminadas"}]
[{"$f":"IFERROR(INDEX(IdentAcoes[ID Ação],MATCH(0,INDEX(--(COUNTIF(A$1:A43,IdentAcoes[ID Ação])=IdentAcoes[[Quantidade de fontes de recursos ]]),0),0)),\"\")","v":"BPG1924"},{"$f":"IFERROR(INDEX(IdentAcoes[Descrição da ação],MATCH(0,INDEX(--(COUNTIF(B$1:B43,IdentAcoes[Descrição da ação])=IdentAcoes[[Quantidade de fontes de recursos ]]),0),0)),\"\")","v":"T.3.2.2. Execução de serviços, obras ou ações de recuperação de áreas contaminadas"}]
[{"$f":"IFERROR(INDEX(IdentAcoes[ID Ação],MATCH(0,INDEX(--(COUNTIF(A$1:A44,IdentAcoes[ID Ação])=IdentAcoes[[Quantidade de fontes de recursos ]]),0),0)),\"\")","v":"BPG1924"},{"$f":"IFERROR(INDEX(IdentAcoes[Descrição da ação],MATCH(0,INDEX(--(COUNTIF(B$1:B44,IdentAcoes[Descrição da ação])=IdentAcoes[[Quantidade de fontes de recursos ]]),0),0)),\"\")","v":"T.3.2.2. Execução de serviços, obras ou ações de recuperação de áreas contaminadas"}]
[{"$f":"IFERROR(INDEX(IdentAcoes[ID Ação],MATCH(0,INDEX(--(COUNTIF(A$1:A45,IdentAcoes[ID Ação])=IdentAcoes[[Quantidade de fontes de recursos ]]),0),0)),\"\")","v":"BPG2024"},{"$f":"IFERROR(INDEX(IdentAcoes[Descrição da ação],MATCH(0,INDEX(--(COUNTIF(B$1:B45,IdentAcoes[Descrição da ação])=IdentAcoes[[Quantidade de fontes de recursos ]]),0),0)),\"\")","v":"T.4.1.1 . Projetos (básicos e/ou executivos) para prevenção e controle de processos erosivos, tais como ravinas, voçorocas e deslizamentos"}]
[{"$f":"IFERROR(INDEX(IdentAcoes[ID Ação],MATCH(0,INDEX(--(COUNTIF(A$1:A46,IdentAcoes[ID Ação])=IdentAcoes[[Quantidade de fontes de recursos ]]),0),0)),\"\")","v":"BPG2024"},{"$f":"IFERROR(INDEX(IdentAcoes[Descrição da ação],MATCH(0,INDEX(--(COUNTIF(B$1:B46,IdentAcoes[Descrição da ação])=IdentAcoes[[Quantidade de fontes de recursos ]]),0),0)),\"\")","v":"T.4.1.1 . Projetos (básicos e/ou executivos) para prevenção e controle de processos erosivos, tais como ravinas, voçorocas e deslizamentos"}]
[{"$f":"IFERROR(INDEX(IdentAcoes[ID Ação],MATCH(0,INDEX(--(COUNTIF(A$1:A47,IdentAcoes[ID Ação])=IdentAcoes[[Quantidade de fontes de recursos ]]),0),0)),\"\")","v":"BPG2024"},{"$f":"IFERROR(INDEX(IdentAcoes[Descrição da ação],MATCH(0,INDEX(--(COUNTIF(B$1:B47,IdentAcoes[Descrição da ação])=IdentAcoes[[Quantidade de fontes de recursos ]]),0),0)),\"\")","v":"T.4.1.1 . Projetos (básicos e/ou executivos) para prevenção e controle de processos erosivos, tais como ravinas, voçorocas e deslizamentos"}]
[{"$f":"IFERROR(INDEX(IdentAcoes[ID Ação],MATCH(0,INDEX(--(COUNTIF(A$1:A48,IdentAcoes[ID Ação])=IdentAcoes[[Quantidade de fontes de recursos ]]),0),0)),\"\")","v":"BPG2024"},{"$f":"IFERROR(INDEX(IdentAcoes[Descrição da ação],MATCH(0,INDEX(--(COUNTIF(B$1:B48,IdentAcoes[Descrição da ação])=IdentAcoes[[Quantidade de fontes de recursos ]]),0),0)),\"\")","v":"T.4.1.1 . Projetos (básicos e/ou executivos) para prevenção e controle de processos erosivos, tais como ravinas, voçorocas e deslizamentos"}]
[{"$f":"IFERROR(INDEX(IdentAcoes[ID Ação],MATCH(0,INDEX(--(COUNTIF(A$1:A49,IdentAcoes[ID Ação])=IdentAcoes[[Quantidade de fontes de recursos ]]),0),0)),\"\")","v":"BPG2124"},{"$f":"IFERROR(INDEX(IdentAcoes[Descrição da ação],MATCH(0,INDEX(--(COUNTIF(B$1:B49,IdentAcoes[Descrição da ação])=IdentAcoes[[Quantidade de fontes de recursos ]]),0),0)),\"\")","v":"T.4.1.3. Projetos (básicos e/ou executivos) para proteção e/ou contenção de margens de curso dagua"}]

{"sheet":"Acomp. - PAPI_21 (Delib. 190) ","index":5,"n_rows":1,"n_cols":12,"rows_kept":1,"cut":false,"hidden":false,"merged":[]}
["ID Ação","Ano","SubPDC","Prioridade do SubPDC","Ação","Meta","% Execução da meta","Segmento do executor","Área de abrangência","Nome da área de abrangência","Recurso financeiro executado no ano (R$)","Justificativa sobre execução física e financeira em 2024"]

{"sheet":"Acomp. PAPI_22_23 (Delib. 246) ","index":6,"n_rows":1,"n_cols":11,"rows_kept":1,"cut":false,"hidden":false,"merged":[]}
["ID Ação","Ano","SubPDC","Prioridade do SubPDC","Ação","Meta","% Execução da meta","Segmento do executor","Área de abrangência","Nome da área de abrangência","Justificativa sobre execução física e financeira em 2024"]

{"sheet":"PAPI 2024-2027","index":7,"n_rows":51,"n_cols":13,"rows_kept":51,"cut":false,"hidden":false,"merged":[[2,3,10,3]]}
[null,null,null,null,"R$ Planejado"]
["ID Ação","Descrição da ação","Meta","Fonte",2024,2025,2026,2027,"SubPDC","Prioridade do PDC","Segmento do executor","Área de abrangência","Nome da área de abrangência"]
[{"$f":"IF(INDEX(Financeiro[],,1)=0,\"\",(INDEX(Financeiro[],,1)))","v":"BPG0124"},"T.1.2.2 . Diagnóstico qualitativo e/ou quantitativo de recursos hídricos superficiais e/ou subterrâneos          1ª                        ","Ampliar o sistema de informações hidrometeorologicas, quantidade e qualidade das águas subterrãneas e superficiais, situação de nascentes e APPs da Bacia do Baixo Pardo Grande","Cobrança Estadual",0,160000,160000,160000,"1.2. Planejamento e gestão de recursos hídricos","<25%","A definir","UGRHi","Prioritariamente nas sub bacias das áreas consideradas com criticidade no Estudos dos sistemas dos aquíferps Guarani, Bauru e Serra Geral  "]
["BPG0124","T.1.2.3 .Diagnóstico/Levantamento/Modelagem matemática hidrometeorológica para adaptação e mitigação dos efeitos das mudanças climáticas re lacionado aos recursos hídricos.",null,null,0,0,0,160000,null,"<25%","A definir"]
["BPG0224","T.1.2.8 . Estudo relacionado à interferência de sistemas agroflorestais, transição agroecológica, recu-",null,null,0,160000,0,160000,null,"<25%","A definir"]
["BPG0224"," T.1.2.11. Estudo, levantamento, diagnóstico para subsidiar projetos de PSA 3ª",null,null,0,0,0,160000,null,"<25%","A definir"]
["BPG0324","T.1.2.14. Mapeamento de áreas suscetíveis a pro cessos erosivos e deslizamentos. 2ª",null,null,160000,0,{"$f":"160000+22747","v":182747},0,null,"<25%","A definir"]
["BPG0324","T.1.2.15. Modelagem matemática qualitativa e/ou quantitativa de recursos hídricos superficiais e/ou subterrâneos.",null,null,0,0,160000,0,null,"<25%","A definir"]
["BPG0424","T.1.2.16. Planejamento territorial com foco na conservação, proteção, recuperaç ão ou uso dos recursos hídricos",null,null,160000,160000,0,160000,null,"<25%","A definir"]
["BPG0424","T.1.2.21. Plano diretor de controle de perdas. 4ª+D17",null,null,0,0,160000,0,null,"<25%","Autarquias e Concessionárias de saneamento"]
["BPG0524","T.1.2.23. Plano de comunicação Social de Comitê de Bacia Hid rográfica demanda induzida",null,null,0,160000,0,0,null,"<25%","A definir"]
["BPG0524","T.2.5.2. Desenvolvimento, implantação, manutenção ou atualização de sistema de informação e/ou de suporte à decisão (SSD)","Criar o Centro Controle Operacional  para reunião e ´facilitar a análise de dados da UGRHI 12","Cobrança Estadual",{"$f":"IFERROR(INDEX(Financeiro[R$  Planejado (2024)],MATCH($A12,IdentAcoes[ID Ação])),\"\")","v":0},{"$f":"IFERROR(INDEX(Financeiro[R$  Planejado (2025)],MATCH($A12,IdentAcoes[ID Ação])),\"\")","v":0},{"$f":"IFERROR(INDEX(Financeiro[R$  Planejado (2026)],MATCH($A12,IdentAcoes[ID Ação])),\"\")","v":0},{"$f":"IFERROR(INDEX(Financeiro[R$  Planejado (2027)],MATCH($A12,IdentAcoes[ID Ação])),\"\")","v":0},"2.5 Rede de Monitoramento e Sistemas de Informação sobre Recursos Hídricos","<25%","A definir","UGRHi","Prioritariamente nas sub bacias das áreas consideradas com criticidade no Estudos dos sistemas dos aquíferps Guarani, Bauru e Serra Geral  "]
["BPG0624","T.2.5.3. Implantação, manutenção, modernização e ampliação de rede de monitoramento quali\u0002quantitativo",null,"Cobrança Estadual",{"$f":"IFERROR(INDEX(Financeiro[R$  Planejado (2024)],MATCH($A13,IdentAcoes[ID Ação])),\"\")","v":0},{"$f":"IFERROR(INDEX(Financeiro[R$  Planejado (2025)],MATCH($A13,IdentAcoes[ID Ação])),\"\")","v":0},{"$f":"IFERROR(INDEX(Financeiro[R$  Planejado (2026)],MATCH($A13,IdentAcoes[ID Ação])),\"\")","v":0},{"$f":"IFERROR(INDEX(Financeiro[R$  Planejado (2027)],MATCH($A13,IdentAcoes[ID Ação])),\"\")","v":0},null,"<25%","A definir"]
["BPG0624",null,{"$f":"IF(INDEX('Acompanhamento das metas 24-27'!$C$2:$C$50,MATCH(A14,'Acompanhamento das metas 24-27'!$A$2:$A$50,0))<>0,INDEX('Acompanhamento das metas 24-27'!$C$2:$C$50,MATCH(A14,'Acompanhamento das metas 24-27'!$A$2:$A$50,0)),\"\")","v":""},{"$f":"IFERROR(INDEX(Financeiro[Fonte],MATCH(A14,IdentAcoes[ID Ação])),\"\")","v":0},{"$f":"IFERROR(INDEX(Financeiro[R$  Planejado (2024)],MATCH($A14,IdentAcoes[ID Ação])),\"\")","v":0},{"$f":"IFERROR(INDEX(Financeiro[R$  Planejado (2025)],MATCH($A14,IdentAcoes[ID Ação])),\"\")","v":0},{"$f":"IFERROR(INDEX(Financeiro[R$  Planejado (2026)],MATCH($A14,IdentAcoes[ID Ação])),\"\")","v":0},{"$f":"IFERROR(INDEX(Financeiro[R$  Planejado (2027)],MATCH($A14,IdentAcoes[ID Ação])),\"\")","v":0},{"$f":"IFERROR(INDEX(IdentAcoes[SubPDC],MATCH(A14,IdentAcoes[ID Ação],0)),\"\")","v":"1.2. Planejamento e gestão de recursos hídricos"},{"$f":"IFERROR(INDEX(IdentAcoes[Prioridade do PDC],MATCH(A14,IdentAcoes[ID Ação],0)),\"\")","v":0},{"$f":"IFERROR(INDEX(IdentAcoes[Segmento do executor],MATCH($A14,IdentAcoes[ID Ação],0)),\"\")","v":"Sociedade Civil"},{"$f":"IFERROR(INDEX(IdentAcoes[Área de abrangência],MATCH($A14,IdentAcoes[ID Ação],0)),\"\")","v":"Bacia"},{"$f":"IFERROR(INDEX(IdentAcoes[Detalhamento da área de abrangência],MATCH($A14,IdentAcoes[ID Ação],0)),\"\")","v":"Prioritariamente nas sub bacias das áreas consideradas com criticidade no Estudos dos sistemas dos aquíferps Guarani, Bauru e Serra Geral  "}]
["BPG0724",{"$f":"INDEX(Financeiro[Descrição da ação],MATCH(A15,Financeiro[ID Ação], 0))","v":"T.1.2.16. Planejamento territorial com foco na conservação, proteção, recuperaç ão ou uso dos recursos hídricos"},{"$f":"IF(INDEX('Acompanhamento das metas 24-27'!$C$2:$C$50,MATCH(A15,'Acompanhamento das metas 24-27'!$A$2:$A$50,0))<>0,INDEX('Acompanhamento das metas 24-27'!$C$2:$C$50,MATCH(A15,'Acompanhamento das metas 24-27'!$A$2:$A$50,0)),\"\")","v":""},{"$f":"IFERROR(INDEX(Financeiro[Fonte],MATCH(A15,IdentAcoes[ID Ação])),\"\")","v":0},{"$f":"IFERROR(INDEX(Financeiro[R$  Planejado (2024)],MATCH($A15,IdentAcoes[ID Ação])),\"\")","v":0},{"$f":"IFERROR(INDEX(Financeiro[R$  Planejado (2025)],MATCH($A15,IdentAcoes[ID Ação])),\"\")","v":0},{"$f":"IFERROR(INDEX(Financeiro[R$  Planejado (2026)],MATCH($A15,IdentAcoes[ID Ação])),\"\")","v":0},{"$f":"IFERROR(INDEX(Financeiro[R$  Planejado (2027)],MATCH($A15,IdentAcoes[ID Ação])),\"\")","v":0},{"$f":"IFERROR(INDEX(IdentAcoes[SubPDC],MATCH(A15,IdentAcoes[ID Ação],0)),\"\")","v":"1.2. Planejamento e gestão de recursos hídricos"},{"$f":"IFERROR(INDEX(IdentAcoes[Prioridade do PDC],MATCH(A15,IdentAcoes[ID Ação],0)),\"\")","v":0},{"$f":"IFERROR(INDEX(IdentAcoes[Segmento do executor],MATCH($A15,IdentAcoes[ID Ação],0)),\"\")","v":"Sociedade Civil"},{"$f":"IFERROR(INDEX(IdentAcoes[Área de abrangência],MATCH($A15,IdentAcoes[ID Ação],0)),\"\")","v":"Bacia"},{"$f":"IFERROR(INDEX(IdentAcoes[Detalhamento da área de abrangência],MATCH($A15,IdentAcoes[ID Ação],0)),\"\")","v":"Prioritariamente nas sub bacias das áreas consideradas com criticidade no Estudos dos sistemas dos aquíferps Guarani, Bauru e Serra Geral  "}]
["BPG0724",{"$f":"INDEX(Financeiro[Descrição da ação],MATCH(A16,Financeiro[ID Ação], 0))","v":"T.1.2.16. Planejamento territorial com foco na conservação, proteção, recuperaç ão ou uso dos recursos hídricos"},{"$f":"IF(INDEX('Acompanhamento das metas 24-27'!$C$2:$C$50,MATCH(A16,'Acompanhamento das metas 24-27'!$A$2:$A$50,0))<>0,INDEX('Acompanhamento das metas 24-27'!$C$2:$C$50,MATCH(A16,'Acompanhamento das metas 24-27'!$A$2:$A$50,0)),\"\")","v":""},{"$f":"IFERROR(INDEX(Financeiro[Fonte],MATCH(A16,IdentAcoes[ID Ação])),\"\")","v":0},{"$f":"IFERROR(INDEX(Financeiro[R$  Planejado (2024)],MATCH($A16,IdentAcoes[ID Ação])),\"\")","v":0},{"$f":"IFERROR(INDEX(Financeiro[R$  Planejado (2025)],MATCH($A16,IdentAcoes[ID Ação])),\"\")","v":0},{"$f":"IFERROR(INDEX(Financeiro[R$  Planejado (2026)],MATCH($A16,IdentAcoes[ID Ação])),\"\")","v":0},{"$f":"IFERROR(INDEX(Financeiro[R$  Planejado (2027)],MATCH($A16,IdentAcoes[ID Ação])),\"\")","v":0},{"$f":"IFERROR(INDEX(IdentAcoes[SubPDC],MATCH(A16,IdentAcoes[ID Ação],0)),\"\")","v":"1.2. Planejamento e gestão de recursos hídricos"},{"$f":"IFERROR(INDEX(IdentAcoes[Prioridade do PDC],MATCH(A16,IdentAcoes[ID Ação],0)),\"\")","v":0},{"$f":"IFERROR(INDEX(IdentAcoes[Segmento do executor],MATCH($A16,IdentAcoes[ID Ação],0)),\"\")","v":"Sociedade Civil"},{"$f":"IFERROR(INDEX(IdentAcoes[Área de abrangência],MATCH($A16,IdentAcoes[ID Ação],0)),\"\")","v":"Bacia"},{"$f":"IFERROR(INDEX(IdentAcoes[Detalhamento da área de abrangência],MATCH($A16,IdentAcoes[ID Ação],0)),\"\")","v":"Prioritariamente nas sub bacias das áreas consideradas com criticidade no Estudos dos sistemas dos aquíferps Guarani, Bauru e Serra Geral  "}]
["BPG0824",{"$f":"INDEX(Financeiro[Descrição da ação],MATCH(A17,Financeiro[ID Ação], 0))","v":"T.1.2.21. Plano diretor de controle de perdas. 4ª+D17"},{"$f":"IF(INDEX('Acompanhamento das metas 24-27'!$C$2:$C$50,MATCH(A17,'Acompanhamento das metas 24-27'!$A$2:$A$50,0))<>0,INDEX('Acompanhamento das metas 24-27'!$C$2:$C$50,MATCH(A17,'Acompanhamento das metas 24-27'!$A$2:$A$50,0)),\"\")","v":""},{"$f":"IFERROR(INDEX(Financeiro[Fonte],MATCH(A17,IdentAcoes[ID Ação])),\"\")","v":0},{"$f":"IFERROR(INDEX(Financeiro[R$  Planejado (2024)],MATCH($A17,IdentAcoes[ID Ação])),\"\")","v":0},{"$f":"IFERROR(INDEX(Financeiro[R$  Planejado (2025)],MATCH($A17,IdentAcoes[ID Ação])),\"\")","v":0},{"$f":"IFERROR(INDEX(Financeiro[R$  Planejado (2026)],MATCH($A17,IdentAcoes[ID Ação])),\"\")","v":0},{"$f":"IFERROR(INDEX(Financeiro[R$  Planejado (2027)],MATCH($A17,IdentAcoes[ID Ação])),\"\")","v":0},{"$f":"IFERROR(INDEX(IdentAcoes[SubPDC],MATCH(A17,IdentAcoes[ID Ação],0)),\"\")","v":"1.2. Planejamento e gestão de recursos hídricos"},{"$f":"IFERROR(INDEX(IdentAcoes[Prioridade do PDC],MATCH(A17,IdentAcoes[ID Ação],0)),\"\")","v":0},{"$f":"IFERROR(INDEX(IdentAcoes[Segmento do executor],MATCH($A17,IdentAcoes[ID Ação],0)),\"\")","v":"Sociedade Civil"},{"$f":"IFERROR(INDEX(IdentAcoes[Área de abrangência],MATCH($A17,IdentAcoes[ID Ação],0)),\"\")","v":"Bacia"},{"$f":"IFERROR(INDEX(IdentAcoes[Detalhamento da área de abrangência],MATCH($A17,IdentAcoes[ID Ação],0)),\"\")","v":"Prioritariamente nas sub bacias das áreas consideradas com criticidade no Estudos dos sistemas dos aquíferps Guarani, Bauru e Serra Geral  "}]
["BPG0824",{"$f":"INDEX(Financeiro[Descrição da ação],MATCH(A18,Financeiro[ID Ação], 0))","v":"T.1.2.21. Plano diretor de controle de perdas. 4ª+D17"},{"$f":"IF(INDEX('Acompanhamento das metas 24-27'!$C$2:$C$50,MATCH(A18,'Acompanhamento das metas 24-27'!$A$2:$A$50,0))<>0,INDEX('Acompanhamento das metas 24-27'!$C$2:$C$50,MATCH(A18,'Acompanhamento das metas 24-27'!$A$2:$A$50,0)),\"\")","v":""},{"$f":"IFERROR(INDEX(Financeiro[Fonte],MATCH(A18,IdentAcoes[ID Ação])),\"\")","v":0},{"$f":"IFERROR(INDEX(Financeiro[R$  Planejado (2024)],MATCH($A18,IdentAcoes[ID Ação])),\"\")","v":0},{"$f":"IFERROR(INDEX(Financeiro[R$  Planejado (2025)],MATCH($A18,IdentAcoes[ID Ação])),\"\")","v":0},{"$f":"IFERROR(INDEX(Financeiro[R$  Planejado (2026)],MATCH($A18,IdentAcoes[ID Ação])),\"\")","v":0},{"$f":"IFERROR(INDEX(Financeiro[R$  Planejado (2027)],MATCH($A18,IdentAcoes[ID Ação])),\"\")","v":0},{"$f":"IFERROR(INDEX(IdentAcoes[SubPDC],MATCH(A18,IdentAcoes[ID Ação],0)),\"\")","v":"1.2. Planejamento e gestão de recursos hídricos"},{"$f":"IFERROR(INDEX(IdentAcoes[Prioridade do PDC],MATCH(A18,IdentAcoes[ID Ação],0)),\"\")","v":0},{"$f":"IFERROR(INDEX(IdentAcoes[Segmento do executor],MATCH($A18,IdentAcoes[ID Ação],0)),\"\")","v":"Sociedade Civil"},{"$f":"IFERROR(INDEX(IdentAcoes[Área de abrangência],MATCH($A18,IdentAcoes[ID Ação],0)),\"\")","v":"Bacia"},{"$f":"IFERROR(INDEX(IdentAcoes[Detalhamento da área de abrangência],MATCH($A18,IdentAcoes[ID Ação],0)),\"\")","v":"Prioritariamente nas sub bacias das áreas consideradas com criticidade no Estudos dos sistemas dos aquíferps Guarani, Bauru e Serra Geral  "}]
["BPG0924",{"$f":"INDEX(Financeiro[Descrição da ação],MATCH(A19,Financeiro[ID Ação], 0))","v":"T.1.2.23. Plano de comunicação Social de Comitê de Bacia Hid rográfica demanda induzida"},{"$f":"IF(INDEX('Acompanhamento das metas 24-27'!$C$2:$C$50,MATCH(A19,'Acompanhamento das metas 24-27'!$A$2:$A$50,0))<>0,INDEX('Acompanhamento das metas 24-27'!$C$2:$C$50,MATCH(A19,'Acompanhamento das metas 24-27'!$A$2:$A$50,0)),\"\")","v":""},{"$f":"IFERROR(INDEX(Financeiro[Fonte],MATCH(A19,IdentAcoes[ID Ação])),\"\")","v":0},{"$f":"IFERROR(INDEX(Financeiro[R$  Planejado (2024)],MATCH($A19,IdentAcoes[ID Ação])),\"\")","v":0},{"$f":"IFERROR(INDEX(Financeiro[R$  Planejado (2025)],MATCH($A19,IdentAcoes[ID Ação])),\"\")","v":0},{"$f":"IFERROR(INDEX(Financeiro[R$  Planejado (2026)],MATCH($A19,IdentAcoes[ID Ação])),\"\")","v":0},{"$f":"IFERROR(INDEX(Financeiro[R$  Planejado (2027)],MATCH($A19,IdentAcoes[ID Ação])),\"\")","v":0},{"$f":"IFERROR(INDEX(IdentAcoes[SubPDC],MATCH(A19,IdentAcoes[ID Ação],0)),\"\")","v":"1.2. Planejamento e gestão de recursos hídricos"},{"$f":"IFERROR(INDEX(IdentAcoes[Prioridade do PDC],MATCH(A19,IdentAcoes[ID Ação],0)),\"\")","v":0},{"$f":"IFERROR(INDEX(IdentAcoes[Segmento do executor],MATCH($A19,IdentAcoes[ID Ação],0)),\"\")","v":"Sociedade Civil"},{"$f":"IFERROR(INDEX(IdentAcoes[Área de abrangência],MATCH($A19,IdentAcoes[ID Ação],0)),\"\")","v":"Bacia"},{"$f":"IFERROR(INDEX(IdentAcoes[Detalhamento da área de abrangência],MATCH($A19,IdentAcoes[ID Ação],0)),\"\")","v":"Prioritariamente nas sub bacias das áreas consideradas com criticidade no Estudos dos sistemas dos aquíferps Guarani, Bauru e Serra Geral  "}]
["BPG0924",{"$f":"INDEX(Financeiro[Descrição da ação],MATCH(A20,Financeiro[ID Ação], 0))","v":"T.1.2.23. Plano de comunicação Social de Comitê de Bacia Hid rográfica demanda induzida"},{"$f":"IF(INDEX('Acompanhamento das metas 24-27'!$C$2:$C$50,MATCH(A20,'Acompanhamento das metas 24-27'!$A$2:$A$50,0))<>0,INDEX('Acompanhamento das metas 24-27'!$C$2:$C$50,MATCH(A20,'Acompanhamento das metas 24-27'!$A$2:$A$50,0)),\"\")","v":""},{"$f":"IFERROR(INDEX(Financeiro[Fonte],MATCH(A20,IdentAcoes[ID Ação])),\"\")","v":0},{"$f":"IFERROR(INDEX(Financeiro[R$  Planejado (2024)],MATCH($A20,IdentAcoes[ID Ação])),\"\")","v":0},{"$f":"IFERROR(INDEX(Financeiro[R$  Planejado (2025)],MATCH($A20,IdentAcoes[ID Ação])),\"\")","v":0},{"$f":"IFERROR(INDEX(Financeiro[R$  Planejado (2026)],MATCH($A20,IdentAcoes[ID Ação])),\"\")","v":0},{"$f":"IFERROR(INDEX(Financeiro[R$  Planejado (2027)],MATCH($A20,IdentAcoes[ID Ação])),\"\")","v":0},{"$f":"IFERROR(INDEX(IdentAcoes[SubPDC],MATCH(A20,IdentAcoes[ID Ação],0)),\"\")","v":"1.2. Planejamento e gestão de recursos hídricos"},{"$f":"IFERROR(INDEX(IdentAcoes[Prioridade do PDC],MATCH(A20,IdentAcoes[ID Ação],0)),\"\")","v":0},{"$f":"IFERROR(INDEX(IdentAcoes[Segmento do executor],MATCH($A20,IdentAcoes[ID Ação],0)),\"\")","v":"Sociedade Civil"},{"$f":"IFERROR(INDEX(IdentAcoes[Área de abrangência],MATCH($A20,IdentAcoes[ID Ação],0)),\"\")","v":"Bacia"},{"$f":"IFERROR(INDEX(IdentAcoes[Detalhamento da área de abrangência],MATCH($A20,IdentAcoes[ID Ação],0)),\"\")","v":"Prioritariamente nas sub bacias das áreas consideradas com criticidade no Estudos dos sistemas dos aquíferps Guarani, Bauru e Serra Geral  "}]
["BPG1024",{"$f":"INDEX(Financeiro[Descrição da ação],MATCH(A21,Financeiro[ID Ação], 0))","v":"T.2.5.2. Desenvolvimento, implantação, manutenção ou atualização de sistema de informação e/ou de suporte à decisão (SSD) com centro de contole  operacional"},{"$f":"IF(INDEX('Acompanhamento das metas 24-27'!$C$2:$C$50,MATCH(A21,'Acompanhamento das metas 24-27'!$A$2:$A$50,0))<>0,INDEX('Acompanhamento das metas 24-27'!$C$2:$C$50,MATCH(A21,'Acompanhamento das metas 24-27'!$A$2:$A$50,0)),\"\")","v":""},{"$f":"IFERROR(INDEX(Financeiro[Fonte],MATCH(A21,IdentAcoes[ID Ação])),\"\")","v":0},{"$f":"IFERROR(INDEX(Financeiro[R$  Planejado (2024)],MATCH($A21,IdentAcoes[ID Ação])),\"\")","v":0},{"$f":"IFERROR(INDEX(Financeiro[R$  Planejado (2025)],MATCH($A21,IdentAcoes[ID Ação])),\"\")","v":0},{"$f":"IFERROR(INDEX(Financeiro[R$  Planejado (2026)],MATCH($A21,IdentAcoes[ID Ação])),\"\")","v":0},{"$f":"IFERROR(INDEX(Financeiro[R$  Planejado (2027)],MATCH($A21,IdentAcoes[ID Ação])),\"\")","v":0},{"$f":"IFERROR(INDEX(IdentAcoes[SubPDC],MATCH(A21,IdentAcoes[ID Ação],0)),\"\")","v":"2.5 Rede de Monitoramento e Sistemas de Informação sobre Recursos Hídricos"},{"$f":"IFERROR(INDEX(IdentAcoes[Prioridade do PDC],MATCH(A21,IdentAcoes[ID Ação],0)),\"\")","v":0},{"$f":"IFERROR(INDEX(IdentAcoes[Segmento do executor],MATCH($A21,IdentAcoes[ID Ação],0)),\"\")","v":"Estado"},{"$f":"IFERROR(INDEX(IdentAcoes[Área de abrangência],MATCH($A21,IdentAcoes[ID Ação],0)),\"\")","v":"Bacia"},{"$f":"IFERROR(INDEX(IdentAcoes[Detalhamento da área de abrangência],MATCH($A21,IdentAcoes[ID Ação],0)),\"\")","v":"Prioritariamente nos aquiferos Guarani, Bauru e Serra  Geral e águas superficiais da bacias do BPG"}]
["BPG1024",{"$f":"INDEX(Financeiro[Descrição da ação],MATCH(A22,Financeiro[ID Ação], 0))","v":"T.2.5.2. Desenvolvimento, implantação, manutenção ou atualização de sistema de informação e/ou de suporte à decisão (SSD) com centro de contole  operacional"},{"$f":"IF(INDEX('Acompanhamento das metas 24-27'!$C$2:$C$50,MATCH(A22,'Acompanhamento das metas 24-27'!$A$2:$A$50,0))<>0,INDEX('Acompanhamento das metas 24-27'!$C$2:$C$50,MATCH(A22,'Acompanhamento das metas 24-27'!$A$2:$A$50,0)),\"\")","v":""},{"$f":"IFERROR(INDEX(Financeiro[Fonte],MATCH(A22,IdentAcoes[ID Ação])),\"\")","v":0},{"$f":"IFERROR(INDEX(Financeiro[R$  Planejado (2024)],MATCH($A22,IdentAcoes[ID Ação])),\"\")","v":0},{"$f":"IFERROR(INDEX(Financeiro[R$  Planejado (2025)],MATCH($A22,IdentAcoes[ID Ação])),\"\")","v":0},{"$f":"IFERROR(INDEX(Financeiro[R$  Planejado (2026)],MATCH($A22,IdentAcoes[ID Ação])),\"\")","v":0},{"$f":"IFERROR(INDEX(Financeiro[R$  Planejado (2027)],MATCH($A22,IdentAcoes[ID Ação])),\"\")","v":0},{"$f":"IFERROR(INDEX(IdentAcoes[SubPDC],MATCH(A22,IdentAcoes[ID Ação],0)),\"\")","v":"2.5 Rede de Monitoramento e Sistemas de Informação sobre Recursos Hídricos"},{"$f":"IFERROR(INDEX(IdentAcoes[Prioridade do PDC],MATCH(A22,IdentAcoes[ID Ação],0)),\"\")","v":0},{"$f":"IFERROR(INDEX(IdentAcoes[Segmento do executor],MATCH($A22,IdentAcoes[ID Ação],0)),\"\")","v":"Estado"},{"$f":"IFERROR(INDEX(IdentAcoes[Área de abrangência],MATCH($A22,IdentAcoes[ID Ação],0)),\"\")","v":"Bacia"},{"$f":"IFERROR(INDEX(IdentAcoes[Detalhamento da área de abrangência],MATCH($A22,IdentAcoes[ID Ação],0)),\"\")","v":"Prioritariamente nos aquiferos Guarani, Bauru e Serra  Geral e águas superficiais da bacias do BPG"}]
["BPG1024",{"$f":"INDEX(Financeiro[Descrição da ação],MATCH(A23,Financeiro[ID Ação], 0))","v":"T.2.5.2. Desenvolvimento, implantação, manutenção ou atualização de sistema de informação e/ou de suporte à decisão (SSD) com centro de contole  operacional"},{"$f":"IF(INDEX('Acompanhamento das metas 24-27'!$C$2:$C$50,MATCH(A23,'Acompanhamento das metas 24-27'!$A$2:$A$50,0))<>0,INDEX('Acompanhamento das metas 24-27'!$C$2:$C$50,MATCH(A23,'Acompanhamento das metas 24-27'!$A$2:$A$50,0)),\"\")","v":""},{"$f":"IFERROR(INDEX(Financeiro[Fonte],MATCH(A23,IdentAcoes[ID Ação])),\"\")","v":0},{"$f":"IFERROR(INDEX(Financeiro[R$  Planejado (2024)],MATCH($A23,IdentAcoes[ID Ação])),\"\")","v":0},{"$f":"IFERROR(INDEX(Financeiro[R$  Planejado (2025)],MATCH($A23,IdentAcoes[ID Ação])),\"\")","v":0},{"$f":"IFERROR(INDEX(Financeiro[R$  Planejado (2026)],MATCH($A23,IdentAcoes[ID Ação])),\"\")","v":0},{"$f":"IFERROR(INDEX(Financeiro[R$  Planejado (2027)],MATCH($A23,IdentAcoes[ID Ação])),\"\")","v":0},{"$f":"IFERROR(INDEX(IdentAcoes[SubPDC],MATCH(A23,IdentAcoes[ID Ação],0)),\"\")","v":"2.5 Rede de Monitoramento e Sistemas de Informação sobre Recursos Hídricos"},{"$f":"IFERROR(INDEX(IdentAcoes[Prioridade do PDC],MATCH(A23,IdentAcoes[ID Ação],0)),\"\")","v":0},{"$f":"IFERROR(INDEX(IdentAcoes[Segmento do executor],MATCH($A23,IdentAcoes[ID Ação],0)),\"\")","v":"Estado"},{"$f":"IFERROR(INDEX(IdentAcoes[Área de abrangência],MATCH($A23,IdentAcoes[ID Ação],0)),\"\")","v":"Bacia"},{"$f":"IFERROR(INDEX(IdentAcoes[Detalhamento da área de abrangência],MATCH($A23,IdentAcoes[ID Ação],0)),\"\")","v":"Prioritariamente nos aquiferos Guarani, Bauru e Serra  Geral e águas superficiais da bacias do BPG"}]
["BPG1124",{"$f":"INDEX(Financeiro[Descrição da ação],MATCH(A24,Financeiro[ID Ação], 0))","v":"T.2.5.3. Implantação, manutenção, modernização e ampliação de rede de monitoramento quali\u0002quantitativo"},{"$f":"IF(INDEX('Acompanhamento das metas 24-27'!$C$2:$C$50,MATCH(A24,'Acompanhamento das metas 24-27'!$A$2:$A$50,0))<>0,INDEX('Acompanhamento das metas 24-27'!$C$2:$C$50,MATCH(A24,'Acompanhamento das metas 24-27'!$A$2:$A$50,0)),\"\")","v":""},{"$f":"IFERROR(INDEX(Financeiro[Fonte],MATCH(A24,IdentAcoes[ID Ação])),\"\")","v":0},{"$f":"IFERROR(INDEX(Financeiro[R$  Planejado (2024)],MATCH($A24,IdentAcoes[ID Ação])),\"\")","v":0},{"$f":"IFERROR(INDEX(Financeiro[R$  Planejado (2025)],MATCH($A24,IdentAcoes[ID Ação])),\"\")","v":0},{"$f":"IFERROR(INDEX(Financeiro[R$  Planejado (2026)],MATCH($A24,IdentAcoes[ID Ação])),\"\")","v":0},{"$f":"IFERROR(INDEX(Financeiro[R$  Planejado (2027)],MATCH($A24,IdentAcoes[ID Ação])),\"\")","v":0},{"$f":"IFERROR(INDEX(IdentAcoes[SubPDC],MATCH(A24,IdentAcoes[ID Ação],0)),\"\")","v":"2.5 Rede de Monitoramento e Sistemas de Informação sobre Recursos Hídricos"},{"$f":"IFERROR(INDEX(IdentAcoes[Prioridade do PDC],MATCH(A24,IdentAcoes[ID Ação],0)),\"\")","v":0},{"$f":"IFERROR(INDEX(IdentAcoes[Segmento do executor],MATCH($A24,IdentAcoes[ID Ação],0)),\"\")","v":"Estado"},{"$f":"IFERROR(INDEX(IdentAcoes[Área de abrangência],MATCH($A24,IdentAcoes[ID Ação],0)),\"\")","v":"Bacia"},{"$f":"IFERROR(INDEX(IdentAcoes[Detalhamento da área de abrangência],MATCH($A24,IdentAcoes[ID Ação],0)),\"\")","v":"Prioritariamente nos aquiferos Guarani, Bauru e Serra  Geral e águas superficiais da bacias do BPG"}]
["BPG1124",{"$f":"INDEX(Financeiro[Descrição da ação],MATCH(A25,Financeiro[ID Ação], 0))","v":"T.2.5.3. Implantação, manutenção, modernização e ampliação de rede de monitoramento quali\u0002quantitativo"},{"$f":"IF(INDEX('Acompanhamento das metas 24-27'!$C$2:$C$50,MATCH(A25,'Acompanhamento das metas 24-27'!$A$2:$A$50,0))<>0,INDEX('Acompanhamento das metas 24-27'!$C$2:$C$50,MATCH(A25,'Acompanhamento das metas 24-27'!$A$2:$A$50,0)),\"\")","v":""},{"$f":"IFERROR(INDEX(Financeiro[Fonte],MATCH(A25,IdentAcoes[ID Ação])),\"\")","v":0},{"$f":"IFERROR(INDEX(Financeiro[R$  Planejado (2024)],MATCH($A25,IdentAcoes[ID Ação])),\"\")","v":0},{"$f":"IFERROR(INDEX(Financeiro[R$  Planejado (2025)],MATCH($A25,IdentAcoes[ID Ação])),\"\")","v":0},{"$f":"IFERROR(INDEX(Financeiro[R$  Planejado (2026)],MATCH($A25,IdentAcoes[ID Ação])),\"\")","v":0},{"$f":"IFERROR(INDEX(Financeiro[R$  Planejado (2027)],MATCH($A25,IdentAcoes[ID Ação])),\"\")","v":0},{"$f":"IFERROR(INDEX(IdentAcoes[SubPDC],MATCH(A25,IdentAcoes[ID Ação],0)),\"\")","v":"2.5 Rede de Monitoramento e Sistemas de Informação sobre Recursos Hídricos"},{"$f":"IFERROR(INDEX(IdentAcoes[Prioridade do PDC],MATCH(A25,IdentAcoes[ID Ação],0)),\"\")","v":0},{"$f":"IFERROR(INDEX(IdentAcoes[Segmento do executor],MATCH($A25,IdentAcoes[ID Ação],0)),\"\")","v":"Estado"},{"$f":"IFERROR(INDEX(IdentAcoes[Área de abrangência],MATCH($A25,IdentAcoes[ID Ação],0)),\"\")","v":"Bacia"},{"$f":"IFERROR(INDEX(IdentAcoes[Detalhamento da área de abrangência],MATCH($A25,IdentAcoes[ID Ação],0)),\"\")","v":"Prioritariamente nos aquiferos Guarani, Bauru e Serra  Geral e águas superficiais da bacias do BPG"}]
["BPG1124",{"$f":"INDEX(Financeiro[Descrição da ação],MATCH(A26,Financeiro[ID Ação], 0))","v":"T.2.5.3. Implantação, manutenção, modernização e ampliação de rede de monitoramento quali\u0002quantitativo"},{"$f":"IF(INDEX('Acompanhamento das metas 24-27'!$C$2:$C$50,MATCH(A26,'Acompanhamento das metas 24-27'!$A$2:$A$50,0))<>0,INDEX('Acompanhamento das metas 24-27'!$C$2:$C$50,MATCH(A26,'Acompanhamento das metas 24-27'!$A$2:$A$50,0)),\"\")","v":""},{"$f":"IFERROR(INDEX(Financeiro[Fonte],MATCH(A26,IdentAcoes[ID Ação])),\"\")","v":0},{"$f":"IFERROR(INDEX(Financeiro[R$  Planejado (2024)],MATCH($A26,IdentAcoes[ID Ação])),\"\")","v":0},{"$f":"IFERROR(INDEX(Financeiro[R$  Planejado (2025)],MATCH($A26,IdentAcoes[ID Ação])),\"\")","v":0},{"$f":"IFERROR(INDEX(Financeiro[R$  Planejado (2026)],MATCH($A26,IdentAcoes[ID Ação])),\"\")","v":0},{"$f":"IFERROR(INDEX(Financeiro[R$  Planejado (2027)],MATCH($A26,IdentAcoes[ID Ação])),\"\")","v":0},{"$f":"IFERROR(INDEX(IdentAcoes[SubPDC],MATCH(A26,IdentAcoes[ID Ação],0)),\"\")","v":"2.5 Rede de Monitoramento e Sistemas de Informação sobre Recursos Hídricos"},{"$f":"IFERROR(INDEX(IdentAcoes[Prioridade do PDC],MATCH(A26,IdentAcoes[ID Ação],0)),\"\")","v":0},{"$f":"IFERROR(INDEX(IdentAcoes[Segmento do executor],MATCH($A26,IdentAcoes[ID Ação],0)),\"\")","v":"Estado"},{"$f":"IFERROR(INDEX(IdentAcoes[Área de abrangência],MATCH($A26,IdentAcoes[ID Ação],0)),\"\")","v":"Bacia"},{"$f":"IFERROR(INDEX(IdentAcoes[Detalhamento da área de abrangência],MATCH($A26,IdentAcoes[ID Ação],0)),\"\")","v":"Prioritariamente nos aquiferos Guarani, Bauru e Serra  Geral e águas superficiais da bacias do BPG"}]
["BPG1224",{"$f":"INDEX(Financeiro[Descrição da ação],MATCH(A27,Financeiro[ID Ação], 0))","v":"T.3.1.1. Projeto (básico e/ou executivo) de obras lineares (rede coletora de esgotos, emissário por gravidade, interceptores ou coletor tronco)"},{"$f":"IF(INDEX('Acompanhamento das metas 24-27'!$C$2:$C$50,MATCH(A27,'Acompanhamento das metas 24-27'!$A$2:$A$50,0))<>0,INDEX('Acompanhamento das metas 24-27'!$C$2:$C$50,MATCH(A27,'Acompanhamento das metas 24-27'!$A$2:$A$50,0)),\"\")","v":""},{"$f":"IFERROR(INDEX(Financeiro[Fonte],MATCH(A27,IdentAcoes[ID Ação])),\"\")","v":0},{"$f":"IFERROR(INDEX(Financeiro[R$  Planejado (2024)],MATCH($A27,IdentAcoes[ID Ação])),\"\")","v":0},{"$f":"IFERROR(INDEX(Financeiro[R$  Planejado (2025)],MATCH($A27,IdentAcoes[ID Ação])),\"\")","v":0},{"$f":"IFERROR(INDEX(Financeiro[R$  Planejado (2026)],MATCH($A27,IdentAcoes[ID Ação])),\"\")","v":0},{"$f":"IFERROR(INDEX(Financeiro[R$  Planejado (2027)],MATCH($A27,IdentAcoes[ID Ação])),\"\")","v":0},{"$f":"IFERROR(INDEX(IdentAcoes[SubPDC],MATCH(A27,IdentAcoes[ID Ação],0)),\"\")","v":"3.1 - Sist. esgotamento"},{"$f":"IFERROR(INDEX(IdentAcoes[Prioridade do PDC],MATCH(A27,IdentAcoes[ID Ação],0)),\"\")","v":0},{"$f":"IFERROR(INDEX(IdentAcoes[Segmento do executor],MATCH($A27,IdentAcoes[ID Ação],0)),\"\")","v":"Município"},{"$f":"IFERROR(INDEX(IdentAcoes[Área de abrangência],MATCH($A27,IdentAcoes[ID Ação],0)),\"\")","v":"Bacia"},{"$f":"IFERROR(INDEX(IdentAcoes[Detalhamento da área de abrangência],MATCH($A27,IdentAcoes[ID Ação],0)),\"\")","v":"Municipio que não possuem toda a rede coletora e de afastamento de esgoto ou precisam altera-las"}]
["BPG1224",{"$f":"INDEX(Financeiro[Descrição da ação],MATCH(A28,Financeiro[ID Ação], 0))","v":"T.3.1.1. Projeto (básico e/ou executivo) de obras lineares (rede coletora de esgotos, emissário por gravidade, interceptores ou coletor tronco)"},{"$f":"IF(INDEX('Acompanhamento das metas 24-27'!$C$2:$C$50,MATCH(A28,'Acompanhamento das metas 24-27'!$A$2:$A$50,0))<>0,INDEX('Acompanhamento das metas 24-27'!$C$2:$C$50,MATCH(A28,'Acompanhamento das metas 24-27'!$A$2:$A$50,0)),\"\")","v":""},{"$f":"IFERROR(INDEX(Financeiro[Fonte],MATCH(A28,IdentAcoes[ID Ação])),\"\")","v":0},{"$f":"IFERROR(INDEX(Financeiro[R$  Planejado (2024)],MATCH($A28,IdentAcoes[ID Ação])),\"\")","v":0},{"$f":"IFERROR(INDEX(Financeiro[R$  Planejado (2025)],MATCH($A28,IdentAcoes[ID Ação])),\"\")","v":0},{"$f":"IFERROR(INDEX(Financeiro[R$  Planejado (2026)],MATCH($A28,IdentAcoes[ID Ação])),\"\")","v":0},{"$f":"IFERROR(INDEX(Financeiro[R$  Planejado (2027)],MATCH($A28,IdentAcoes[ID Ação])),\"\")","v":0},{"$f":"IFERROR(INDEX(IdentAcoes[SubPDC],MATCH(A28,IdentAcoes[ID Ação],0)),\"\")","v":"3.1 - Sist. esgotamento"},{"$f":"IFERROR(INDEX(IdentAcoes[Prioridade do PDC],MATCH(A28,IdentAcoes[ID Ação],0)),\"\")","v":0},{"$f":"IFERROR(INDEX(IdentAcoes[Segmento do executor],MATCH($A28,IdentAcoes[ID Ação],0)),\"\")","v":"Município"},{"$f":"IFERROR(INDEX(IdentAcoes[Área de abrangência],MATCH($A28,IdentAcoes[ID Ação],0)),\"\")","v":"Bacia"},{"$f":"IFERROR(INDEX(IdentAcoes[Detalhamento da área de abrangência],MATCH($A28,IdentAcoes[ID Ação],0)),\"\")","v":"Municipio que não possuem toda a rede coletora e de afastamento de esgoto ou precisam altera-las"}]
["BPG1224",{"$f":"INDEX(Financeiro[Descrição da ação],MATCH(A29,Financeiro[ID Ação], 0))","v":"T.3.1.1. Projeto (básico e/ou executivo) de obras lineares (rede coletora de esgotos, emissário por gravidade, interceptores ou coletor tronco)"},{"$f":"IF(INDEX('Acompanhamento das metas 24-27'!$C$2:$C$50,MATCH(A29,'Acompanhamento das metas 24-27'!$A$2:$A$50,0))<>0,INDEX('Acompanhamento das metas 24-27'!$C$2:$C$50,MATCH(A29,'Acompanhamento das metas 24-27'!$A$2:$A$50,0)),\"\")","v":""},{"$f":"IFERROR(INDEX(Financeiro[Fonte],MATCH(A29,IdentAcoes[ID Ação])),\"\")","v":0},{"$f":"IFERROR(INDEX(Financeiro[R$  Planejado (2024)],MATCH($A29,IdentAcoes[ID Ação])),\"\")","v":0},{"$f":"IFERROR(INDEX(Financeiro[R$  Planejado (2025)],MATCH($A29,IdentAcoes[ID Ação])),\"\")","v":0},{"$f":"IFERROR(INDEX(Financeiro[R$  Planejado (2026)],MATCH($A29,IdentAcoes[ID Ação])),\"\")","v":0},{"$f":"IFERROR(INDEX(Financeiro[R$  Planejado (2027)],MATCH($A29,IdentAcoes[ID Ação])),\"\")","v":0},{"$f":"IFERROR(INDEX(IdentAcoes[SubPDC],MATCH(A29,IdentAcoes[ID Ação],0)),\"\")","v":"3.1 - Sist. esgotamento"},{"$f":"IFERROR(INDEX(IdentAcoes[Prioridade do PDC],MATCH(A29,IdentAcoes[ID Ação],0)),\"\")","v":0},{"$f":"IFERROR(INDEX(IdentAcoes[Segmento do executor],MATCH($A29,IdentAcoes[ID Ação],0)),\"\")","v":"Município"},{"$f":"IFERROR(INDEX(IdentAcoes[Área de abrangência],MATCH($A29,IdentAcoes[ID Ação],0)),\"\")","v":"Bacia"},{"$f":"IFERROR(INDEX(IdentAcoes[Detalhamento da área de abrangência],MATCH($A29,IdentAcoes[ID Ação],0)),\"\")","v":"Municipio que não possuem toda a rede coletora e de afastamento de esgoto ou precisam altera-las"}]
["BPG1324",{"$f":"INDEX(Financeiro[Descrição da ação],MATCH(A30,Financeiro[ID Ação], 0))","v":"T.3.1.2. Execução de obras lineares (rede coletora, emissário por gravidade, interceptores ou coletor tronco) inclusive substituição."},{"$f":"IF(INDEX('Acompanhamento das metas 24-27'!$C$2:$C$50,MATCH(A30,'Acompanhamento das metas 24-27'!$A$2:$A$50,0))<>0,INDEX('Acompanhamento das metas 24-27'!$C$2:$C$50,MATCH(A30,'Acompanhamento das metas 24-27'!$A$2:$A$50,0)),\"\")","v":""},{"$f":"IFERROR(INDEX(Financeiro[Fonte],MATCH(A30,IdentAcoes[ID Ação])),\"\")","v":0},{"$f":"IFERROR(INDEX(Financeiro[R$  Planejado (2024)],MATCH($A30,IdentAcoes[ID Ação])),\"\")","v":0},{"$f":"IFERROR(INDEX(Financeiro[R$  Planejado (2025)],MATCH($A30,IdentAcoes[ID Ação])),\"\")","v":0},{"$f":"IFERROR(INDEX(Financeiro[R$  Planejado (2026)],MATCH($A30,IdentAcoes[ID Ação])),\"\")","v":0},{"$f":"IFERROR(INDEX(Financeiro[R$  Planejado (2027)],MATCH($A30,IdentAcoes[ID Ação])),\"\")","v":0},{"$f":"IFERROR(INDEX(IdentAcoes[SubPDC],MATCH(A30,IdentAcoes[ID Ação],0)),\"\")","v":"3.1 - Sist. esgotamento"},{"$f":"IFERROR(INDEX(IdentAcoes[Prioridade do PDC],MATCH(A30,IdentAcoes[ID Ação],0)),\"\")","v":0},{"$f":"IFERROR(INDEX(IdentAcoes[Segmento do executor],MATCH($A30,IdentAcoes[ID Ação],0)),\"\")","v":"Município"},{"$f":"IFERROR(INDEX(IdentAcoes[Área de abrangência],MATCH($A30,IdentAcoes[ID Ação],0)),\"\")","v":"Bacia"},{"$f":"IFERROR(INDEX(IdentAcoes[Detalhamento da área de abrangência],MATCH($A30,IdentAcoes[ID Ação],0)),\"\")","v":"Municipio que não possuem toda a rede coletora e de afastamento de esgoto ou precisam altera-las"}]
["BPG1324",{"$f":"INDEX(Financeiro[Descrição da ação],MATCH(A31,Financeiro[ID Ação], 0))","v":"T.3.1.2. Execução de obras lineares (rede coletora, emissário por gravidade, interceptores ou coletor tronco) inclusive substituição."},{"$f":"IF(INDEX('Acompanhamento das metas 24-27'!$C$2:$C$50,MATCH(A31,'Acompanhamento das metas 24-27'!$A$2:$A$50,0))<>0,INDEX('Acompanhamento das metas 24-27'!$C$2:$C$50,MATCH(A31,'Acompanhamento das metas 24-27'!$A$2:$A$50,0)),\"\")","v":""},{"$f":"IFERROR(INDEX(Financeiro[Fonte],MATCH(A31,IdentAcoes[ID Ação])),\"\")","v":0},{"$f":"IFERROR(INDEX(Financeiro[R$  Planejado (2024)],MATCH($A31,IdentAcoes[ID Ação])),\"\")","v":0},{"$f":"IFERROR(INDEX(Financeiro[R$  Planejado (2025)],MATCH($A31,IdentAcoes[ID Ação])),\"\")","v":0},{"$f":"IFERROR(INDEX(Financeiro[R$  Planejado (2026)],MATCH($A31,IdentAcoes[ID Ação])),\"\")","v":0},{"$f":"IFERROR(INDEX(Financeiro[R$  Planejado (2027)],MATCH($A31,IdentAcoes[ID Ação])),\"\")","v":0},{"$f":"IFERROR(INDEX(IdentAcoes[SubPDC],MATCH(A31,IdentAcoes[ID Ação],0)),\"\")","v":"3.1 - Sist. esgotamento"},{"$f":"IFERROR(INDEX(IdentAcoes[Prioridade do PDC],MATCH(A31,IdentAcoes[ID Ação],0)),\"\")","v":0},{"$f":"IFERROR(INDEX(IdentAcoes[Segmento do executor],MATCH($A31,IdentAcoes[ID Ação],0)),\"\")","v":"Município"},{"$f":"IFERROR(INDEX(IdentAcoes[Área de abrangência],MATCH($A31,IdentAcoes[ID Ação],0)),\"\")","v":"Bacia"},{"$f":"IFERROR(INDEX(IdentAcoes[Detalhamento da área de abrangência],MATCH($A31,IdentAcoes[ID Ação],0)),\"\")","v":"Municipio que não possuem toda a rede coletora e de afastamento de esgoto ou precisam altera-las"}]
["BPG1324",{"$f":"INDEX(Financeiro[Descrição da ação],MATCH(A32,Financeiro[ID Ação], 0))","v":"T.3.1.2. Execução de obras lineares (rede coletora, emissário por gravidade, interceptores ou coletor tronco) inclusive substituição."},{"$f":"IF(INDEX('Acompanhamento das metas 24-27'!$C$2:$C$50,MATCH(A32,'Acompanhamento das metas 24-27'!$A$2:$A$50,0))<>0,INDEX('Acompanhamento das metas 24-27'!$C$2:$C$50,MATCH(A32,'Acompanhamento das metas 24-27'!$A$2:$A$50,0)),\"\")","v":""},{"$f":"IFERROR(INDEX(Financeiro[Fonte],MATCH(A32,IdentAcoes[ID Ação])),\"\")","v":0},{"$f":"IFERROR(INDEX(Financeiro[R$  Planejado (2024)],MATCH($A32,IdentAcoes[ID Ação])),\"\")","v":0},{"$f":"IFERROR(INDEX(Financeiro[R$  Planejado (2025)],MATCH($A32,IdentAcoes[ID Ação])),\"\")","v":0},{"$f":"IFERROR(INDEX(Financeiro[R$  Planejado (2026)],MATCH($A32,IdentAcoes[ID Ação])),\"\")","v":0},{"$f":"IFERROR(INDEX(Financeiro[R$  Planejado (2027)],MATCH($A32,IdentAcoes[ID Ação])),\"\")","v":0},{"$f":"IFERROR(INDEX(IdentAcoes[SubPDC],MATCH(A32,IdentAcoes[ID Ação],0)),\"\")","v":"3.1 - Sist. esgotamento"},{"$f":"IFERROR(INDEX(IdentAcoes[Prioridade do PDC],MATCH(A32,IdentAcoes[ID Ação],0)),\"\")","v":0},{"$f":"IFERROR(INDEX(IdentAcoes[Segmento do executor],MATCH($A32,IdentAcoes[ID Ação],0)),\"\")","v":"Município"},{"$f":"IFERROR(INDEX(IdentAcoes[Área de abrangência],MATCH($A32,IdentAcoes[ID Ação],0)),\"\")","v":"Bacia"},{"$f":"IFERROR(INDEX(IdentAcoes[Detalhamento da área de abrangência],MATCH($A32,IdentAcoes[ID Ação],0)),\"\")","v":"Municipio que não possuem toda a rede coletora e de afastamento de esgoto ou precisam altera-las"}]
["BPG1424",{"$f":"INDEX(Financeiro[Descrição da ação],MATCH(A33,Financeiro[ID Ação], 0))","v":"T.3.1.3. Projeto (básico e/ou executivos) de reformas, melhorias ou obras localizadas (EEE Estação Elevatória de Esgoto e/ou ETE Estação de tratamento de Esgoto)"},{"$f":"IF(INDEX('Acompanhamento das metas 24-27'!$C$2:$C$50,MATCH(A33,'Acompanhamento das metas 24-27'!$A$2:$A$50,0))<>0,INDEX('Acompanhamento das metas 24-27'!$C$2:$C$50,MATCH(A33,'Acompanhamento das metas 24-27'!$A$2:$A$50,0)),\"\")","v":""},{"$f":"IFERROR(INDEX(Financeiro[Fonte],MATCH(A33,IdentAcoes[ID Ação])),\"\")","v":0},{"$f":"IFERROR(INDEX(Financeiro[R$  Planejado (2024)],MATCH($A33,IdentAcoes[ID Ação])),\"\")","v":0},{"$f":"IFERROR(INDEX(Financeiro[R$  Planejado (2025)],MATCH($A33,IdentAcoes[ID Ação])),\"\")","v":0},{"$f":"IFERROR(INDEX(Financeiro[R$  Planejado (2026)],MATCH($A33,IdentAcoes[ID Ação])),\"\")","v":0},{"$f":"IFERROR(INDEX(Financeiro[R$  Planejado (2027)],MATCH($A33,IdentAcoes[ID Ação])),\"\")","v":0},{"$f":"IFERROR(INDEX(IdentAcoes[SubPDC],MATCH(A33,IdentAcoes[ID Ação],0)),\"\")","v":"3.1 - Sist. esgotamento"},{"$f":"IFERROR(INDEX(IdentAcoes[Prioridade do PDC],MATCH(A33,IdentAcoes[ID Ação],0)),\"\")","v":0},{"$f":"IFERROR(INDEX(IdentAcoes[Segmento do executor],MATCH($A33,IdentAcoes[ID Ação],0)),\"\")","v":"Município"},{"$f":"IFERROR(INDEX(IdentAcoes[Área de abrangência],MATCH($A33,IdentAcoes[ID Ação],0)),\"\")","v":"Bacia"},{"$f":"IFERROR(INDEX(IdentAcoes[Detalhamento da área de abrangência],MATCH($A33,IdentAcoes[ID Ação],0)),\"\")","v":"Municipio que não possuem toda a vazão de esgoto tratada ou necessita de EEE para afastamento e tratmento do esgoto."}]
["BPG1424",{"$f":"INDEX(Financeiro[Descrição da ação],MATCH(A34,Financeiro[ID Ação], 0))","v":"T.3.1.3. Projeto (básico e/ou executivos) de reformas, melhorias ou obras localizadas (EEE Estação Elevatória de Esgoto e/ou ETE Estação de tratamento de Esgoto)"},{"$f":"IF(INDEX('Acompanhamento das metas 24-27'!$C$2:$C$50,MATCH(A34,'Acompanhamento das metas 24-27'!$A$2:$A$50,0))<>0,INDEX('Acompanhamento das metas 24-27'!$C$2:$C$50,MATCH(A34,'Acompanhamento das metas 24-27'!$A$2:$A$50,0)),\"\")","v":""},{"$f":"IFERROR(INDEX(Financeiro[Fonte],MATCH(A34,IdentAcoes[ID Ação])),\"\")","v":0},{"$f":"IFERROR(INDEX(Financeiro[R$  Planejado (2024)],MATCH($A34,IdentAcoes[ID Ação])),\"\")","v":0},{"$f":"IFERROR(INDEX(Financeiro[R$  Planejado (2025)],MATCH($A34,IdentAcoes[ID Ação])),\"\")","v":0},{"$f":"IFERROR(INDEX(Financeiro[R$  Planejado (2026)],MATCH($A34,IdentAcoes[ID Ação])),\"\")","v":0},{"$f":"IFERROR(INDEX(Financeiro[R$  Planejado (2027)],MATCH($A34,IdentAcoes[ID Ação])),\"\")","v":0},{"$f":"IFERROR(INDEX(IdentAcoes[SubPDC],MATCH(A34,IdentAcoes[ID Ação],0)),\"\")","v":"3.1 - Sist. esgotamento"},{"$f":"IFERROR(INDEX(IdentAcoes[Prioridade do PDC],MATCH(A34,IdentAcoes[ID Ação],0)),\"\")","v":0},{"$f":"IFERROR(INDEX(IdentAcoes[Segmento do executor],MATCH($A34,IdentAcoes[ID Ação],0)),\"\")","v":"Município"},{"$f":"IFERROR(INDEX(IdentAcoes[Área de abrangência],MATCH($A34,IdentAcoes[ID Ação],0)),\"\")","v":"Bacia"},{"$f":"IFERROR(INDEX(IdentAcoes[Detalhamento da área de abrangência],MATCH($A34,IdentAcoes[ID Ação],0)),\"\")","v":"Municipio que não possuem toda a vazão de esgoto tratada ou necessita de EEE para afastamento e tratmento do esgoto."}]
["BPG1524",{"$f":"INDEX(Financeiro[Descrição da ação],MATCH(A35,Financeiro[ID Ação], 0))","v":"T.3.1.4. Execução de reformas, melhorias ou obras de EEE e/ou ETE"},{"$f":"IF(INDEX('Acompanhamento das metas 24-27'!$C$2:$C$50,MATCH(A35,'Acompanhamento das metas 24-27'!$A$2:$A$50,0))<>0,INDEX('Acompanhamento das metas 24-27'!$C$2:$C$50,MATCH(A35,'Acompanhamento das metas 24-27'!$A$2:$A$50,0)),\"\")","v":""},{"$f":"IFERROR(INDEX(Financeiro[Fonte],MATCH(A35,IdentAcoes[ID Ação])),\"\")","v":0},{"$f":"IFERROR(INDEX(Financeiro[R$  Planejado (2024)],MATCH($A35,IdentAcoes[ID Ação])),\"\")","v":0},{"$f":"IFERROR(INDEX(Financeiro[R$  Planejado (2025)],MATCH($A35,IdentAcoes[ID Ação])),\"\")","v":0},{"$f":"IFERROR(INDEX(Financeiro[R$  Planejado (2026)],MATCH($A35,IdentAcoes[ID Ação])),\"\")","v":0},{"$f":"IFERROR(INDEX(Financeiro[R$  Planejado (2027)],MATCH($A35,IdentAcoes[ID Ação])),\"\")","v":0},{"$f":"IFERROR(INDEX(IdentAcoes[SubPDC],MATCH(A35,IdentAcoes[ID Ação],0)),\"\")","v":"3.1 - Sist. esgotamento"},{"$f":"IFERROR(INDEX(IdentAcoes[Prioridade do PDC],MATCH(A35,IdentAcoes[ID Ação],0)),\"\")","v":0},{"$f":"IFERROR(INDEX(IdentAcoes[Segmento do executor],MATCH($A35,IdentAcoes[ID Ação],0)),\"\")","v":"Município"},{"$f":"IFERROR(INDEX(IdentAcoes[Área de abrangência],MATCH($A35,IdentAcoes[ID Ação],0)),\"\")","v":"Bacia"},{"$f":"IFERROR(INDEX(IdentAcoes[Detalhamento da área de abrangência],MATCH($A35,IdentAcoes[ID Ação],0)),\"\")","v":"Municipio que não possuem toda a vazão de esgoto tratada ou necessita de EEE para afastamento e tratmento do esgoto."}]
["BPG1524",{"$f":"INDEX(Financeiro[Descrição da ação],MATCH(A36,Financeiro[ID Ação], 0))","v":"T.3.1.4. Execução de reformas, melhorias ou obras de EEE e/ou ETE"},{"$f":"IF(INDEX('Acompanhamento das metas 24-27'!$C$2:$C$50,MATCH(A36,'Acompanhamento das metas 24-27'!$A$2:$A$50,0))<>0,INDEX('Acompanhamento das metas 24-27'!$C$2:$C$50,MATCH(A36,'Acompanhamento das metas 24-27'!$A$2:$A$50,0)),\"\")","v":""},{"$f":"IFERROR(INDEX(Financeiro[Fonte],MATCH(A36,IdentAcoes[ID Ação])),\"\")","v":0},{"$f":"IFERROR(INDEX(Financeiro[R$  Planejado (2024)],MATCH($A36,IdentAcoes[ID Ação])),\"\")","v":0},{"$f":"IFERROR(INDEX(Financeiro[R$  Planejado (2025)],MATCH($A36,IdentAcoes[ID Ação])),\"\")","v":0},{"$f":"IFERROR(INDEX(Financeiro[R$  Planejado (2026)],MATCH($A36,IdentAcoes[ID Ação])),\"\")","v":0},{"$f":"IFERROR(INDEX(Financeiro[R$  Planejado (2027)],MATCH($A36,IdentAcoes[ID Ação])),\"\")","v":0},{"$f":"IFERROR(INDEX(IdentAcoes[SubPDC],MATCH(A36,IdentAcoes[ID Ação],0)),\"\")","v":"3.1 - Sist. esgotamento"},{"$f":"IFERROR(INDEX(IdentAcoes[Prioridade do PDC],MATCH(A36,IdentAcoes[ID Ação],0)),\"\")","v":0},{"$f":"IFERROR(INDEX(IdentAcoes[Segmento do executor],MATCH($A36,IdentAcoes[ID Ação],0)),\"\")","v":"Município"},{"$f":"IFERROR(INDEX(IdentAcoes[Área de abrangência],MATCH($A36,IdentAcoes[ID Ação],0)),\"\")","v":"Bacia"},{"$f":"IFERROR(INDEX(IdentAcoes[Detalhamento da área de abrangência],MATCH($A36,IdentAcoes[ID Ação],0)),\"\")","v":"Municipio que não possuem toda a vazão de esgoto tratada ou necessita de EEE para afastamento e tratmento do esgoto."}]
["BPG1624",{"$f":"INDEX(Financeiro[Descrição da ação],MATCH(A37,Financeiro[ID Ação], 0))","v":"T.3.1.6. Projeto de sistema de tratamento de lodo de ETE ou ETA"},{"$f":"IF(INDEX('Acompanhamento das metas 24-27'!$C$2:$C$50,MATCH(A37,'Acompanhamento das metas 24-27'!$A$2:$A$50,0))<>0,INDEX('Acompanhamento das metas 24-27'!$C$2:$C$50,MATCH(A37,'Acompanhamento das metas 24-27'!$A$2:$A$50,0)),\"\")","v":""},{"$f":"IFERROR(INDEX(Financeiro[Fonte],MATCH(A37,IdentAcoes[ID Ação])),\"\")","v":0},{"$f":"IFERROR(INDEX(Financeiro[R$  Planejado (2024)],MATCH($A37,IdentAcoes[ID Ação])),\"\")","v":0},{"$f":"IFERROR(INDEX(Financeiro[R$  Planejado (2025)],MATCH($A37,IdentAcoes[ID Ação])),\"\")","v":0},{"$f":"IFERROR(INDEX(Financeiro[R$  Planejado (2026)],MATCH($A37,IdentAcoes[ID Ação])),\"\")","v":0},{"$f":"IFERROR(INDEX(Financeiro[R$  Planejado (2027)],MATCH($A37,IdentAcoes[ID Ação])),\"\")","v":0},{"$f":"IFERROR(INDEX(IdentAcoes[SubPDC],MATCH(A37,IdentAcoes[ID Ação],0)),\"\")","v":"3.1 - Sist. esgotamento"},{"$f":"IFERROR(INDEX(IdentAcoes[Prioridade do PDC],MATCH(A37,IdentAcoes[ID Ação],0)),\"\")","v":0},{"$f":"IFERROR(INDEX(IdentAcoes[Segmento do executor],MATCH($A37,IdentAcoes[ID Ação],0)),\"\")","v":"Município"},{"$f":"IFERROR(INDEX(IdentAcoes[Área de abrangência],MATCH($A37,IdentAcoes[ID Ação],0)),\"\")","v":"Bacia"},{"$f":"IFERROR(INDEX(IdentAcoes[Detalhamento da área de abrangência],MATCH($A37,IdentAcoes[ID Ação],0)),\"\")","v":"Municipio que não possuem toda a vazão de esgoto tratada ou necessita de EEE para afastamento e tratmento do esgotp ou tratamento do lodo de ETA"}]
["BPG1624",{"$f":"INDEX(Financeiro[Descrição da ação],MATCH(A38,Financeiro[ID Ação], 0))","v":"T.3.1.6. Projeto de sistema de tratamento de lodo de ETE ou ETA"},{"$f":"IF(INDEX('Acompanhamento das metas 24-27'!$C$2:$C$50,MATCH(A38,'Acompanhamento das metas 24-27'!$A$2:$A$50,0))<>0,INDEX('Acompanhamento das metas 24-27'!$C$2:$C$50,MATCH(A38,'Acompanhamento das metas 24-27'!$A$2:$A$50,0)),\"\")","v":""},{"$f":"IFERROR(INDEX(Financeiro[Fonte],MATCH(A38,IdentAcoes[ID Ação])),\"\")","v":0},{"$f":"IFERROR(INDEX(Financeiro[R$  Planejado (2024)],MATCH($A38,IdentAcoes[ID Ação])),\"\")","v":0},{"$f":"IFERROR(INDEX(Financeiro[R$  Planejado (2025)],MATCH($A38,IdentAcoes[ID Ação])),\"\")","v":0},{"$f":"IFERROR(INDEX(Financeiro[R$  Planejado (2026)],MATCH($A38,IdentAcoes[ID Ação])),\"\")","v":0},{"$f":"IFERROR(INDEX(Financeiro[R$  Planejado (2027)],MATCH($A38,IdentAcoes[ID Ação])),\"\")","v":0},{"$f":"IFERROR(INDEX(IdentAcoes[SubPDC],MATCH(A38,IdentAcoes[ID Ação],0)),\"\")","v":"3.1 - Sist. esgotamento"},{"$f":"IFERROR(INDEX(IdentAcoes[Prioridade do PDC],MATCH(A38,IdentAcoes[ID Ação],0)),\"\")","v":0},{"$f":"IFERROR(INDEX(IdentAcoes[Segmento do executor],MATCH($A38,IdentAcoes[ID Ação],0)),\"\")","v":"Município"},{"$f":"IFERROR(INDEX(IdentAcoes[Área de abrangência],MATCH($A38,IdentAcoes[ID Ação],0)),\"\")","v":"Bacia"},{"$f":"IFERROR(INDEX(IdentAcoes[Detalhamento da área de abrangência],MATCH($A38,IdentAcoes[ID Ação],0)),\"\")","v":"Municipio que não possuem toda a vazão de esgoto tratada ou necessita de EEE para afastamento e tratmento do esgotp ou tratamento do lodo de ETA"}]
["BPG1724",{"$f":"INDEX(Financeiro[Descrição da ação],MATCH(A39,Financeiro[ID Ação], 0))","v":"T.3.1.7. Execução de sistema de tratamento de lodo de ETE ou ETA"},{"$f":"IF(INDEX('Acompanhamento das metas 24-27'!$C$2:$C$50,MATCH(A39,'Acompanhamento das metas 24-27'!$A$2:$A$50,0))<>0,INDEX('Acompanhamento das metas 24-27'!$C$2:$C$50,MATCH(A39,'Acompanhamento das metas 24-27'!$A$2:$A$50,0)),\"\")","v":""},{"$f":"IFERROR(INDEX(Financeiro[Fonte],MATCH(A39,IdentAcoes[ID Ação])),\"\")","v":0},{"$f":"IFERROR(INDEX(Financeiro[R$  Planejado (2024)],MATCH($A39,IdentAcoes[ID Ação])),\"\")","v":0},{"$f":"IFERROR(INDEX(Financeiro[R$  Planejado (2025)],MATCH($A39,IdentAcoes[ID Ação])),\"\")","v":0},{"$f":"IFERROR(INDEX(Financeiro[R$  Planejado (2026)],MATCH($A39,IdentAcoes[ID Ação])),\"\")","v":0},{"$f":"IFERROR(INDEX(Financeiro[R$  Planejado (2027)],MATCH($A39,IdentAcoes[ID Ação])),\"\")","v":0},{"$f":"IFERROR(INDEX(IdentAcoes[SubPDC],MATCH(A39,IdentAcoes[ID Ação],0)),\"\")","v":"3.1 - Sist. esgotamento"},{"$f":"IFERROR(INDEX(IdentAcoes[Prioridade do PDC],MATCH(A39,IdentAcoes[ID Ação],0)),\"\")","v":0},{"$f":"IFERROR(INDEX(IdentAcoes[Segmento do executor],MATCH($A39,IdentAcoes[ID Ação],0)),\"\")","v":"Município"},{"$f":"IFERROR(INDEX(IdentAcoes[Área de abrangência],MATCH($A39,IdentAcoes[ID Ação],0)),\"\")","v":"Bacia"},{"$f":"IFERROR(INDEX(IdentAcoes[Detalhamento da área de abrangência],MATCH($A39,IdentAcoes[ID Ação],0)),\"\")","v":"Municipio que não possuem toda a vazão de esgoto tratada ou necessita de EEE para afastamento e tratmento do esgotp ou tratamento do lodo de ETA"}]
["BPG1724",{"$f":"INDEX(Financeiro[Descrição da ação],MATCH(A40,Financeiro[ID Ação], 0))","v":"T.3.1.7. Execução de sistema de tratamento de lodo de ETE ou ETA"},{"$f":"IF(INDEX('Acompanhamento das metas 24-27'!$C$2:$C$50,MATCH(A40,'Acompanhamento das metas 24-27'!$A$2:$A$50,0))<>0,INDEX('Acompanhamento das metas 24-27'!$C$2:$C$50,MATCH(A40,'Acompanhamento das metas 24-27'!$A$2:$A$50,0)),\"\")","v":""},{"$f":"IFERROR(INDEX(Financeiro[Fonte],MATCH(A40,IdentAcoes[ID Ação])),\"\")","v":0},{"$f":"IFERROR(INDEX(Financeiro[R$  Planejado (2024)],MATCH($A40,IdentAcoes[ID Ação])),\"\")","v":0},{"$f":"IFERROR(INDEX(Financeiro[R$  Planejado (2025)],MATCH($A40,IdentAcoes[ID Ação])),\"\")","v":0},{"$f":"IFERROR(INDEX(Financeiro[R$  Planejado (2026)],MATCH($A40,IdentAcoes[ID Ação])),\"\")","v":0},{"$f":"IFERROR(INDEX(Financeiro[R$  Planejado (2027)],MATCH($A40,IdentAcoes[ID Ação])),\"\")","v":0},{"$f":"IFERROR(INDEX(IdentAcoes[SubPDC],MATCH(A40,IdentAcoes[ID Ação],0)),\"\")","v":"3.1 - Sist. esgotamento"},{"$f":"IFERROR(INDEX(IdentAcoes[Prioridade do PDC],MATCH(A40,IdentAcoes[ID Ação],0)),\"\")","v":0},{"$f":"IFERROR(INDEX(IdentAcoes[Segmento do executor],MATCH($A40,IdentAcoes[ID Ação],0)),\"\")","v":"Município"},{"$f":"IFERROR(INDEX(IdentAcoes[Área de abrangência],MATCH($A40,IdentAcoes[ID Ação],0)),\"\")","v":"Bacia"},{"$f":"IFERROR(INDEX(IdentAcoes[Detalhamento da área de abrangência],MATCH($A40,IdentAcoes[ID Ação],0)),\"\")","v":"Municipio que não possuem toda a vazão de esgoto tratada ou necessita de EEE para afastamento e tratmento do esgotp ou tratamento do lodo de ETA"}]
["BPG1824",{"$f":"INDEX(Financeiro[Descrição da ação],MATCH(A41,Financeiro[ID Ação], 0))","v":"T.3.2.1 . Projetos (básicos e/ou executivos) de recuperação de áreas contaminadas"},{"$f":"IF(INDEX('Acompanhamento das metas 24-27'!$C$2:$C$50,MATCH(A41,'Acompanhamento das metas 24-27'!$A$2:$A$50,0))<>0,INDEX('Acompanhamento das metas 24-27'!$C$2:$C$50,MATCH(A41,'Acompanhamento das metas 24-27'!$A$2:$A$50,0)),\"\")","v":""},{"$f":"IFERROR(INDEX(Financeiro[Fonte],MATCH(A41,IdentAcoes[ID Ação])),\"\")","v":0},{"$f":"IFERROR(INDEX(Financeiro[R$  Planejado (2024)],MATCH($A41,IdentAcoes[ID Ação])),\"\")","v":0},{"$f":"IFERROR(INDEX(Financeiro[R$  Planejado (2025)],MATCH($A41,IdentAcoes[ID Ação])),\"\")","v":0},{"$f":"IFERROR(INDEX(Financeiro[R$  Planejado (2026)],MATCH($A41,IdentAcoes[ID Ação])),\"\")","v":0},{"$f":"IFERROR(INDEX(Financeiro[R$  Planejado (2027)],MATCH($A41,IdentAcoes[ID Ação])),\"\")","v":0},{"$f":"IFERROR(INDEX(IdentAcoes[SubPDC],MATCH(A41,IdentAcoes[ID Ação],0)),\"\")","v":"3.2. Áreas contaminadas e poluição difusa"},{"$f":"IFERROR(INDEX(IdentAcoes[Prioridade do PDC],MATCH(A41,IdentAcoes[ID Ação],0)),\"\")","v":0},{"$f":"IFERROR(INDEX(IdentAcoes[Segmento do executor],MATCH($A41,IdentAcoes[ID Ação],0)),\"\")","v":"Município"},{"$f":"IFERROR(INDEX(IdentAcoes[Área de abrangência],MATCH($A41,IdentAcoes[ID Ação],0)),\"\")","v":"Bacia"},{"$f":"IFERROR(INDEX(IdentAcoes[Detalhamento da área de abrangência],MATCH($A41,IdentAcoes[ID Ação],0)),\"\")","v":"Municipio que possuem área contaminada por chorume ou necrochorume ou de postos de combustiveis abandonados"}]
["BPG1824",{"$f":"INDEX(Financeiro[Descrição da ação],MATCH(A42,Financeiro[ID Ação], 0))","v":"T.3.2.1 . Projetos (básicos e/ou executivos) de recuperação de áreas contaminadas"},{"$f":"IF(INDEX('Acompanhamento das metas 24-27'!$C$2:$C$50,MATCH(A42,'Acompanhamento das metas 24-27'!$A$2:$A$50,0))<>0,INDEX('Acompanhamento das metas 24-27'!$C$2:$C$50,MATCH(A42,'Acompanhamento das metas 24-27'!$A$2:$A$50,0)),\"\")","v":""},{"$f":"IFERROR(INDEX(Financeiro[Fonte],MATCH(A42,IdentAcoes[ID Ação])),\"\")","v":0},{"$f":"IFERROR(INDEX(Financeiro[R$  Planejado (2024)],MATCH($A42,IdentAcoes[ID Ação])),\"\")","v":0},{"$f":"IFERROR(INDEX(Financeiro[R$  Planejado (2025)],MATCH($A42,IdentAcoes[ID Ação])),\"\")","v":0},{"$f":"IFERROR(INDEX(Financeiro[R$  Planejado (2026)],MATCH($A42,IdentAcoes[ID Ação])),\"\")","v":0},{"$f":"IFERROR(INDEX(Financeiro[R$  Planejado (2027)],MATCH($A42,IdentAcoes[ID Ação])),\"\")","v":0},{"$f":"IFERROR(INDEX(IdentAcoes[SubPDC],MATCH(A42,IdentAcoes[ID Ação],0)),\"\")","v":"3.2. Áreas contaminadas e poluição difusa"},{"$f":"IFERROR(INDEX(IdentAcoes[Prioridade do PDC],MATCH(A42,IdentAcoes[ID Ação],0)),\"\")","v":0},{"$f":"IFERROR(INDEX(IdentAcoes[Segmento do executor],MATCH($A42,IdentAcoes[ID Ação],0)),\"\")","v":"Município"},{"$f":"IFERROR(INDEX(IdentAcoes[Área de abrangência],MATCH($A42,IdentAcoes[ID Ação],0)),\"\")","v":"Bacia"},{"$f":"IFERROR(INDEX(IdentAcoes[Detalhamento da área de abrangência],MATCH($A42,IdentAcoes[ID Ação],0)),\"\")","v":"Municipio que possuem área contaminada por chorume ou necrochorume ou de postos de combustiveis abandonados"}]
["BPG1824",{"$f":"INDEX(Financeiro[Descrição da ação],MATCH(A43,Financeiro[ID Ação], 0))","v":"T.3.2.1 . Projetos (básicos e/ou executivos) de recuperação de áreas contaminadas"},{"$f":"IF(INDEX('Acompanhamento das metas 24-27'!$C$2:$C$50,MATCH(A43,'Acompanhamento das metas 24-27'!$A$2:$A$50,0))<>0,INDEX('Acompanhamento das metas 24-27'!$C$2:$C$50,MATCH(A43,'Acompanhamento das metas 24-27'!$A$2:$A$50,0)),\"\")","v":""},{"$f":"IFERROR(INDEX(Financeiro[Fonte],MATCH(A43,IdentAcoes[ID Ação])),\"\")","v":0},{"$f":"IFERROR(INDEX(Financeiro[R$  Planejado (2024)],MATCH($A43,IdentAcoes[ID Ação])),\"\")","v":0},{"$f":"IFERROR(INDEX(Financeiro[R$  Planejado (2025)],MATCH($A43,IdentAcoes[ID Ação])),\"\")","v":0},{"$f":"IFERROR(INDEX(Financeiro[R$  Planejado (2026)],MATCH($A43,IdentAcoes[ID Ação])),\"\")","v":0},{"$f":"IFERROR(INDEX(Financeiro[R$  Planejado (2027)],MATCH($A43,IdentAcoes[ID Ação])),\"\")","v":0},{"$f":"IFERROR(INDEX(IdentAcoes[SubPDC],MATCH(A43,IdentAcoes[ID Ação],0)),\"\")","v":"3.2. Áreas contaminadas e poluição difusa"},{"$f":"IFERROR(INDEX(IdentAcoes[Prioridade do PDC],MATCH(A43,IdentAcoes[ID Ação],0)),\"\")","v":0},{"$f":"IFERROR(INDEX(IdentAcoes[Segmento do executor],MATCH($A43,IdentAcoes[ID Ação],0)),\"\")","v":"Município"},{"$f":"IFERROR(INDEX(IdentAcoes[Área de abrangência],MATCH($A43,IdentAcoes[ID Ação],0)),\"\")","v":"Bacia"},{"$f":"IFERROR(INDEX(IdentAcoes[Detalhamento da área de abrangência],MATCH($A43,IdentAcoes[ID Ação],0)),\"\")","v":"Municipio que possuem área contaminada por chorume ou necrochorume ou de postos de combustiveis abandonados"}]
["BPG1924",{"$f":"INDEX(Financeiro[Descrição da ação],MATCH(A44,Financeiro[ID Ação], 0))","v":"T.3.2.2. Execução de serviços, obras ou ações de recuperação de áreas contaminadas"},{"$f":"IF(INDEX('Acompanhamento das metas 24-27'!$C$2:$C$50,MATCH(A44,'Acompanhamento das metas 24-27'!$A$2:$A$50,0))<>0,INDEX('Acompanhamento das metas 24-27'!$C$2:$C$50,MATCH(A44,'Acompanhamento das metas 24-27'!$A$2:$A$50,0)),\"\")","v":""},{"$f":"IFERROR(INDEX(Financeiro[Fonte],MATCH(A44,IdentAcoes[ID Ação])),\"\")","v":0},{"$f":"IFERROR(INDEX(Financeiro[R$  Planejado (2024)],MATCH($A44,IdentAcoes[ID Ação])),\"\")","v":0},{"$f":"IFERROR(INDEX(Financeiro[R$  Planejado (2025)],MATCH($A44,IdentAcoes[ID Ação])),\"\")","v":0},{"$f":"IFERROR(INDEX(Financeiro[R$  Planejado (2026)],MATCH($A44,IdentAcoes[ID Ação])),\"\")","v":0},{"$f":"IFERROR(INDEX(Financeiro[R$  Planejado (2027)],MATCH($A44,IdentAcoes[ID Ação])),\"\")","v":0},{"$f":"IFERROR(INDEX(IdentAcoes[SubPDC],MATCH(A44,IdentAcoes[ID Ação],0)),\"\")","v":"3.2. Áreas contaminadas e poluição difusa"},{"$f":"IFERROR(INDEX(IdentAcoes[Prioridade do PDC],MATCH(A44,IdentAcoes[ID Ação],0)),\"\")","v":0},{"$f":"IFERROR(INDEX(IdentAcoes[Segmento do executor],MATCH($A44,IdentAcoes[ID Ação],0)),\"\")","v":"Município"},{"$f":"IFERROR(INDEX(IdentAcoes[Área de abrangência],MATCH($A44,IdentAcoes[ID Ação],0)),\"\")","v":"Bacia"},{"$f":"IFERROR(INDEX(IdentAcoes[Detalhamento da área de abrangência],MATCH($A44,IdentAcoes[ID Ação],0)),\"\")","v":"Municipio que  possuem área contaminada por chorume ou necrochorume ou de postos de combustiveis abandonados"}]
["BPG1924",{"$f":"INDEX(Financeiro[Descrição da ação],MATCH(A45,Financeiro[ID Ação], 0))","v":"T.3.2.2. Execução de serviços, obras ou ações de recuperação de áreas contaminadas"},{"$f":"IF(INDEX('Acompanhamento das metas 24-27'!$C$2:$C$50,MATCH(A45,'Acompanhamento das metas 24-27'!$A$2:$A$50,0))<>0,INDEX('Acompanhamento das metas 24-27'!$C$2:$C$50,MATCH(A45,'Acompanhamento das metas 24-27'!$A$2:$A$50,0)),\"\")","v":""},{"$f":"IFERROR(INDEX(Financeiro[Fonte],MATCH(A45,IdentAcoes[ID Ação])),\"\")","v":0},{"$f":"IFERROR(INDEX(Financeiro[R$  Planejado (2024)],MATCH($A45,IdentAcoes[ID Ação])),\"\")","v":0},{"$f":"IFERROR(INDEX(Financeiro[R$  Planejado (2025)],MATCH($A45,IdentAcoes[ID Ação])),\"\")","v":0},{"$f":"IFERROR(INDEX(Financeiro[R$  Planejado (2026)],MATCH($A45,IdentAcoes[ID Ação])),\"\")","v":0},{"$f":"IFERROR(INDEX(Financeiro[R$  Planejado (2027)],MATCH($A45,IdentAcoes[ID Ação])),\"\")","v":0},{"$f":"IFERROR(INDEX(IdentAcoes[SubPDC],MATCH(A45,IdentAcoes[ID Ação],0)),\"\")","v":"3.2. Áreas contaminadas e poluição difusa"},{"$f":"IFERROR(INDEX(IdentAcoes[Prioridade do PDC],MATCH(A45,IdentAcoes[ID Ação],0)),\"\")","v":0},{"$f":"IFERROR(INDEX(IdentAcoes[Segmento do executor],MATCH($A45,IdentAcoes[ID Ação],0)),\"\")","v":"Município"},{"$f":"IFERROR(INDEX(IdentAcoes[Área de abrangência],MATCH($A45,IdentAcoes[ID Ação],0)),\"\")","v":"Bacia"},{"$f":"IFERROR(INDEX(IdentAcoes[Detalhamento da área de abrangência],MATCH($A45,IdentAcoes[ID Ação],0)),\"\")","v":"Municipio que  possuem área contaminada por chorume ou necrochorume ou de postos de combustiveis abandonados"}]
["BPG1924",{"$f":"INDEX(Financeiro[Descrição da ação],MATCH(A46,Financeiro[ID Ação], 0))","v":"T.3.2.2. Execução de serviços, obras ou ações de recuperação de áreas contaminadas"},{"$f":"IF(INDEX('Acompanhamento das metas 24-27'!$C$2:$C$50,MATCH(A46,'Acompanhamento das metas 24-27'!$A$2:$A$50,0))<>0,INDEX('Acompanhamento das metas 24-27'!$C$2:$C$50,MATCH(A46,'Acompanhamento das metas 24-27'!$A$2:$A$50,0)),\"\")","v":""},{"$f":"IFERROR(INDEX(Financeiro[Fonte],MATCH(A46,IdentAcoes[ID Ação])),\"\")","v":0},{"$f":"IFERROR(INDEX(Financeiro[R$  Planejado (2024)],MATCH($A46,IdentAcoes[ID Ação])),\"\")","v":0},{"$f":"IFERROR(INDEX(Financeiro[R$  Planejado (2025)],MATCH($A46,IdentAcoes[ID Ação])),\"\")","v":0},{"$f":"IFERROR(INDEX(Financeiro[R$  Planejado (2026)],MATCH($A46,IdentAcoes[ID Ação])),\"\")","v":0},{"$f":"IFERROR(INDEX(Financeiro[R$  Planejado (2027)],MATCH($A46,IdentAcoes[ID Ação])),\"\")","v":0},{"$f":"IFERROR(INDEX(IdentAcoes[SubPDC],MATCH(A46,IdentAcoes[ID Ação],0)),\"\")","v":"3.2. Áreas contaminadas e poluição difusa"},{"$f":"IFERROR(INDEX(IdentAcoes[Prioridade do PDC],MATCH(A46,IdentAcoes[ID Ação],0)),\"\")","v":0},{"$f":"IFERROR(INDEX(IdentAcoes[Segmento do executor],MATCH($A46,IdentAcoes[ID Ação],0)),\"\")","v":"Município"},{"$f":"IFERROR(INDEX(IdentAcoes[Área de abrangência],MATCH($A46,IdentAcoes[ID Ação],0)),\"\")","v":"Bacia"},{"$f":"IFERROR(INDEX(IdentAcoes[Detalhamento da área de abrangência],MATCH($A46,IdentAcoes[ID Ação],0)),\"\")","v":"Municipio que  possuem área contaminada por chorume ou necrochorume ou de postos de combustiveis abandonados"}]
["BPG2024",{"$f":"INDEX(Financeiro[Descrição da ação],MATCH(A47,Financeiro[ID Ação], 0))","v":"T.4.1.1 . Projetos (básicos e/ou executivos) para prevenção e controle de processos erosivos, tais como ravinas, voçorocas e deslizamentos"},{"$f":"IF(INDEX('Acompanhamento das metas 24-27'!$C$2:$C$50,MATCH(A47,'Acompanhamento das metas 24-27'!$A$2:$A$50,0))<>0,INDEX('Acompanhamento das metas 24-27'!$C$2:$C$50,MATCH(A47,'Acompanhamento das metas 24-27'!$A$2:$A$50,0)),\"\")","v":""},{"$f":"IFERROR(INDEX(Financeiro[Fonte],MATCH(A47,IdentAcoes[ID Ação])),\"\")","v":0},{"$f":"IFERROR(INDEX(Financeiro[R$  Planejado (2024)],MATCH($A47,IdentAcoes[ID Ação])),\"\")","v":0},{"$f":"IFERROR(INDEX(Financeiro[R$  Planejado (2025)],MATCH($A47,IdentAcoes[ID Ação])),\"\")","v":0},{"$f":"IFERROR(INDEX(Financeiro[R$  Planejado (2026)],MATCH($A47,IdentAcoes[ID Ação])),\"\")","v":0},{"$f":"IFERROR(INDEX(Financeiro[R$  Planejado (2027)],MATCH($A47,IdentAcoes[ID Ação])),\"\")","v":0},{"$f":"IFERROR(INDEX(IdentAcoes[SubPDC],MATCH(A47,IdentAcoes[ID Ação],0)),\"\")","v":"4.1. Controle de processos erosivos"},{"$f":"IFERROR(INDEX(IdentAcoes[Prioridade do PDC],MATCH(A47,IdentAcoes[ID Ação],0)),\"\")","v":0},{"$f":"IFERROR(INDEX(IdentAcoes[Segmento do executor],MATCH($A47,IdentAcoes[ID Ação],0)),\"\")","v":"Município"},{"$f":"IFERROR(INDEX(IdentAcoes[Área de abrangência],MATCH($A47,IdentAcoes[ID Ação],0)),\"\")","v":"Bacia"},{"$f":"IFERROR(INDEX(IdentAcoes[Detalhamento da área de abrangência],MATCH($A47,IdentAcoes[ID Ação],0)),\"\")","v":"Municipio que possuem processos erosivos  na área urbana ou rural"}]
["BPG2024",{"$f":"INDEX(Financeiro[Descrição da ação],MATCH(A48,Financeiro[ID Ação], 0))","v":"T.4.1.1 . Projetos (básicos e/ou executivos) para prevenção e controle de processos erosivos, tais como ravinas, voçorocas e deslizamentos"},{"$f":"IF(INDEX('Acompanhamento das metas 24-27'!$C$2:$C$50,MATCH(A48,'Acompanhamento das metas 24-27'!$A$2:$A$50,0))<>0,INDEX('Acompanhamento das metas 24-27'!$C$2:$C$50,MATCH(A48,'Acompanhamento das metas 24-27'!$A$2:$A$50,0)),\"\")","v":""},{"$f":"IFERROR(INDEX(Financeiro[Fonte],MATCH(A48,IdentAcoes[ID Ação])),\"\")","v":0},{"$f":"IFERROR(INDEX(Financeiro[R$  Planejado (2024)],MATCH($A48,IdentAcoes[ID Ação])),\"\")","v":0},{"$f":"IFERROR(INDEX(Financeiro[R$  Planejado (2025)],MATCH($A48,IdentAcoes[ID Ação])),\"\")","v":0},{"$f":"IFERROR(INDEX(Financeiro[R$  Planejado (2026)],MATCH($A48,IdentAcoes[ID Ação])),\"\")","v":0},{"$f":"IFERROR(INDEX(Financeiro[R$  Planejado (2027)],MATCH($A48,IdentAcoes[ID Ação])),\"\")","v":0},{"$f":"IFERROR(INDEX(IdentAcoes[SubPDC],MATCH(A48,IdentAcoes[ID Ação],0)),\"\")","v":"4.1. Controle de processos erosivos"},{"$f":"IFERROR(INDEX(IdentAcoes[Prioridade do PDC],MATCH(A48,IdentAcoes[ID Ação],0)),\"\")","v":0},{"$f":"IFERROR(INDEX(IdentAcoes[Segmento do executor],MATCH($A48,IdentAcoes[ID Ação],0)),\"\")","v":"Município"},{"$f":"IFERROR(INDEX(IdentAcoes[Área de abrangência],MATCH($A48,IdentAcoes[ID Ação],0)),\"\")","v":"Bacia"},{"$f":"IFERROR(INDEX(IdentAcoes[Detalhamento da área de abrangência],MATCH($A48,IdentAcoes[ID Ação],0)),\"\")","v":"Municipio que possuem processos erosivos  na área urbana ou rural"}]
["BPG2024",{"$f":"INDEX(Financeiro[Descrição da ação],MATCH(A49,Financeiro[ID Ação], 0))","v":"T.4.1.1 . Projetos (básicos e/ou executivos) para prevenção e controle de processos erosivos, tais como ravinas, voçorocas e deslizamentos"},{"$f":"IF(INDEX('Acompanhamento das metas 24-27'!$C$2:$C$50,MATCH(A49,'Acompanhamento das metas 24-27'!$A$2:$A$50,0))<>0,INDEX('Acompanhamento das metas 24-27'!$C$2:$C$50,MATCH(A49,'Acompanhamento das metas 24-27'!$A$2:$A$50,0)),\"\")","v":""},{"$f":"IFERROR(INDEX(Financeiro[Fonte],MATCH(A49,IdentAcoes[ID Ação])),\"\")","v":0},{"$f":"IFERROR(INDEX(Financeiro[R$  Planejado (2024)],MATCH($A49,IdentAcoes[ID Ação])),\"\")","v":0},{"$f":"IFERROR(INDEX(Financeiro[R$  Planejado (2025)],MATCH($A49,IdentAcoes[ID Ação])),\"\")","v":0},{"$f":"IFERROR(INDEX(Financeiro[R$  Planejado (2026)],MATCH($A49,IdentAcoes[ID Ação])),\"\")","v":0},{"$f":"IFERROR(INDEX(Financeiro[R$  Planejado (2027)],MATCH($A49,IdentAcoes[ID Ação])),\"\")","v":0},{"$f":"IFERROR(INDEX(IdentAcoes[SubPDC],MATCH(A49,IdentAcoes[ID Ação],0)),\"\")","v":"4.1. Controle de processos erosivos"},{"$f":"IFERROR(INDEX(IdentAcoes[Prioridade do PDC],MATCH(A49,IdentAcoes[ID Ação],0)),\"\")","v":0},{"$f":"IFERROR(INDEX(IdentAcoes[Segmento do executor],MATCH($A49,IdentAcoes[ID Ação],0)),\"\")","v":"Município"},{"$f":"IFERROR(INDEX(IdentAcoes[Área de abrangência],MATCH($A49,IdentAcoes[ID Ação],0)),\"\")","v":"Bacia"},{"$f":"IFERROR(INDEX(IdentAcoes[Detalhamento da área de abrangência],MATCH($A49,IdentAcoes[ID Ação],0)),\"\")","v":"Municipio que possuem processos erosivos  na área urbana ou rural"}]
["BPG2024",{"$f":"INDEX(Financeiro[Descrição da ação],MATCH(A50,Financeiro[ID Ação], 0))","v":"T.4.1.1 . Projetos (básicos e/ou executivos) para prevenção e controle de processos erosivos, tais como ravinas, voçorocas e deslizamentos"},{"$f":"IF(INDEX('Acompanhamento das metas 24-27'!$C$2:$C$50,MATCH(A50,'Acompanhamento das metas 24-27'!$A$2:$A$50,0))<>0,INDEX('Acompanhamento das metas 24-27'!$C$2:$C$50,MATCH(A50,'Acompanhamento das metas 24-27'!$A$2:$A$50,0)),\"\")","v":""},{"$f":"IFERROR(INDEX(Financeiro[Fonte],MATCH(A50,IdentAcoes[ID Ação])),\"\")","v":0},{"$f":"IFERROR(INDEX(Financeiro[R$  Planejado (2024)],MATCH($A50,IdentAcoes[ID Ação])),\"\")","v":0},{"$f":"IFERROR(INDEX(Financeiro[R$  Planejado (2025)],MATCH($A50,IdentAcoes[ID Ação])),\"\")","v":0},{"$f":"IFERROR(INDEX(Financeiro[R$  Planejado (2026)],MATCH($A50,IdentAcoes[ID Ação])),\"\")","v":0},{"$f":"IFERROR(INDEX(Financeiro[R$  Planejado (2027)],MATCH($A50,IdentAcoes[ID Ação])),\"\")","v":0},{"$f":"IFERROR(INDEX(IdentAcoes[SubPDC],MATCH(A50,IdentAcoes[ID Ação],0)),\"\")","v":"4.1. Controle de processos erosivos"},{"$f":"IFERROR(INDEX(IdentAcoes[Prioridade do PDC],MATCH(A50,IdentAcoes[ID Ação],0)),\"\")","v":0},{"$f":"IFERROR(INDEX(IdentAcoes[Segmento do executor],MATCH($A50,IdentAcoes[ID Ação],0)),\"\")","v":"Município"},{"$f":"IFERROR(INDEX(IdentAcoes[Área de abrangência],MATCH($A50,IdentAcoes[ID Ação],0)),\"\")","v":"Bacia"},{"$f":"IFERROR(INDEX(IdentAcoes[Detalhamento da área de abrangência],MATCH($A50,IdentAcoes[ID Ação],0)),\"\")","v":"Municipio que possuem processos erosivos  na área urbana ou rural"}]
["BPG2124",{"$f":"INDEX(Financeiro[Descrição da ação],MATCH(A51,Financeiro[ID Ação], 0))","v":"T.4.1.3. Projetos (básicos e/ou executivos) para proteção e/ou contenção de margens de curso dagua"},null,{"$f":"IFERROR(INDEX(Financeiro[Fonte],MATCH(A51,IdentAcoes[ID Ação])),\"\")","v":0},{"$f":"IFERROR(INDEX(Financeiro[R$  Planejado (2024)],MATCH($A51,IdentAcoes[ID Ação])),\"\")","v":0},{"$f":"IFERROR(INDEX(Financeiro[R$  Planejado (2025)],MATCH($A51,IdentAcoes[ID Ação])),\"\")","v":0},{"$f":"IFERROR(INDEX(Financeiro[R$  Planejado (2026)],MATCH($A51,IdentAcoes[ID Ação])),\"\")","v":0},{"$f":"IFERROR(INDEX(Financeiro[R$  Planejado (2027)],MATCH($A51,IdentAcoes[ID Ação])),\"\")","v":0},{"$f":"IFERROR(INDEX(IdentAcoes[SubPDC],MATCH(A51,IdentAcoes[ID Ação],0)),\"\")","v":"4.1. Controle de processos erosivos"},{"$f":"IFERROR(INDEX(IdentAcoes[Prioridade do PDC],MATCH(A51,IdentAcoes[ID Ação],0)),\"\")","v":0},{"$f":"IFERROR(INDEX(IdentAcoes[Segmento do executor],MATCH($A51,IdentAcoes[ID Ação],0)),\"\")","v":"Município"},{"$f":"IFERROR(INDEX(IdentAcoes[Área de abrangência],MATCH($A51,IdentAcoes[ID Ação],0)),\"\")","v":"Bacia"},{"$f":"IFERROR(INDEX(IdentAcoes[Detalhamento da área de abrangência],MATCH($A51,IdentAcoes[ID Ação],0)),\"\")","v":"Municipio que possuem processos erosivos  na área urbana ou rural"}]

{"sheet":"Consolidaçao - 1","index":8,"n_rows":38,"n_cols":19,"rows_kept":38,"cut":false,"hidden":true,"merged":[]}
["Delib. 190",null,"2021 (R$ Estimado)",null,null,null,null,"Delib. 246","2022 (R$ Estimado)",null,null,null,null,"2023 (R$ Estimado)",null,null,null,null,"2022 - 2023  (R$ Estimado)"]
["SubPDC","CFURH","Cobrança Estadual","Cobrança Federal","Outras","TOTAL",null,"SubPDC","CFURH","Cobrança Estadual","Cobrança Federal","Outras","TOTAL","CFURH","Cobrança Estadual","Cobrança Federal","Outras","TOTAL","TOTAL"]
["1.1 - SI",{"$f":"SUMIFS(#REF!,#REF!,A3,#REF!,2021)","v":{"$error":"#REF!"}},{"$f":"SUMIFS(#REF!,#REF!,A3,#REF!,2021)","v":{"$error":"#REF!"}},{"$f":"SUMIFS(#REF!,#REF!,A3,#REF!,2021)","v":{"$error":"#REF!"}},{"$f":"SUMIFS(#REF!,#REF!,A3,#REF!,2021)","v":{"$error":"#REF!"}},{"$f":"SUM(B3:E3)","v":{"$error":"#REF!"}},null,"1.1 - Legislação",{"$f":"SUMIFS(PAPI20_22_23[Recurso financeiro estimado no ano (R$) - CFURH],PAPI20_22_23[SubPDC],'Consolidaçao - 1'!H3,PAPI20_22_23[Ano previsto para início],2022)","v":0},{"$f":"SUMIFS(PAPI20_22_23[Recurso financeiro estimado no ano\n(R$) - Cobrança Estadual],PAPI20_22_23[SubPDC],'Consolidaçao - 1'!H3,PAPI20_22_23[Ano previsto para início],2022)","v":0},{"$f":"SUMIFS(PAPI20_22_23[Recurso financeiro estimado no ano\n(R$) - Cobrança Federal],PAPI20_22_23[SubPDC],'Consolidaçao - 1'!H3,PAPI20_22_23[Ano previsto para início],2022)","v":0},{"$f":"SUMIFS(PAPI20_22_23[Recurso financeiro estimado no ano (R$) - Outras],PAPI20_22_23[SubPDC],'Consolidaçao - 1'!H3,PAPI20_22_23[Ano previsto para início],2022)","v":0},{"$f":"SUM(I3:L3)","v":0},{"$f":"SUMIFS(PAPI20_22_23[Recurso financeiro estimado no ano (R$) - CFURH],PAPI20_22_23[SubPDC],'Consolidaçao - 1'!H3,PAPI20_22_23[Ano previsto para início],2023)","v":0},{"$f":"SUMIFS(PAPI20_22_23[Recurso financeiro estimado no ano\n(R$) - Cobrança Estadual],PAPI20_22_23[SubPDC],'Consolidaçao - 1'!M3,PAPI20_22_23[Ano previsto para início],2023)","v":0},{"$f":"SUMIFS(PAPI20_22_23[Recurso financeiro estimado no ano\n(R$) - Cobrança Federal],PAPI20_22_23[SubPDC],'Consolidaçao - 1'!M3,PAPI20_22_23[Ano previsto para início],2023)","v":0},{"$f":"SUMIFS(PAPI20_22_23[Recurso financeiro estimado no ano (R$) - Outras],PAPI20_22_23[SubPDC],'Consolidaçao - 1'!M3,PAPI20_22_23[Ano previsto para início],2023)","v":0},{"$f":"SUM(N3:Q3)","v":0},{"$f":"SUM(M3,R3)","v":0}]
["1.2 - Planejamento",{"$f":"SUMIFS(#REF!,#REF!,A4,#REF!,2021)","v":{"$error":"#REF!"}},{"$f":"SUMIFS(#REF!,#REF!,A4,#REF!,2021)","v":{"$error":"#REF!"}},{"$f":"SUMIFS(#REF!,#REF!,A4,#REF!,2021)","v":{"$error":"#REF!"}},{"$f":"SUMIFS(#REF!,#REF!,A4,#REF!,2021)","v":{"$error":"#REF!"}},{"$error":"#REF!"},null,"1.2 - Planejamento",{"$f":"SUMIFS(PAPI20_22_23[Recurso financeiro estimado no ano (R$) - CFURH],PAPI20_22_23[SubPDC],'Consolidaçao - 1'!H4,PAPI20_22_23[Ano previsto para início],2022)","v":0},{"$f":"SUMIFS(PAPI20_22_23[Recurso financeiro estimado no ano\n(R$) - Cobrança Estadual],PAPI20_22_23[SubPDC],'Consolidaçao - 1'!H4,PAPI20_22_23[Ano previsto para início],2022)","v":0},{"$f":"SUMIFS(PAPI20_22_23[Recurso financeiro estimado no ano\n(R$) - Cobrança Federal],PAPI20_22_23[SubPDC],'Consolidaçao - 1'!H4,PAPI20_22_23[Ano previsto para início],2022)","v":0},{"$f":"SUMIFS(PAPI20_22_23[Recurso financeiro estimado no ano (R$) - Outras],PAPI20_22_23[SubPDC],'Consolidaçao - 1'!H4,PAPI20_22_23[Ano previsto para início],2022)","v":0},0,{"$f":"SUMIFS(PAPI20_22_23[Recurso financeiro estimado no ano (R$) - CFURH],PAPI20_22_23[SubPDC],'Consolidaçao - 1'!H4,PAPI20_22_23[Ano previsto para início],2023)","v":0},{"$f":"SUMIFS(PAPI20_22_23[Recurso financeiro estimado no ano\n(R$) - Cobrança Estadual],PAPI20_22_23[SubPDC],'Consolidaçao - 1'!M4,PAPI20_22_23[Ano previsto para início],2023)","v":0},{"$f":"SUMIFS(PAPI20_22_23[Recurso financeiro estimado no ano\n(R$) - Cobrança Federal],PAPI20_22_23[SubPDC],'Consolidaçao - 1'!M4,PAPI20_22_23[Ano previsto para início],2023)","v":0},{"$f":"SUMIFS(PAPI20_22_23[Recurso financeiro estimado no ano (R$) - Outras],PAPI20_22_23[SubPDC],'Consolidaçao - 1'!M4,PAPI20_22_23[Ano previsto para início],2023)","v":0},0,{"$f":"SUM(M4,R4)","v":0}]
["1.3 - Enquadramento",{"$f":"SUMIFS(#REF!,#REF!,A5,#REF!,2021)","v":{"$error":"#REF!"}},{"$f":"SUMIFS(#REF!,#REF!,A5,#REF!,2021)","v":{"$error":"#REF!"}},{"$f":"SUMIFS(#REF!,#REF!,A5,#REF!,2021)","v":{"$error":"#REF!"}},{"$f":"SUMIFS(#REF!,#REF!,A5,#REF!,2021)","v":{"$error":"#REF!"}},{"$error":"#REF!"},null,"2.1 - Plano",{"$f":"SUMIFS(PAPI20_22_23[Recurso financeiro estimado no ano (R$) - CFURH],PAPI20_22_23[SubPDC],'Consolidaçao - 1'!H5,PAPI20_22_23[Ano previsto para início],2022)","v":0},{"$f":"SUMIFS(PAPI20_22_23[Recurso financeiro estimado no ano\n(R$) - Cobrança Estadual],PAPI20_22_23[SubPDC],'Consolidaçao - 1'!H5,PAPI20_22_23[Ano previsto para início],2022)","v":0},{"$f":"SUMIFS(PAPI20_22_23[Recurso financeiro estimado no ano\n(R$) - Cobrança Federal],PAPI20_22_23[SubPDC],'Consolidaçao - 1'!H5,PAPI20_22_23[Ano previsto para início],2022)","v":0},{"$f":"SUMIFS(PAPI20_22_23[Recurso financeiro estimado no ano (R$) - Outras],PAPI20_22_23[SubPDC],'Consolidaçao - 1'!H5,PAPI20_22_23[Ano previsto para início],2022)","v":0},0,{"$f":"SUMIFS(PAPI20_22_23[Recurso financeiro estimado no ano (R$) - CFURH],PAPI20_22_23[SubPDC],'Consolidaçao - 1'!H5,PAPI20_22_23[Ano previsto para início],2023)","v":0},{"$f":"SUMIFS(PAPI20_22_23[Recurso financeiro estimado no ano\n(R$) - Cobrança Estadual],PAPI20_22_23[SubPDC],'Consolidaçao - 1'!M5,PAPI20_22_23[Ano previsto para início],2023)","v":0},{"$f":"SUMIFS(PAPI20_22_23[Recurso financeiro estimado no ano\n(R$) - Cobrança Federal],PAPI20_22_23[SubPDC],'Consolidaçao - 1'!M5,PAPI20_22_23[Ano previsto para início],2023)","v":0},{"$f":"SUMIFS(PAPI20_22_23[Recurso financeiro estimado no ano (R$) - Outras],PAPI20_22_23[SubPDC],'Consolidaçao - 1'!M5,PAPI20_22_23[Ano previsto para início],2023)","v":0},0,0]
["1.4 - Monitoramento",{"$f":"SUMIFS(#REF!,#REF!,A6,#REF!,2021)","v":{"$error":"#REF!"}},{"$f":"SUMIFS(#REF!,#REF!,A6,#REF!,2021)","v":{"$error":"#REF!"}},{"$f":"SUMIFS(#REF!,#REF!,A6,#REF!,2021)","v":{"$error":"#REF!"}},{"$f":"SUMIFS(#REF!,#REF!,A6,#REF!,2021)","v":{"$error":"#REF!"}},{"$error":"#REF!"},null,"2.2 - Outorga",{"$f":"SUMIFS(PAPI20_22_23[Recurso financeiro estimado no ano (R$) - CFURH],PAPI20_22_23[SubPDC],'Consolidaçao - 1'!H6,PAPI20_22_23[Ano previsto para início],2022)","v":0},{"$f":"SUMIFS(PAPI20_22_23[Recurso financeiro estimado no ano\n(R$) - Cobrança Estadual],PAPI20_22_23[SubPDC],'Consolidaçao - 1'!H6,PAPI20_22_23[Ano previsto para início],2022)","v":0},{"$f":"SUMIFS(PAPI20_22_23[Recurso financeiro estimado no ano\n(R$) - Cobrança Federal],PAPI20_22_23[SubPDC],'Consolidaçao - 1'!H6,PAPI20_22_23[Ano previsto para início],2022)","v":0},{"$f":"SUMIFS(PAPI20_22_23[Recurso financeiro estimado no ano (R$) - Outras],PAPI20_22_23[SubPDC],'Consolidaçao - 1'!H6,PAPI20_22_23[Ano previsto para início],2022)","v":0},0,{"$f":"SUMIFS(PAPI20_22_23[Recurso financeiro estimado no ano (R$) - CFURH],PAPI20_22_23[SubPDC],'Consolidaçao - 1'!H6,PAPI20_22_23[Ano previsto para início],2023)","v":0},{"$f":"SUMIFS(PAPI20_22_23[Recurso financeiro estimado no ano\n(R$) - Cobrança Estadual],PAPI20_22_23[SubPDC],'Consolidaçao - 1'!M6,PAPI20_22_23[Ano previsto para início],2023)","v":0},{"$f":"SUMIFS(PAPI20_22_23[Recurso financeiro estimado no ano\n(R$) - Cobrança Federal],PAPI20_22_23[SubPDC],'Consolidaçao - 1'!M6,PAPI20_22_23[Ano previsto para início],2023)","v":0},{"$f":"SUMIFS(PAPI20_22_23[Recurso financeiro estimado no ano (R$) - Outras],PAPI20_22_23[SubPDC],'Consolidaçao - 1'!M6,PAPI20_22_23[Ano previsto para início],2023)","v":0},0,0]
["1.5 - Disponibilidade",{"$f":"SUMIFS(#REF!,#REF!,A7,#REF!,2021)","v":{"$error":"#REF!"}},{"$f":"SUMIFS(#REF!,#REF!,A7,#REF!,2021)","v":{"$error":"#REF!"}},{"$f":"SUMIFS(#REF!,#REF!,A7,#REF!,2021)","v":{"$error":"#REF!"}},{"$f":"SUMIFS(#REF!,#REF!,A7,#REF!,2021)","v":{"$error":"#REF!"}},{"$error":"#REF!"},null,"2.3 - Cobrança",{"$f":"SUMIFS(PAPI20_22_23[Recurso financeiro estimado no ano (R$) - CFURH],PAPI20_22_23[SubPDC],'Consolidaçao - 1'!H7,PAPI20_22_23[Ano previsto para início],2022)","v":0},{"$f":"SUMIFS(PAPI20_22_23[Recurso financeiro estimado no ano\n(R$) - Cobrança Estadual],PAPI20_22_23[SubPDC],'Consolidaçao - 1'!H7,PAPI20_22_23[Ano previsto para início],2022)","v":0},{"$f":"SUMIFS(PAPI20_22_23[Recurso financeiro estimado no ano\n(R$) - Cobrança Federal],PAPI20_22_23[SubPDC],'Consolidaçao - 1'!H7,PAPI20_22_23[Ano previsto para início],2022)","v":0},{"$f":"SUMIFS(PAPI20_22_23[Recurso financeiro estimado no ano (R$) - Outras],PAPI20_22_23[SubPDC],'Consolidaçao - 1'!H7,PAPI20_22_23[Ano previsto para início],2022)","v":0},0,{"$f":"SUMIFS(PAPI20_22_23[Recurso financeiro estimado no ano (R$) - CFURH],PAPI20_22_23[SubPDC],'Consolidaçao - 1'!H7,PAPI20_22_23[Ano previsto para início],2023)","v":0},{"$f":"SUMIFS(PAPI20_22_23[Recurso financeiro estimado no ano\n(R$) - Cobrança Estadual],PAPI20_22_23[SubPDC],'Consolidaçao - 1'!M7,PAPI20_22_23[Ano previsto para início],2023)","v":0},{"$f":"SUMIFS(PAPI20_22_23[Recurso financeiro estimado no ano\n(R$) - Cobrança Federal],PAPI20_22_23[SubPDC],'Consolidaçao - 1'!M7,PAPI20_22_23[Ano previsto para início],2023)","v":0},{"$f":"SUMIFS(PAPI20_22_23[Recurso financeiro estimado no ano (R$) - Outras],PAPI20_22_23[SubPDC],'Consolidaçao - 1'!M7,PAPI20_22_23[Ano previsto para início],2023)","v":0},0,0]
["1.6 - Legislação",{"$f":"SUMIFS(#REF!,#REF!,A8,#REF!,2021)","v":{"$error":"#REF!"}},{"$f":"SUMIFS(#REF!,#REF!,A8,#REF!,2021)","v":{"$error":"#REF!"}},{"$f":"SUMIFS(#REF!,#REF!,A8,#REF!,2021)","v":{"$error":"#REF!"}},{"$f":"SUMIFS(#REF!,#REF!,A8,#REF!,2021)","v":{"$error":"#REF!"}},{"$error":"#REF!"},null,"2.4 - Enquadramento",{"$f":"SUMIFS(PAPI20_22_23[Recurso financeiro estimado no ano (R$) - CFURH],PAPI20_22_23[SubPDC],'Consolidaçao - 1'!H8,PAPI20_22_23[Ano previsto para início],2022)","v":0},{"$f":"SUMIFS(PAPI20_22_23[Recurso financeiro estimado no ano\n(R$) - Cobrança Estadual],PAPI20_22_23[SubPDC],'Consolidaçao - 1'!H8,PAPI20_22_23[Ano previsto para início],2022)","v":0},{"$f":"SUMIFS(PAPI20_22_23[Recurso financeiro estimado no ano\n(R$) - Cobrança Federal],PAPI20_22_23[SubPDC],'Consolidaçao - 1'!H8,PAPI20_22_23[Ano previsto para início],2022)","v":0},{"$f":"SUMIFS(PAPI20_22_23[Recurso financeiro estimado no ano (R$) - Outras],PAPI20_22_23[SubPDC],'Consolidaçao - 1'!H8,PAPI20_22_23[Ano previsto para início],2022)","v":0},0,{"$f":"SUMIFS(PAPI20_22_23[Recurso financeiro estimado no ano (R$) - CFURH],PAPI20_22_23[SubPDC],'Consolidaçao - 1'!H8,PAPI20_22_23[Ano previsto para início],2023)","v":0},{"$f":"SUMIFS(PAPI20_22_23[Recurso financeiro estimado no ano\n(R$) - Cobrança Estadual],PAPI20_22_23[SubPDC],'Consolidaçao - 1'!M8,PAPI20_22_23[Ano previsto para início],2023)","v":0},{"$f":"SUMIFS(PAPI20_22_23[Recurso financeiro estimado no ano\n(R$) - Cobrança Federal],PAPI20_22_23[SubPDC],'Consolidaçao - 1'!M8,PAPI20_22_23[Ano previsto para início],2023)","v":0},{"$f":"SUMIFS(PAPI20_22_23[Recurso financeiro estimado no ano (R$) - Outras],PAPI20_22_23[SubPDC],'Consolidaçao - 1'!M8,PAPI20_22_23[Ano previsto para início],2023)","v":0},0,0]
["1.7 - Poluição",{"$f":"SUMIFS(#REF!,#REF!,A9,#REF!,2021)","v":{"$error":"#REF!"}},{"$f":"SUMIFS(#REF!,#REF!,A9,#REF!,2021)","v":{"$error":"#REF!"}},{"$f":"SUMIFS(#REF!,#REF!,A9,#REF!,2021)","v":{"$error":"#REF!"}},{"$f":"SUMIFS(#REF!,#REF!,A9,#REF!,2021)","v":{"$error":"#REF!"}},{"$error":"#REF!"},null,"2.5 - Monitoramento e SI",{"$f":"SUMIFS(PAPI20_22_23[Recurso financeiro estimado no ano (R$) - CFURH],PAPI20_22_23[SubPDC],'Consolidaçao - 1'!H9,PAPI20_22_23[Ano previsto para início],2022)","v":0},{"$f":"SUMIFS(PAPI20_22_23[Recurso financeiro estimado no ano\n(R$) - Cobrança Estadual],PAPI20_22_23[SubPDC],'Consolidaçao - 1'!H9,PAPI20_22_23[Ano previsto para início],2022)","v":0},{"$f":"SUMIFS(PAPI20_22_23[Recurso financeiro estimado no ano\n(R$) - Cobrança Federal],PAPI20_22_23[SubPDC],'Consolidaçao - 1'!H9,PAPI20_22_23[Ano previsto para início],2022)","v":0},{"$f":"SUMIFS(PAPI20_22_23[Recurso financeiro estimado no ano (R$) - Outras],PAPI20_22_23[SubPDC],'Consolidaçao - 1'!H9,PAPI20_22_23[Ano previsto para início],2022)","v":0},0,{"$f":"SUMIFS(PAPI20_22_23[Recurso financeiro estimado no ano (R$) - CFURH],PAPI20_22_23[SubPDC],'Consolidaçao - 1'!H9,PAPI20_22_23[Ano previsto para início],2023)","v":0},{"$f":"SUMIFS(PAPI20_22_23[Recurso financeiro estimado no ano\n(R$) - Cobrança Estadual],PAPI20_22_23[SubPDC],'Consolidaçao - 1'!M9,PAPI20_22_23[Ano previsto para início],2023)","v":0},{"$f":"SUMIFS(PAPI20_22_23[Recurso financeiro estimado no ano\n(R$) - Cobrança Federal],PAPI20_22_23[SubPDC],'Consolidaçao - 1'!M9,PAPI20_22_23[Ano previsto para início],2023)","v":0},{"$f":"SUMIFS(PAPI20_22_23[Recurso financeiro estimado no ano (R$) - Outras],PAPI20_22_23[SubPDC],'Consolidaçao - 1'!M9,PAPI20_22_23[Ano previsto para início],2023)","v":0},0,0]
["2.1 - Planos",{"$f":"SUMIFS(#REF!,#REF!,A10,#REF!,2021)","v":{"$error":"#REF!"}},{"$f":"SUMIFS(#REF!,#REF!,A10,#REF!,2021)","v":{"$error":"#REF!"}},{"$f":"SUMIFS(#REF!,#REF!,A10,#REF!,2021)","v":{"$error":"#REF!"}},{"$f":"SUMIFS(#REF!,#REF!,A10,#REF!,2021)","v":{"$error":"#REF!"}},{"$error":"#REF!"},null,"2.6 - Integração",{"$f":"SUMIFS(PAPI20_22_23[Recurso financeiro estimado no ano (R$) - CFURH],PAPI20_22_23[SubPDC],'Consolidaçao - 1'!H10,PAPI20_22_23[Ano previsto para início],2022)","v":0},{"$f":"SUMIFS(PAPI20_22_23[Recurso financeiro estimado no ano\n(R$) - Cobrança Estadual],PAPI20_22_23[SubPDC],'Consolidaçao - 1'!H10,PAPI20_22_23[Ano previsto para início],2022)","v":0},{"$f":"SUMIFS(PAPI20_22_23[Recurso financeiro estimado no ano\n(R$) - Cobrança Federal],PAPI20_22_23[SubPDC],'Consolidaçao - 1'!H10,PAPI20_22_23[Ano previsto para início],2022)","v":0},{"$f":"SUMIFS(PAPI20_22_23[Recurso financeiro estimado no ano (R$) - Outras],PAPI20_22_23[SubPDC],'Consolidaçao - 1'!H10,PAPI20_22_23[Ano previsto para início],2022)","v":0},0,{"$f":"SUMIFS(PAPI20_22_23[Recurso financeiro estimado no ano (R$) - CFURH],PAPI20_22_23[SubPDC],'Consolidaçao - 1'!H10,PAPI20_22_23[Ano previsto para início],2023)","v":0},{"$f":"SUMIFS(PAPI20_22_23[Recurso financeiro estimado no ano\n(R$) - Cobrança Estadual],PAPI20_22_23[SubPDC],'Consolidaçao - 1'!M10,PAPI20_22_23[Ano previsto para início],2023)","v":0},{"$f":"SUMIFS(PAPI20_22_23[Recurso financeiro estimado no ano\n(R$) - Cobrança Federal],PAPI20_22_23[SubPDC],'Consolidaçao - 1'!M10,PAPI20_22_23[Ano previsto para início],2023)","v":0},{"$f":"SUMIFS(PAPI20_22_23[Recurso financeiro estimado no ano (R$) - Outras],PAPI20_22_23[SubPDC],'Consolidaçao - 1'!M10,PAPI20_22_23[Ano previsto para início],2023)","v":0},0,0]
["2.2 - Outorga",{"$f":"SUMIFS(#REF!,#REF!,A11,#REF!,2021)","v":{"$error":"#REF!"}},{"$f":"SUMIFS(#REF!,#REF!,A11,#REF!,2021)","v":{"$error":"#REF!"}},{"$f":"SUMIFS(#REF!,#REF!,A11,#REF!,2021)","v":{"$error":"#REF!"}},{"$f":"SUMIFS(#REF!,#REF!,A11,#REF!,2021)","v":{"$error":"#REF!"}},{"$error":"#REF!"},null,"2.7 - CORHI",{"$f":"SUMIFS(PAPI20_22_23[Recurso financeiro estimado no ano (R$) - CFURH],PAPI20_22_23[SubPDC],'Consolidaçao - 1'!H11,PAPI20_22_23[Ano previsto para início],2022)","v":0},{"$f":"SUMIFS(PAPI20_22_23[Recurso financeiro estimado no ano\n(R$) - Cobrança Estadual],PAPI20_22_23[SubPDC],'Consolidaçao - 1'!H11,PAPI20_22_23[Ano previsto para início],2022)","v":0},{"$f":"SUMIFS(PAPI20_22_23[Recurso financeiro estimado no ano\n(R$) - Cobrança Federal],PAPI20_22_23[SubPDC],'Consolidaçao - 1'!H11,PAPI20_22_23[Ano previsto para início],2022)","v":0},{"$f":"SUMIFS(PAPI20_22_23[Recurso financeiro estimado no ano (R$) - Outras],PAPI20_22_23[SubPDC],'Consolidaçao - 1'!H11,PAPI20_22_23[Ano previsto para início],2022)","v":0},0,{"$f":"SUMIFS(PAPI20_22_23[Recurso financeiro estimado no ano (R$) - CFURH],PAPI20_22_23[SubPDC],'Consolidaçao - 1'!H11,PAPI20_22_23[Ano previsto para início],2023)","v":0},{"$f":"SUMIFS(PAPI20_22_23[Recurso financeiro estimado no ano\n(R$) - Cobrança Estadual],PAPI20_22_23[SubPDC],'Consolidaçao - 1'!M11,PAPI20_22_23[Ano previsto para início],2023)","v":0},{"$f":"SUMIFS(PAPI20_22_23[Recurso financeiro estimado no ano\n(R$) - Cobrança Federal],PAPI20_22_23[SubPDC],'Consolidaçao - 1'!M11,PAPI20_22_23[Ano previsto para início],2023)","v":0},{"$f":"SUMIFS(PAPI20_22_23[Recurso financeiro estimado no ano (R$) - Outras],PAPI20_22_23[SubPDC],'Consolidaçao - 1'!M11,PAPI20_22_23[Ano previsto para início],2023)","v":0},0,0]
["2.3 - Cobrança",{"$f":"SUMIFS(#REF!,#REF!,A12,#REF!,2021)","v":{"$error":"#REF!"}},{"$f":"SUMIFS(#REF!,#REF!,A12,#REF!,2021)","v":{"$error":"#REF!"}},{"$f":"SUMIFS(#REF!,#REF!,A12,#REF!,2021)","v":{"$error":"#REF!"}},{"$f":"SUMIFS(#REF!,#REF!,A12,#REF!,2021)","v":{"$error":"#REF!"}},{"$error":"#REF!"},null,"3.1 - Efluentes",{"$f":"SUMIFS(PAPI20_22_23[Recurso financeiro estimado no ano (R$) - CFURH],PAPI20_22_23[SubPDC],'Consolidaçao - 1'!H12,PAPI20_22_23[Ano previsto para início],2022)","v":0},{"$f":"SUMIFS(PAPI20_22_23[Recurso financeiro estimado no ano\n(R$) - Cobrança Estadual],PAPI20_22_23[SubPDC],'Consolidaçao - 1'!H12,PAPI20_22_23[Ano previsto para início],2022)","v":0},{"$f":"SUMIFS(PAPI20_22_23[Recurso financeiro estimado no ano\n(R$) - Cobrança Federal],PAPI20_22_23[SubPDC],'Consolidaçao - 1'!H12,PAPI20_22_23[Ano previsto para início],2022)","v":0},{"$f":"SUMIFS(PAPI20_22_23[Recurso financeiro estimado no ano (R$) - Outras],PAPI20_22_23[SubPDC],'Consolidaçao - 1'!H12,PAPI20_22_23[Ano previsto para início],2022)","v":0},0,{"$f":"SUMIFS(PAPI20_22_23[Recurso financeiro estimado no ano (R$) - CFURH],PAPI20_22_23[SubPDC],'Consolidaçao - 1'!H12,PAPI20_22_23[Ano previsto para início],2023)","v":0},{"$f":"SUMIFS(PAPI20_22_23[Recurso financeiro estimado no ano\n(R$) - Cobrança Estadual],PAPI20_22_23[SubPDC],'Consolidaçao - 1'!M12,PAPI20_22_23[Ano previsto para início],2023)","v":0},{"$f":"SUMIFS(PAPI20_22_23[Recurso financeiro estimado no ano\n(R$) - Cobrança Federal],PAPI20_22_23[SubPDC],'Consolidaçao - 1'!M12,PAPI20_22_23[Ano previsto para início],2023)","v":0},{"$f":"SUMIFS(PAPI20_22_23[Recurso financeiro estimado no ano (R$) - Outras],PAPI20_22_23[SubPDC],'Consolidaçao - 1'!M12,PAPI20_22_23[Ano previsto para início],2023)","v":0},0,0]
["2.4 - Efetivação",{"$f":"SUMIFS(#REF!,#REF!,A13,#REF!,2021)","v":{"$error":"#REF!"}},{"$f":"SUMIFS(#REF!,#REF!,A13,#REF!,2021)","v":{"$error":"#REF!"}},{"$f":"SUMIFS(#REF!,#REF!,A13,#REF!,2021)","v":{"$error":"#REF!"}},{"$f":"SUMIFS(#REF!,#REF!,A13,#REF!,2021)","v":{"$error":"#REF!"}},{"$error":"#REF!"},null,"3.2 - Poluição",{"$f":"SUMIFS(PAPI20_22_23[Recurso financeiro estimado no ano (R$) - CFURH],PAPI20_22_23[SubPDC],'Consolidaçao - 1'!H13,PAPI20_22_23[Ano previsto para início],2022)","v":0},{"$f":"SUMIFS(PAPI20_22_23[Recurso financeiro estimado no ano\n(R$) - Cobrança Estadual],PAPI20_22_23[SubPDC],'Consolidaçao - 1'!H13,PAPI20_22_23[Ano previsto para início],2022)","v":0},{"$f":"SUMIFS(PAPI20_22_23[Recurso financeiro estimado no ano\n(R$) - Cobrança Federal],PAPI20_22_23[SubPDC],'Consolidaçao - 1'!H13,PAPI20_22_23[Ano previsto para início],2022)","v":0},{"$f":"SUMIFS(PAPI20_22_23[Recurso financeiro estimado no ano (R$) - Outras],PAPI20_22_23[SubPDC],'Consolidaçao - 1'!H13,PAPI20_22_23[Ano previsto para início],2022)","v":0},0,{"$f":"SUMIFS(PAPI20_22_23[Recurso financeiro estimado no ano (R$) - CFURH],PAPI20_22_23[SubPDC],'Consolidaçao - 1'!H13,PAPI20_22_23[Ano previsto para início],2023)","v":0},{"$f":"SUMIFS(PAPI20_22_23[Recurso financeiro estimado no ano\n(R$) - Cobrança Estadual],PAPI20_22_23[SubPDC],'Consolidaçao - 1'!M13,PAPI20_22_23[Ano previsto para início],2023)","v":0},{"$f":"SUMIFS(PAPI20_22_23[Recurso financeiro estimado no ano\n(R$) - Cobrança Federal],PAPI20_22_23[SubPDC],'Consolidaçao - 1'!M13,PAPI20_22_23[Ano previsto para início],2023)","v":0},{"$f":"SUMIFS(PAPI20_22_23[Recurso financeiro estimado no ano (R$) - Outras],PAPI20_22_23[SubPDC],'Consolidaçao - 1'!M13,PAPI20_22_23[Ano previsto para início],2023)","v":0},0,0]
["2.5 - Integração",{"$f":"SUMIFS(#REF!,#REF!,A14,#REF!,2021)","v":{"$error":"#REF!"}},{"$f":"SUMIFS(#REF!,#REF!,A14,#REF!,2021)","v":{"$error":"#REF!"}},{"$f":"SUMIFS(#REF!,#REF!,A14,#REF!,2021)","v":{"$error":"#REF!"}},{"$f":"SUMIFS(#REF!,#REF!,A14,#REF!,2021)","v":{"$error":"#REF!"}},{"$error":"#REF!"},null,"3.3 - Resíduos",{"$f":"SUMIFS(PAPI20_22_23[Recurso financeiro estimado no ano (R$) - CFURH],PAPI20_22_23[SubPDC],'Consolidaçao - 1'!H14,PAPI20_22_23[Ano previsto para início],2022)","v":0},{"$f":"SUMIFS(PAPI20_22_23[Recurso financeiro estimado no ano\n(R$) - Cobrança Estadual],PAPI20_22_23[SubPDC],'Consolidaçao - 1'!H14,PAPI20_22_23[Ano previsto para início],2022)","v":0},{"$f":"SUMIFS(PAPI20_22_23[Recurso financeiro estimado no ano\n(R$) - Cobrança Federal],PAPI20_22_23[SubPDC],'Consolidaçao - 1'!H14,PAPI20_22_23[Ano previsto para início],2022)","v":0},{"$f":"SUMIFS(PAPI20_22_23[Recurso financeiro estimado no ano (R$) - Outras],PAPI20_22_23[SubPDC],'Consolidaçao - 1'!H14,PAPI20_22_23[Ano previsto para início],2022)","v":0},0,{"$f":"SUMIFS(PAPI20_22_23[Recurso financeiro estimado no ano (R$) - CFURH],PAPI20_22_23[SubPDC],'Consolidaçao - 1'!H14,PAPI20_22_23[Ano previsto para início],2023)","v":0},{"$f":"SUMIFS(PAPI20_22_23[Recurso financeiro estimado no ano\n(R$) - Cobrança Estadual],PAPI20_22_23[SubPDC],'Consolidaçao - 1'!M14,PAPI20_22_23[Ano previsto para início],2023)","v":0},{"$f":"SUMIFS(PAPI20_22_23[Recurso financeiro estimado no ano\n(R$) - Cobrança Federal],PAPI20_22_23[SubPDC],'Consolidaçao - 1'!M14,PAPI20_22_23[Ano previsto para início],2023)","v":0},{"$f":"SUMIFS(PAPI20_22_23[Recurso financeiro estimado no ano (R$) - Outras],PAPI20_22_23[SubPDC],'Consolidaçao - 1'!M14,PAPI20_22_23[Ano previsto para início],2023)","v":0},0,0]
["2.6 - CORHI",{"$f":"SUMIFS(#REF!,#REF!,A15,#REF!,2021)","v":{"$error":"#REF!"}},{"$f":"SUMIFS(#REF!,#REF!,A15,#REF!,2021)","v":{"$error":"#REF!"}},{"$f":"SUMIFS(#REF!,#REF!,A15,#REF!,2021)","v":{"$error":"#REF!"}},{"$f":"SUMIFS(#REF!,#REF!,A15,#REF!,2021)","v":{"$error":"#REF!"}},{"$error":"#REF!"},null,"3.4 - Intervenções",{"$f":"SUMIFS(PAPI20_22_23[Recurso financeiro estimado no ano (R$) - CFURH],PAPI20_22_23[SubPDC],'Consolidaçao - 1'!H15,PAPI20_22_23[Ano previsto para início],2022)","v":0},{"$f":"SUMIFS(PAPI20_22_23[Recurso financeiro estimado no ano\n(R$) - Cobrança Estadual],PAPI20_22_23[SubPDC],'Consolidaçao - 1'!H15,PAPI20_22_23[Ano previsto para início],2022)","v":0},{"$f":"SUMIFS(PAPI20_22_23[Recurso financeiro estimado no ano\n(R$) - Cobrança Federal],PAPI20_22_23[SubPDC],'Consolidaçao - 1'!H15,PAPI20_22_23[Ano previsto para início],2022)","v":0},{"$f":"SUMIFS(PAPI20_22_23[Recurso financeiro estimado no ano (R$) - Outras],PAPI20_22_23[SubPDC],'Consolidaçao - 1'!H15,PAPI20_22_23[Ano previsto para início],2022)","v":0},0,{"$f":"SUMIFS(PAPI20_22_23[Recurso financeiro estimado no ano (R$) - CFURH],PAPI20_22_23[SubPDC],'Consolidaçao - 1'!H15,PAPI20_22_23[Ano previsto para início],2023)","v":0},{"$f":"SUMIFS(PAPI20_22_23[Recurso financeiro estimado no ano\n(R$) - Cobrança Estadual],PAPI20_22_23[SubPDC],'Consolidaçao - 1'!H15,PAPI20_22_23[Ano previsto para início],2023)","v":0},{"$f":"SUMIFS(PAPI20_22_23[Recurso financeiro estimado no ano\n(R$) - Cobrança Federal],PAPI20_22_23[SubPDC],'Consolidaçao - 1'!H15,PAPI20_22_23[Ano previsto para início],2023)","v":0},{"$f":"SUMIFS(PAPI20_22_23[Recurso financeiro estimado no ano (R$) - Outras],PAPI20_22_23[SubPDC],'Consolidaçao - 1'!H15,PAPI20_22_23[Ano previsto para início],2023)","v":0},0,0]
["3.1 - Efluentes",{"$f":"SUMIFS(#REF!,#REF!,A16,#REF!,2021)","v":{"$error":"#REF!"}},{"$f":"SUMIFS(#REF!,#REF!,A16,#REF!,2021)","v":{"$error":"#REF!"}},{"$f":"SUMIFS(#REF!,#REF!,A16,#REF!,2021)","v":{"$error":"#REF!"}},{"$f":"SUMIFS(#REF!,#REF!,A16,#REF!,2021)","v":{"$error":"#REF!"}},{"$error":"#REF!"},null,"4.1 - Erosão",{"$f":"SUMIFS(PAPI20_22_23[Recurso financeiro estimado no ano (R$) - CFURH],PAPI20_22_23[SubPDC],'Consolidaçao - 1'!H16,PAPI20_22_23[Ano previsto para início],2022)","v":0},{"$f":"SUMIFS(PAPI20_22_23[Recurso financeiro estimado no ano\n(R$) - Cobrança Estadual],PAPI20_22_23[SubPDC],'Consolidaçao - 1'!H16,PAPI20_22_23[Ano previsto para início],2022)","v":0},{"$f":"SUMIFS(PAPI20_22_23[Recurso financeiro estimado no ano\n(R$) - Cobrança Federal],PAPI20_22_23[SubPDC],'Consolidaçao - 1'!H16,PAPI20_22_23[Ano previsto para início],2022)","v":0},{"$f":"SUMIFS(PAPI20_22_23[Recurso financeiro estimado no ano (R$) - Outras],PAPI20_22_23[SubPDC],'Consolidaçao - 1'!H16,PAPI20_22_23[Ano previsto para início],2022)","v":0},0,{"$f":"SUMIFS(PAPI20_22_23[Recurso financeiro estimado no ano (R$) - CFURH],PAPI20_22_23[SubPDC],'Consolidaçao - 1'!H16,PAPI20_22_23[Ano previsto para início],2023)","v":0},{"$f":"SUMIFS(PAPI20_22_23[Recurso financeiro estimado no ano\n(R$) - Cobrança Estadual],PAPI20_22_23[SubPDC],'Consolidaçao - 1'!H16,PAPI20_22_23[Ano previsto para início],2023)","v":0},{"$f":"SUMIFS(PAPI20_22_23[Recurso financeiro estimado no ano\n(R$) - Cobrança Federal],PAPI20_22_23[SubPDC],'Consolidaçao - 1'!H16,PAPI20_22_23[Ano previsto para início],2023)","v":0},{"$f":"SUMIFS(PAPI20_22_23[Recurso financeiro estimado no ano (R$) - Outras],PAPI20_22_23[SubPDC],'Consolidaçao - 1'!H16,PAPI20_22_23[Ano previsto para início],2023)","v":0},0,0]
["3.2 - Resíduos",{"$f":"SUMIFS(#REF!,#REF!,A17,#REF!,2021)","v":{"$error":"#REF!"}},{"$f":"SUMIFS(#REF!,#REF!,A17,#REF!,2021)","v":{"$error":"#REF!"}},{"$f":"SUMIFS(#REF!,#REF!,A17,#REF!,2021)","v":{"$error":"#REF!"}},{"$f":"SUMIFS(#REF!,#REF!,A17,#REF!,2021)","v":{"$error":"#REF!"}},{"$error":"#REF!"},null,"4.2 - Conservação",{"$f":"SUMIFS(PAPI20_22_23[Recurso financeiro estimado no ano (R$) - CFURH],PAPI20_22_23[SubPDC],'Consolidaçao - 1'!H17,PAPI20_22_23[Ano previsto para início],2022)","v":0},{"$f":"SUMIFS(PAPI20_22_23[Recurso financeiro estimado no ano\n(R$) - Cobrança Estadual],PAPI20_22_23[SubPDC],'Consolidaçao - 1'!H17,PAPI20_22_23[Ano previsto para início],2022)","v":0},{"$f":"SUMIFS(PAPI20_22_23[Recurso financeiro estimado no ano\n(R$) - Cobrança Federal],PAPI20_22_23[SubPDC],'Consolidaçao - 1'!H17,PAPI20_22_23[Ano previsto para início],2022)","v":0},{"$f":"SUMIFS(PAPI20_22_23[Recurso financeiro estimado no ano (R$) - Outras],PAPI20_22_23[SubPDC],'Consolidaçao - 1'!H17,PAPI20_22_23[Ano previsto para início],2022)","v":0},0,{"$f":"SUMIFS(PAPI20_22_23[Recurso financeiro estimado no ano (R$) - CFURH],PAPI20_22_23[SubPDC],'Consolidaçao - 1'!H17,PAPI20_22_23[Ano previsto para início],2023)","v":0},{"$f":"SUMIFS(PAPI20_22_23[Recurso financeiro estimado no ano\n(R$) - Cobrança Estadual],PAPI20_22_23[SubPDC],'Consolidaçao - 1'!H17,PAPI20_22_23[Ano previsto para início],2023)","v":0},{"$f":"SUMIFS(PAPI20_22_23[Recurso financeiro estimado no ano\n(R$) - Cobrança Federal],PAPI20_22_23[SubPDC],'Consolidaçao - 1'!H17,PAPI20_22_23[Ano previsto para início],2023)","v":0},{"$f":"SUMIFS(PAPI20_22_23[Recurso financeiro estimado no ano (R$) - Outras],PAPI20_22_23[SubPDC],'Consolidaçao - 1'!H17,PAPI20_22_23[Ano previsto para início],2023)","v":0},0,0]
["3.3 - Drenagem",{"$f":"SUMIFS(#REF!,#REF!,A18,#REF!,2021)","v":{"$error":"#REF!"}},{"$f":"SUMIFS(#REF!,#REF!,A18,#REF!,2021)","v":{"$error":"#REF!"}},{"$f":"SUMIFS(#REF!,#REF!,A18,#REF!,2021)","v":{"$error":"#REF!"}},{"$f":"SUMIFS(#REF!,#REF!,A18,#REF!,2021)","v":{"$error":"#REF!"}},{"$error":"#REF!"},null,"4.3 - Mananciais",{"$f":"SUMIFS(PAPI20_22_23[Recurso financeiro estimado no ano (R$) - CFURH],PAPI20_22_23[SubPDC],'Consolidaçao - 1'!H18,PAPI20_22_23[Ano previsto para início],2022)","v":0},{"$f":"SUMIFS(PAPI20_22_23[Recurso financeiro estimado no ano\n(R$) - Cobrança Estadual],PAPI20_22_23[SubPDC],'Consolidaçao - 1'!H18,PAPI20_22_23[Ano previsto para início],2022)","v":0},{"$f":"SUMIFS(PAPI20_22_23[Recurso financeiro estimado no ano\n(R$) - Cobrança Federal],PAPI20_22_23[SubPDC],'Consolidaçao - 1'!H18,PAPI20_22_23[Ano previsto para início],2022)","v":0},{"$f":"SUMIFS(PAPI20_22_23[Recurso financeiro estimado no ano (R$) - Outras],PAPI20_22_23[SubPDC],'Consolidaçao - 1'!H18,PAPI20_22_23[Ano previsto para início],2022)","v":0},0,{"$f":"SUMIFS(PAPI20_22_23[Recurso financeiro estimado no ano (R$) - CFURH],PAPI20_22_23[SubPDC],'Consolidaçao - 1'!H18,PAPI20_22_23[Ano previsto para início],2023)","v":0},{"$f":"SUMIFS(PAPI20_22_23[Recurso financeiro estimado no ano\n(R$) - Cobrança Estadual],PAPI20_22_23[SubPDC],'Consolidaçao - 1'!H18,PAPI20_22_23[Ano previsto para início],2023)","v":0},{"$f":"SUMIFS(PAPI20_22_23[Recurso financeiro estimado no ano\n(R$) - Cobrança Federal],PAPI20_22_23[SubPDC],'Consolidaçao - 1'!H18,PAPI20_22_23[Ano previsto para início],2023)","v":0},{"$f":"SUMIFS(PAPI20_22_23[Recurso financeiro estimado no ano (R$) - Outras],PAPI20_22_23[SubPDC],'Consolidaçao - 1'!H18,PAPI20_22_23[Ano previsto para início],2023)","v":0},0,0]
["3.4 - Erosão",{"$f":"SUMIFS(#REF!,#REF!,A19,#REF!,2021)","v":{"$error":"#REF!"}},{"$f":"SUMIFS(#REF!,#REF!,A19,#REF!,2021)","v":{"$error":"#REF!"}},{"$f":"SUMIFS(#REF!,#REF!,A19,#REF!,2021)","v":{"$error":"#REF!"}},{"$f":"SUMIFS(#REF!,#REF!,A19,#REF!,2021)","v":{"$error":"#REF!"}},{"$error":"#REF!"},null,"5.1 - Perdas",{"$f":"SUMIFS(PAPI20_22_23[Recurso financeiro estimado no ano (R$) - CFURH],PAPI20_22_23[SubPDC],'Consolidaçao - 1'!H19,PAPI20_22_23[Ano previsto para início],2022)","v":0},{"$f":"SUMIFS(PAPI20_22_23[Recurso financeiro estimado no ano\n(R$) - Cobrança Estadual],PAPI20_22_23[SubPDC],'Consolidaçao - 1'!H19,PAPI20_22_23[Ano previsto para início],2022)","v":0},{"$f":"SUMIFS(PAPI20_22_23[Recurso financeiro estimado no ano\n(R$) - Cobrança Federal],PAPI20_22_23[SubPDC],'Consolidaçao - 1'!H19,PAPI20_22_23[Ano previsto para início],2022)","v":0},{"$f":"SUMIFS(PAPI20_22_23[Recurso financeiro estimado no ano (R$) - Outras],PAPI20_22_23[SubPDC],'Consolidaçao - 1'!H19,PAPI20_22_23[Ano previsto para início],2022)","v":0},0,{"$f":"SUMIFS(PAPI20_22_23[Recurso financeiro estimado no ano (R$) - CFURH],PAPI20_22_23[SubPDC],'Consolidaçao - 1'!H19,PAPI20_22_23[Ano previsto para início],2023)","v":0},{"$f":"SUMIFS(PAPI20_22_23[Recurso financeiro estimado no ano\n(R$) - Cobrança Estadual],PAPI20_22_23[SubPDC],'Consolidaçao - 1'!H19,PAPI20_22_23[Ano previsto para início],2023)","v":0},{"$f":"SUMIFS(PAPI20_22_23[Recurso financeiro estimado no ano\n(R$) - Cobrança Federal],PAPI20_22_23[SubPDC],'Consolidaçao - 1'!H19,PAPI20_22_23[Ano previsto para início],2023)","v":0},{"$f":"SUMIFS(PAPI20_22_23[Recurso financeiro estimado no ano (R$) - Outras],PAPI20_22_23[SubPDC],'Consolidaçao - 1'!H19,PAPI20_22_23[Ano previsto para início],2023)","v":0},0,0]
["3.5 - Intervenções",{"$f":"SUMIFS(#REF!,#REF!,A20,#REF!,2021)","v":{"$error":"#REF!"}},{"$f":"SUMIFS(#REF!,#REF!,A20,#REF!,2021)","v":{"$error":"#REF!"}},{"$f":"SUMIFS(#REF!,#REF!,A20,#REF!,2021)","v":{"$error":"#REF!"}},{"$f":"SUMIFS(#REF!,#REF!,A20,#REF!,2021)","v":{"$error":"#REF!"}},{"$error":"#REF!"},null,"5.2 - Racionalização",{"$f":"SUMIFS(PAPI20_22_23[Recurso financeiro estimado no ano (R$) - CFURH],PAPI20_22_23[SubPDC],'Consolidaçao - 1'!H20,PAPI20_22_23[Ano previsto para início],2022)","v":0},{"$f":"SUMIFS(PAPI20_22_23[Recurso financeiro estimado no ano\n(R$) - Cobrança Estadual],PAPI20_22_23[SubPDC],'Consolidaçao - 1'!H20,PAPI20_22_23[Ano previsto para início],2022)","v":0},{"$f":"SUMIFS(PAPI20_22_23[Recurso financeiro estimado no ano\n(R$) - Cobrança Federal],PAPI20_22_23[SubPDC],'Consolidaçao - 1'!H20,PAPI20_22_23[Ano previsto para início],2022)","v":0},{"$f":"SUMIFS(PAPI20_22_23[Recurso financeiro estimado no ano (R$) - Outras],PAPI20_22_23[SubPDC],'Consolidaçao - 1'!H20,PAPI20_22_23[Ano previsto para início],2022)","v":0},0,{"$f":"SUMIFS(PAPI20_22_23[Recurso financeiro estimado no ano (R$) - CFURH],PAPI20_22_23[SubPDC],'Consolidaçao - 1'!H20,PAPI20_22_23[Ano previsto para início],2023)","v":0},{"$f":"SUMIFS(PAPI20_22_23[Recurso financeiro estimado no ano\n(R$) - Cobrança Estadual],PAPI20_22_23[SubPDC],'Consolidaçao - 1'!H20,PAPI20_22_23[Ano previsto para início],2023)","v":0},{"$f":"SUMIFS(PAPI20_22_23[Recurso financeiro estimado no ano\n(R$) - Cobrança Federal],PAPI20_22_23[SubPDC],'Consolidaçao - 1'!H20,PAPI20_22_23[Ano previsto para início],2023)","v":0},{"$f":"SUMIFS(PAPI20_22_23[Recurso financeiro estimado no ano (R$) - Outras],PAPI20_22_23[SubPDC],'Consolidaçao - 1'!H20,PAPI20_22_23[Ano previsto para início],2023)","v":0},0,0]
["4.1 - Mananciais",{"$f":"SUMIFS(#REF!,#REF!,A21,#REF!,2021)","v":{"$error":"#REF!"}},{"$f":"SUMIFS(#REF!,#REF!,A21,#REF!,2021)","v":{"$error":"#REF!"}},{"$f":"SUMIFS(#REF!,#REF!,A21,#REF!,2021)","v":{"$error":"#REF!"}},{"$f":"SUMIFS(#REF!,#REF!,A21,#REF!,2021)","v":{"$error":"#REF!"}},{"$error":"#REF!"},null,"5.3 - Reuso",{"$f":"SUMIFS(PAPI20_22_23[Recurso financeiro estimado no ano (R$) - CFURH],PAPI20_22_23[SubPDC],'Consolidaçao - 1'!H21,PAPI20_22_23[Ano previsto para início],2022)","v":0},{"$f":"SUMIFS(PAPI20_22_23[Recurso financeiro estimado no ano\n(R$) - Cobrança Estadual],PAPI20_22_23[SubPDC],'Consolidaçao - 1'!H21,PAPI20_22_23[Ano previsto para início],2022)","v":0},{"$f":"SUMIFS(PAPI20_22_23[Recurso financeiro estimado no ano\n(R$) - Cobrança Federal],PAPI20_22_23[SubPDC],'Consolidaçao - 1'!H21,PAPI20_22_23[Ano previsto para início],2022)","v":0},{"$f":"SUMIFS(PAPI20_22_23[Recurso financeiro estimado no ano (R$) - Outras],PAPI20_22_23[SubPDC],'Consolidaçao - 1'!H21,PAPI20_22_23[Ano previsto para início],2022)","v":0},0,{"$f":"SUMIFS(PAPI20_22_23[Recurso financeiro estimado no ano (R$) - CFURH],PAPI20_22_23[SubPDC],'Consolidaçao - 1'!H21,PAPI20_22_23[Ano previsto para início],2023)","v":0},{"$f":"SUMIFS(PAPI20_22_23[Recurso financeiro estimado no ano\n(R$) - Cobrança Estadual],PAPI20_22_23[SubPDC],'Consolidaçao - 1'!H21,PAPI20_22_23[Ano previsto para início],2023)","v":0},{"$f":"SUMIFS(PAPI20_22_23[Recurso financeiro estimado no ano\n(R$) - Cobrança Federal],PAPI20_22_23[SubPDC],'Consolidaçao - 1'!H21,PAPI20_22_23[Ano previsto para início],2023)","v":0},{"$f":"SUMIFS(PAPI20_22_23[Recurso financeiro estimado no ano (R$) - Outras],PAPI20_22_23[SubPDC],'Consolidaçao - 1'!H21,PAPI20_22_23[Ano previsto para início],2023)","v":0},0,0]
["4.2 - Vegetação",{"$f":"SUMIFS(#REF!,#REF!,A22,#REF!,2021)","v":{"$error":"#REF!"}},{"$f":"SUMIFS(#REF!,#REF!,A22,#REF!,2021)","v":{"$error":"#REF!"}},{"$f":"SUMIFS(#REF!,#REF!,A22,#REF!,2021)","v":{"$error":"#REF!"}},{"$f":"SUMIFS(#REF!,#REF!,A22,#REF!,2021)","v":{"$error":"#REF!"}},{"$error":"#REF!"},null,"6.1 - Captação",{"$f":"SUMIFS(PAPI20_22_23[Recurso financeiro estimado no ano (R$) - CFURH],PAPI20_22_23[SubPDC],'Consolidaçao - 1'!H22,PAPI20_22_23[Ano previsto para início],2022)","v":0},{"$f":"SUMIFS(PAPI20_22_23[Recurso financeiro estimado no ano\n(R$) - Cobrança Estadual],PAPI20_22_23[SubPDC],'Consolidaçao - 1'!H22,PAPI20_22_23[Ano previsto para início],2022)","v":0},{"$f":"SUMIFS(PAPI20_22_23[Recurso financeiro estimado no ano\n(R$) - Cobrança Federal],PAPI20_22_23[SubPDC],'Consolidaçao - 1'!H22,PAPI20_22_23[Ano previsto para início],2022)","v":0},{"$f":"SUMIFS(PAPI20_22_23[Recurso financeiro estimado no ano (R$) - Outras],PAPI20_22_23[SubPDC],'Consolidaçao - 1'!H22,PAPI20_22_23[Ano previsto para início],2022)","v":0},0,{"$f":"SUMIFS(PAPI20_22_23[Recurso financeiro estimado no ano (R$) - CFURH],PAPI20_22_23[SubPDC],'Consolidaçao - 1'!H22,PAPI20_22_23[Ano previsto para início],2023)","v":0},{"$f":"SUMIFS(PAPI20_22_23[Recurso financeiro estimado no ano\n(R$) - Cobrança Estadual],PAPI20_22_23[SubPDC],'Consolidaçao - 1'!H22,PAPI20_22_23[Ano previsto para início],2023)","v":0},{"$f":"SUMIFS(PAPI20_22_23[Recurso financeiro estimado no ano\n(R$) - Cobrança Federal],PAPI20_22_23[SubPDC],'Consolidaçao - 1'!H22,PAPI20_22_23[Ano previsto para início],2023)","v":0},{"$f":"SUMIFS(PAPI20_22_23[Recurso financeiro estimado no ano (R$) - Outras],PAPI20_22_23[SubPDC],'Consolidaçao - 1'!H22,PAPI20_22_23[Ano previsto para início],2023)","v":0},0,0]
["5.1 - Perdas",{"$f":"SUMIFS(#REF!,#REF!,A23,#REF!,2021)","v":{"$error":"#REF!"}},{"$f":"SUMIFS(#REF!,#REF!,A23,#REF!,2021)","v":{"$error":"#REF!"}},{"$f":"SUMIFS(#REF!,#REF!,A23,#REF!,2021)","v":{"$error":"#REF!"}},{"$f":"SUMIFS(#REF!,#REF!,A23,#REF!,2021)","v":{"$error":"#REF!"}},{"$error":"#REF!"},null,"6.2 - Regularização",{"$f":"SUMIFS(PAPI20_22_23[Recurso financeiro estimado no ano (R$) - CFURH],PAPI20_22_23[SubPDC],'Consolidaçao - 1'!H23,PAPI20_22_23[Ano previsto para início],2022)","v":0},{"$f":"SUMIFS(PAPI20_22_23[Recurso financeiro estimado no ano\n(R$) - Cobrança Estadual],PAPI20_22_23[SubPDC],'Consolidaçao - 1'!H23,PAPI20_22_23[Ano previsto para início],2022)","v":0},{"$f":"SUMIFS(PAPI20_22_23[Recurso financeiro estimado no ano\n(R$) - Cobrança Federal],PAPI20_22_23[SubPDC],'Consolidaçao - 1'!H23,PAPI20_22_23[Ano previsto para início],2022)","v":0},{"$f":"SUMIFS(PAPI20_22_23[Recurso financeiro estimado no ano (R$) - Outras],PAPI20_22_23[SubPDC],'Consolidaçao - 1'!H23,PAPI20_22_23[Ano previsto para início],2022)","v":0},0,{"$f":"SUMIFS(PAPI20_22_23[Recurso financeiro estimado no ano (R$) - CFURH],PAPI20_22_23[SubPDC],'Consolidaçao - 1'!H23,PAPI20_22_23[Ano previsto para início],2023)","v":0},{"$f":"SUMIFS(PAPI20_22_23[Recurso financeiro estimado no ano\n(R$) - Cobrança Estadual],PAPI20_22_23[SubPDC],'Consolidaçao - 1'!H23,PAPI20_22_23[Ano previsto para início],2023)","v":0},{"$f":"SUMIFS(PAPI20_22_23[Recurso financeiro estimado no ano\n(R$) - Cobrança Federal],PAPI20_22_23[SubPDC],'Consolidaçao - 1'!H23,PAPI20_22_23[Ano previsto para início],2023)","v":0},{"$f":"SUMIFS(PAPI20_22_23[Recurso financeiro estimado no ano (R$) - Outras],PAPI20_22_23[SubPDC],'Consolidaçao - 1'!H23,PAPI20_22_23[Ano previsto para início],2023)","v":0},0,0]
["5.2 - Racionalização",{"$f":"SUMIFS(#REF!,#REF!,A24,#REF!,2021)","v":{"$error":"#REF!"}},{"$f":"SUMIFS(#REF!,#REF!,A24,#REF!,2021)","v":{"$error":"#REF!"}},{"$f":"SUMIFS(#REF!,#REF!,A24,#REF!,2021)","v":{"$error":"#REF!"}},{"$f":"SUMIFS(#REF!,#REF!,A24,#REF!,2021)","v":{"$error":"#REF!"}},{"$error":"#REF!"},null,"7.1 - Drenagem",{"$f":"SUMIFS(PAPI20_22_23[Recurso financeiro estimado no ano (R$) - CFURH],PAPI20_22_23[SubPDC],'Consolidaçao - 1'!H24,PAPI20_22_23[Ano previsto para início],2022)","v":0},{"$f":"SUMIFS(PAPI20_22_23[Recurso financeiro estimado no ano\n(R$) - Cobrança Estadual],PAPI20_22_23[SubPDC],'Consolidaçao - 1'!H24,PAPI20_22_23[Ano previsto para início],2022)","v":0},{"$f":"SUMIFS(PAPI20_22_23[Recurso financeiro estimado no ano\n(R$) - Cobrança Federal],PAPI20_22_23[SubPDC],'Consolidaçao - 1'!H24,PAPI20_22_23[Ano previsto para início],2022)","v":0},{"$f":"SUMIFS(PAPI20_22_23[Recurso financeiro estimado no ano (R$) - Outras],PAPI20_22_23[SubPDC],'Consolidaçao - 1'!H24,PAPI20_22_23[Ano previsto para início],2022)","v":0},0,{"$f":"SUMIFS(PAPI20_22_23[Recurso financeiro estimado no ano (R$) - CFURH],PAPI20_22_23[SubPDC],'Consolidaçao - 1'!H24,PAPI20_22_23[Ano previsto para início],2023)","v":0},{"$f":"SUMIFS(PAPI20_22_23[Recurso financeiro estimado no ano\n(R$) - Cobrança Estadual],PAPI20_22_23[SubPDC],'Consolidaçao - 1'!H24,PAPI20_22_23[Ano previsto para início],2023)","v":0},{"$f":"SUMIFS(PAPI20_22_23[Recurso financeiro estimado no ano\n(R$) - Cobrança Federal],PAPI20_22_23[SubPDC],'Consolidaçao - 1'!H24,PAPI20_22_23[Ano previsto para início],2023)","v":0},{"$f":"SUMIFS(PAPI20_22_23[Recurso financeiro estimado no ano (R$) - Outras],PAPI20_22_23[SubPDC],'Consolidaçao - 1'!H24,PAPI20_22_23[Ano previsto para início],2023)","v":0},0,0]
["5.3 - Reuso",{"$f":"SUMIFS(#REF!,#REF!,A25,#REF!,2021)","v":{"$error":"#REF!"}},{"$f":"SUMIFS(#REF!,#REF!,A25,#REF!,2021)","v":{"$error":"#REF!"}},{"$f":"SUMIFS(#REF!,#REF!,A25,#REF!,2021)","v":{"$error":"#REF!"}},{"$f":"SUMIFS(#REF!,#REF!,A25,#REF!,2021)","v":{"$error":"#REF!"}},{"$error":"#REF!"},null,"7.2 - Escassez",{"$f":"SUMIFS(PAPI20_22_23[Recurso financeiro estimado no ano (R$) - CFURH],PAPI20_22_23[SubPDC],'Consolidaçao - 1'!H25,PAPI20_22_23[Ano previsto para início],2022)","v":0},{"$f":"SUMIFS(PAPI20_22_23[Recurso financeiro estimado no ano\n(R$) - Cobrança Estadual],PAPI20_22_23[SubPDC],'Consolidaçao - 1'!H25,PAPI20_22_23[Ano previsto para início],2022)","v":0},{"$f":"SUMIFS(PAPI20_22_23[Recurso financeiro estimado no ano\n(R$) - Cobrança Federal],PAPI20_22_23[SubPDC],'Consolidaçao - 1'!H25,PAPI20_22_23[Ano previsto para início],2022)","v":0},{"$f":"SUMIFS(PAPI20_22_23[Recurso financeiro estimado no ano (R$) - Outras],PAPI20_22_23[SubPDC],'Consolidaçao - 1'!H25,PAPI20_22_23[Ano previsto para início],2022)","v":0},0,{"$f":"SUMIFS(PAPI20_22_23[Recurso financeiro estimado no ano (R$) - CFURH],PAPI20_22_23[SubPDC],'Consolidaçao - 1'!H25,PAPI20_22_23[Ano previsto para início],2023)","v":0},{"$f":"SUMIFS(PAPI20_22_23[Recurso financeiro estimado no ano\n(R$) - Cobrança Estadual],PAPI20_22_23[SubPDC],'Consolidaçao - 1'!H25,PAPI20_22_23[Ano previsto para início],2023)","v":0},{"$f":"SUMIFS(PAPI20_22_23[Recurso financeiro estimado no ano\n(R$) - Cobrança Federal],PAPI20_22_23[SubPDC],'Consolidaçao - 1'!H25,PAPI20_22_23[Ano previsto para início],2023)","v":0},{"$f":"SUMIFS(PAPI20_22_23[Recurso financeiro estimado no ano (R$) - Outras],PAPI20_22_23[SubPDC],'Consolidaçao - 1'!H25,PAPI20_22_23[Ano previsto para início],2023)","v":0},0,0]
["6.1 - Usos",{"$f":"SUMIFS(#REF!,#REF!,A26,#REF!,2021)","v":{"$error":"#REF!"}},{"$f":"SUMIFS(#REF!,#REF!,A26,#REF!,2021)","v":{"$error":"#REF!"}},{"$f":"SUMIFS(#REF!,#REF!,A26,#REF!,2021)","v":{"$error":"#REF!"}},{"$f":"SUMIFS(#REF!,#REF!,A26,#REF!,2021)","v":{"$error":"#REF!"}},{"$error":"#REF!"},null,"8.1 - Capacitação",{"$f":"SUMIFS(PAPI20_22_23[Recurso financeiro estimado no ano (R$) - CFURH],PAPI20_22_23[SubPDC],'Consolidaçao - 1'!H26,PAPI20_22_23[Ano previsto para início],2022)","v":0},{"$f":"SUMIFS(PAPI20_22_23[Recurso financeiro estimado no ano\n(R$) - Cobrança Estadual],PAPI20_22_23[SubPDC],'Consolidaçao - 1'!H26,PAPI20_22_23[Ano previsto para início],2022)","v":0},{"$f":"SUMIFS(PAPI20_22_23[Recurso financeiro estimado no ano\n(R$) - Cobrança Federal],PAPI20_22_23[SubPDC],'Consolidaçao - 1'!H26,PAPI20_22_23[Ano previsto para início],2022)","v":0},{"$f":"SUMIFS(PAPI20_22_23[Recurso financeiro estimado no ano (R$) - Outras],PAPI20_22_23[SubPDC],'Consolidaçao - 1'!H26,PAPI20_22_23[Ano previsto para início],2022)","v":0},0,{"$f":"SUMIFS(PAPI20_22_23[Recurso financeiro estimado no ano (R$) - CFURH],PAPI20_22_23[SubPDC],'Consolidaçao - 1'!H26,PAPI20_22_23[Ano previsto para início],2023)","v":0},{"$f":"SUMIFS(PAPI20_22_23[Recurso financeiro estimado no ano\n(R$) - Cobrança Estadual],PAPI20_22_23[SubPDC],'Consolidaçao - 1'!H26,PAPI20_22_23[Ano previsto para início],2023)","v":0},{"$f":"SUMIFS(PAPI20_22_23[Recurso financeiro estimado no ano\n(R$) - Cobrança Federal],PAPI20_22_23[SubPDC],'Consolidaçao - 1'!H26,PAPI20_22_23[Ano previsto para início],2023)","v":0},{"$f":"SUMIFS(PAPI20_22_23[Recurso financeiro estimado no ano (R$) - Outras],PAPI20_22_23[SubPDC],'Consolidaçao - 1'!H26,PAPI20_22_23[Ano previsto para início],2023)","v":0},0,0]
["6.2 - Segurança",{"$f":"SUMIFS(#REF!,#REF!,A27,#REF!,2021)","v":{"$error":"#REF!"}},{"$f":"SUMIFS(#REF!,#REF!,A27,#REF!,2021)","v":{"$error":"#REF!"}},{"$f":"SUMIFS(#REF!,#REF!,A27,#REF!,2021)","v":{"$error":"#REF!"}},{"$f":"SUMIFS(#REF!,#REF!,A27,#REF!,2021)","v":{"$error":"#REF!"}},{"$error":"#REF!"},null,"8.2 - Educação",{"$f":"SUMIFS(PAPI20_22_23[Recurso financeiro estimado no ano (R$) - CFURH],PAPI20_22_23[SubPDC],'Consolidaçao - 1'!H27,PAPI20_22_23[Ano previsto para início],2022)","v":0},{"$f":"SUMIFS(PAPI20_22_23[Recurso financeiro estimado no ano\n(R$) - Cobrança Estadual],PAPI20_22_23[SubPDC],'Consolidaçao - 1'!H27,PAPI20_22_23[Ano previsto para início],2022)","v":0},{"$f":"SUMIFS(PAPI20_22_23[Recurso financeiro estimado no ano\n(R$) - Cobrança Federal],PAPI20_22_23[SubPDC],'Consolidaçao - 1'!H27,PAPI20_22_23[Ano previsto para início],2022)","v":0},{"$f":"SUMIFS(PAPI20_22_23[Recurso financeiro estimado no ano (R$) - Outras],PAPI20_22_23[SubPDC],'Consolidaçao - 1'!H27,PAPI20_22_23[Ano previsto para início],2022)","v":0},0,{"$f":"SUMIFS(PAPI20_22_23[Recurso financeiro estimado no ano (R$) - CFURH],PAPI20_22_23[SubPDC],'Consolidaçao - 1'!H27,PAPI20_22_23[Ano previsto para início],2023)","v":0},{"$f":"SUMIFS(PAPI20_22_23[Recurso financeiro estimado no ano\n(R$) - Cobrança Estadual],PAPI20_22_23[SubPDC],'Consolidaçao - 1'!H27,PAPI20_22_23[Ano previsto para início],2023)","v":0},{"$f":"SUMIFS(PAPI20_22_23[Recurso financeiro estimado no ano\n(R$) - Cobrança Federal],PAPI20_22_23[SubPDC],'Consolidaçao - 1'!H27,PAPI20_22_23[Ano previsto para início],2023)","v":0},{"$f":"SUMIFS(PAPI20_22_23[Recurso financeiro estimado no ano (R$) - Outras],PAPI20_22_23[SubPDC],'Consolidaçao - 1'!H27,PAPI20_22_23[Ano previsto para início],2023)","v":0},0,0]
["6.3 - Aproveitamento",{"$f":"SUMIFS(#REF!,#REF!,A28,#REF!,2021)","v":{"$error":"#REF!"}},{"$f":"SUMIFS(#REF!,#REF!,A28,#REF!,2021)","v":{"$error":"#REF!"}},{"$f":"SUMIFS(#REF!,#REF!,A28,#REF!,2021)","v":{"$error":"#REF!"}},{"$f":"SUMIFS(#REF!,#REF!,A28,#REF!,2021)","v":{"$error":"#REF!"}},{"$error":"#REF!"},null,"8.3 - Comunicação",{"$f":"SUMIFS(PAPI20_22_23[Recurso financeiro estimado no ano (R$) - CFURH],PAPI20_22_23[SubPDC],'Consolidaçao - 1'!H28,PAPI20_22_23[Ano previsto para início],2022)","v":0},{"$f":"SUMIFS(PAPI20_22_23[Recurso financeiro estimado no ano\n(R$) - Cobrança Estadual],PAPI20_22_23[SubPDC],'Consolidaçao - 1'!H28,PAPI20_22_23[Ano previsto para início],2022)","v":0},{"$f":"SUMIFS(PAPI20_22_23[Recurso financeiro estimado no ano\n(R$) - Cobrança Federal],PAPI20_22_23[SubPDC],'Consolidaçao - 1'!H28,PAPI20_22_23[Ano previsto para início],2022)","v":0},{"$f":"SUMIFS(PAPI20_22_23[Recurso financeiro estimado no ano (R$) - Outras],PAPI20_22_23[SubPDC],'Consolidaçao - 1'!H28,PAPI20_22_23[Ano previsto para início],2022)","v":0},0,{"$f":"SUMIFS(PAPI20_22_23[Recurso financeiro estimado no ano (R$) - CFURH],PAPI20_22_23[SubPDC],'Consolidaçao - 1'!H28,PAPI20_22_23[Ano previsto para início],2023)","v":0},{"$f":"SUMIFS(PAPI20_22_23[Recurso financeiro estimado no ano\n(R$) - Cobrança Estadual],PAPI20_22_23[SubPDC],'Consolidaçao - 1'!H28,PAPI20_22_23[Ano previsto para início],2023)","v":0},{"$f":"SUMIFS(PAPI20_22_23[Recurso financeiro estimado no ano\n(R$) - Cobrança Federal],PAPI20_22_23[SubPDC],'Consolidaçao - 1'!H28,PAPI20_22_23[Ano previsto para início],2023)","v":0},{"$f":"SUMIFS(PAPI20_22_23[Recurso financeiro estimado no ano (R$) - Outras],PAPI20_22_23[SubPDC],'Consolidaçao - 1'!H28,PAPI20_22_23[Ano previsto para início],2023)","v":0},0,0]
["7.1 - Criticidades",{"$f":"SUMIFS(#REF!,#REF!,A29,#REF!,2021)","v":{"$error":"#REF!"}},{"$f":"SUMIFS(#REF!,#REF!,A29,#REF!,2021)","v":{"$error":"#REF!"}},{"$f":"SUMIFS(#REF!,#REF!,A29,#REF!,2021)","v":{"$error":"#REF!"}},{"$f":"SUMIFS(#REF!,#REF!,A29,#REF!,2021)","v":{"$error":"#REF!"}},{"$error":"#REF!"}]
["7.2 - Inundações",{"$f":"SUMIFS(#REF!,#REF!,A30,#REF!,2021)","v":{"$error":"#REF!"}},{"$f":"SUMIFS(#REF!,#REF!,A30,#REF!,2021)","v":{"$error":"#REF!"}},{"$f":"SUMIFS(#REF!,#REF!,A30,#REF!,2021)","v":{"$error":"#REF!"}},{"$f":"SUMIFS(#REF!,#REF!,A30,#REF!,2021)","v":{"$error":"#REF!"}},{"$error":"#REF!"},null,"Delib. 246","PDC 1 e 2","Prioritário","Não Prioritário"]
["7.3 - Estiagens",{"$f":"SUMIFS(#REF!,#REF!,A31,#REF!,2021)","v":{"$error":"#REF!"}},{"$f":"SUMIFS(#REF!,#REF!,A31,#REF!,2021)","v":{"$error":"#REF!"}},{"$f":"SUMIFS(#REF!,#REF!,A31,#REF!,2021)","v":{"$error":"#REF!"}},{"$f":"SUMIFS(#REF!,#REF!,A31,#REF!,2021)","v":{"$error":"#REF!"}},{"$error":"#REF!"},null,"SubPDC",{"$f":"SUMIF(#REF!,I$30,PAPI20_22_23[Recurso financeiro estimado no ano\n(R$)])","v":{"$error":"#REF!"}},{"$f":"SUMIF(#REF!,J$30,PAPI20_22_23[Recurso financeiro estimado no ano\n(R$)])","v":{"$error":"#REF!"}},{"$f":"SUMIF(#REF!,K$30,PAPI20_22_23[Recurso financeiro estimado no ano\n(R$)])","v":{"$error":"#REF!"}}]
["8.1 - Capacitação",{"$f":"SUMIFS(#REF!,#REF!,A32,#REF!,2021)","v":{"$error":"#REF!"}},{"$f":"SUMIFS(#REF!,#REF!,A32,#REF!,2021)","v":{"$error":"#REF!"}},{"$f":"SUMIFS(#REF!,#REF!,A32,#REF!,2021)","v":{"$error":"#REF!"}},{"$f":"SUMIFS(#REF!,#REF!,A32,#REF!,2021)","v":{"$error":"#REF!"}},{"$error":"#REF!"},null,null,{"$f":"IFERROR(I31/SUM(I31:K31),\"\")","v":""},{"$f":"IFERROR(J31/SUM(I31:K31),\"\")","v":""},{"$f":"IFERROR(K31/SUM(I31:K31),\"\")","v":""}]
["8.2 - Educação",{"$f":"SUMIFS(#REF!,#REF!,A33,#REF!,2021)","v":{"$error":"#REF!"}},{"$f":"SUMIFS(#REF!,#REF!,A33,#REF!,2021)","v":{"$error":"#REF!"}},{"$f":"SUMIFS(#REF!,#REF!,A33,#REF!,2021)","v":{"$error":"#REF!"}},{"$f":"SUMIFS(#REF!,#REF!,A33,#REF!,2021)","v":{"$error":"#REF!"}},{"$error":"#REF!"}]
["8.3 - Comunicação",{"$f":"SUMIFS(#REF!,#REF!,A34,#REF!,2021)","v":{"$error":"#REF!"}},{"$f":"SUMIFS(#REF!,#REF!,A34,#REF!,2021)","v":{"$error":"#REF!"}},{"$f":"SUMIFS(#REF!,#REF!,A34,#REF!,2021)","v":{"$error":"#REF!"}},{"$f":"SUMIFS(#REF!,#REF!,A34,#REF!,2021)","v":{"$error":"#REF!"}},{"$error":"#REF!"}]
[]
["Delib. 190","PDC 1 e 2","Prioritário","Não Prioritário"]
["SubPDC",{"$f":"SUMIF(#REF!,B$36,#REF!)","v":{"$error":"#REF!"}},{"$f":"SUMIF(#REF!,C$36,#REF!)","v":{"$error":"#REF!"}},{"$f":"SUMIF(#REF!,D$36,#REF!)","v":{"$error":"#REF!"}}]
[null,{"$f":"B37/SUM(B37:D37)","v":{"$error":"#REF!"}},{"$f":"C37/SUM(B37:D37)","v":{"$error":"#REF!"}},{"$f":"D37/SUM(B37:D37)","v":{"$error":"#REF!"}}]

{"sheet":"Consolidaçao - 2","index":9,"n_rows":2,"n_cols":1,"rows_kept":2,"cut":false,"hidden":true,"merged":[]}
["Para atualizar, vá em Dados --> Atualizar Tudo ou aperte"]
["CTRL + Alt + F5"]

{"sheet":"Orientações","index":10,"n_rows":17,"n_cols":2,"rows_kept":17,"cut":false,"hidden":false,"merged":[]}
[null,"MELHOR VISUALIZADO no Office 365"]
[]
[null,"Este modelo de PAPI para o quadriênio 2024-2027 tem uma estrutura distinta dos enviados nos outros períodos/anos, pois ele contempla tanto o PAPI 24-27 e seu acompanhamento, quanto o acompanhamento do PAPI anterior."]
[null,"Está dividido em multiplas  planilhas (\"abas\"), estruturadas em dois grupos: PAPI 24-27 e PAPI 20-23 (Acompanhamento). A expectativa é que a mesma planilha sirva para todo o quadriênio."]
[]
[]
[]
["A","PAPI 2024-2027"]
[null,"Compreende quatro planilhas (\"abas\") e se refere ao planejamento e acompanhamento do PAPI - 24-27. "]
[1,"Identificação das ações - 24-27\" - Compreende a indicação das ações previstas para o PAPI 2024-2027. Sugere-se a indicação do que será produzido/realizado com o recurso pleiteado, considerando a esfera de atuação direta do CBH. Envolve um fluxo de atividades a serem executadas para entregar um produto final. Preencher TODAS  informações das colunas também de forma sequencial (esquerda para direita)."]
[2,"Acompanhamento das metas 24-27 - Compreende a indicação e o acompanhamento da execução das Metas (do quadriênio e anuais).Devem ser quantificáveis e mensuráveis por meio de indicadores que reflitam as mudanças para as quais espera-se que as intervenções previstos pelas ações propostas influenciem."]
[3,"Acomp. Financeiro  24-27  -  Acompanhamento das previsões dos valores (R$) planejados, disponbilizados e executados. Para esta primeira etapa, só precisam ser preenchidos os valores Planejados (colunas em roxo). O acompanhamento se dará ao longo do quadriênio."]
[4,"PAPI 2024-2027 - Resultado automático do preenchimento anterior. Não deve ser preenchida. É o conteúdo mínimo do PAPI 24/27 que deve ser deliberado e referendado nas revisões anuais."]
[]
["B","ACOMPANHAMENTO -  PAPI 20-23"]
[null,"Compreende o acompanhamento das ações iniciadas no quadriênio anterior. Como grande parte delas ainda está em execução,  ideal é monitorar, na medida do possível, sua execução."]
[1,"Serão utilizadas as mesmas planilhas do ano anterior, que devem ser incorporadas no presente arquivo. Observar as duas colunas na cor roxa, relativa ao acompanhamento 2024. As outras colunas devem ser copiadas do último PAPI aprovado. Como se trata do acompanhamento de 2024 dessas ações, só será iniciado em 2025."]

{"sheet":"Operacional","index":11,"n_rows":76,"n_cols":95,"rows_kept":76,"cut":false,"hidden":true,"merged":[]}
[null,null,"SubPDC - Delib.CRH N° 246/2021 ",null,"Area","Executor","Fonte",null,"Tipo de Ação",null,"Prioridade",null,"Fonte"]
[null,null,"Não se aplica",null,"APRM","Estado","CFURH",null,"Obra",null,"Não prioritário",null,"FEHIDRO - Cobrança estadual"]
[null,null,"1.1 - Legislação",null,"Aquífero","Município","Cobrança Estadual",null,"Serviços",null,"PDC 1 e 2",null,"FEHIDRO - CFURH"]
[null,null,"1.2 - Planejamento",null,"Área rural","Sociedade Civil","Outras",null,"Projeto Básico/Executivo",null,"Prioritário",null,"Cobrança Federal"]
[null,null,"2.1 - Plano",null,"Área urbana","Iniciativa privada","Cobrança Federal",null,"Estudo/Diagnóstico",null,null,null,"Tesouro do Estado"]
[null,null,"2.2 - Outorga",null,"Bacia",null,null,null,"Capacitação",null,null,null,"Fundo especial de despesa\n"]
[null,null,"2.3 - Cobrança",null,"Corpo hídrico",null,null,null,null,null,null,null,"Recursos da administração indireta"]
[null,null,"2.4 - Enquadramento",null,"Município",null,null,null,null,null,null,null,"Recursos vinculados federais"]
[null,null,"2.5 - Redes de monitoramento e SI",null,"Região Hidrográfica",null,null,null,null,null,null,null,"Operações de crédito"]
[null,null,"2.6 - Integração",null,"Sub-bacia",null,null,null,null,null,null,null,"Recursos privados da sociedade civil"]
[null,null,"2.7 - CORHI",null,"UGRHi",null,null,null,null,null,null,null,"Recursos de instrumentos de fomento"]
[null,null,"3.1 - Efluentes",null,"Outra",null,null,null,null,null,null,null,"Outras fontes"]
[null,null,"3.2 - Poluição"]
[null,null,"3.3 - Resíduos"]
[null,null,"3.4 - Intervenções"]
[null,null,"4.1 - Controle erosão"]
[null,null,"4.2 - Soluções baseadas Natureza"]
[null,null,"4.3 - Mananciais"]
[null,null,"5.1 - Perdas"]
[null,null,"5.2 - Racionalização"]
[null,null,"5.3 - Reuso"]
[null,null,"6.1 - Captação"]
[null,null,"6.2 - Regularização"]
[null,null,"7.1 - Drenagem"]
[null,null,"7.2 - Escassez"]
[null,null,"8.1 - Capacitação"]
[null,null,"8.2 - Educação"]
[null,null,"8.3 - Comunicação"]
[]
[]
[]
[]
[]
[]
[]
[null,"Delib. CRH N° 246/2021 ",null,null,null,null,null,null,null,null,null,null,null,null,null,null,null,null,null,null,null,null,null,null,null,null,null,null,null,null,null,null,null,null,null,null,null,null,null,null,null,null,null,null,null,null,null,null,null,null,null,null,null,null,null,null,null,null,null,null,null,null,null,"Delib. CRH N° 190/2016, revogada a partir de 31/12/21"]
["Não se aplica","1.1 - Legislação","1.2 - Planejamento","2.1 - Plano","2.2 - Outorga","2.3 - Cobrança","2.4 - Enquadramento","2.5 - Redes de monitoramento e SI","2.6 - Integração","2.7 - CORHI","3.1 - Efluentes","3.2 - Poluição","3.3 - Resíduos","3.4 - Intervenções","4.1 - Controle erosão","4.2 - Soluções baseadas Natureza","4.3 - Mananciais","5.1 - Perdas","5.2 - Racionalização","5.3 - Reuso","6.1 - Captação","6.2 - Regularização","7.1 - Drenagem","7.2 - Escassez","8.1 - Capacitação","8.2 - Educação","8.3 - Comunicação",null,null,null,null,null,null,null,null,null,null,null,null,null,null,null,null,null,null,null,null,null,null,null,null,null,null,null,null,null,null,null,null,2020,2021,null,null,"1.1 - SI","1.2 - Planejamento","1.3 - Enquadramento","1.4 - Monitoramento","1.5 - Disponibilidade","1.6 - Legislação","1.7 - Poluição","2.1 - Planos","2.2 - Outorga","2.3 - Cobrança","2.4 - Efetivação","2.5 - Integração","2.6 - CORHI","3.1 - Efluentes","3.2 - Resíduos","3.3 - Drenagem","3.4 - Erosão","3.5 - Intervenções","4.1 - Mananciais","4.2 - Vegetação","5.1 - Perdas","5.2 - Racionalização","5.3 - Reuso","6.1 - Usos","6.2 - Segurança","6.3 - Aproveitamento","7.1 - Criticidades","7.2 - Inundações","7.3 - Estiagens","8.1 - Capacitação","8.2 - Educação","8.3 - Comunicação"]
["Não se aplica","PDC 1 e 2","PDC 1 e 2","PDC 1 e 2","PDC 1 e 2","PDC 1 e 2","PDC 1 e 2","PDC 1 e 2","PDC 1 e 2","PDC 1 e 2","Prioritário","Prioritário","Prioritário","Prioritário","Prioritário","Prioritário","Prioritário","Prioritário","Prioritário","Prioritário","Prioritário","Prioritário","Prioritário","Prioritário","Prioritário","Prioritário","Prioritário",null,null,null,null,null,null,null,null,null,null,null,null,null,null,null,null,null,null,null,null,null,null,null,null,null,null,null,null,null,null,null,null,"1.1","1.1",null,null,"PDC 1 e 2","PDC 1 e 2","PDC 1 e 2","PDC 1 e 2","PDC 1 e 2","PDC 1 e 2","PDC 1 e 2","PDC 1 e 2","PDC 1 e 2","PDC 1 e 2","PDC 1 e 2","PDC 1 e 2","PDC 1 e 2","Prioritário","Prioritário","Prioritário","Prioritário","Prioritário","Prioritário","Prioritário","Prioritário","Prioritário","Prioritário","Prioritário","Prioritário","Prioritário","Prioritário","Prioritário","Prioritário","Prioritário","Prioritário","Prioritário"]
[null,null,null,null,null,null,null,null,null,null,"Não prioritário","Não prioritário","Não prioritário","Não prioritário","Não prioritário","Não prioritário","Não prioritário","Não prioritário","Não prioritário","Não prioritário","Não prioritário","Não prioritário","Não prioritário","Não prioritário","Não prioritário","Não prioritário","Não prioritário",null,null,null,null,null,null,null,null,null,null,null,null,null,null,null,null,null,null,null,null,null,null,null,null,null,null,null,null,null,null,null,null,"1.2","1.2",null,null,null,null,null,null,null,null,null,null,null,null,null,null,null,"Não prioritário","Não prioritário","Não prioritário","Não prioritário","Não prioritário","Não prioritário","Não prioritário","Não prioritário","Não prioritário","Não prioritário","Não prioritário","Não prioritário","Não prioritário","Não prioritário","Não prioritário","Não prioritário","Não prioritário","Não prioritário","Não prioritário"]
[null,null,null,null,null,null,null,null,null,null,null,null,null,null,null,null,null,null,null,null,null,null,null,null,null,null,null,null,null,null,null,null,null,null,null,null,null,null,null,null,null,null,null,null,null,null,null,null,null,null,null,null,null,null,null,null,null,null,null,"1.3","1.3"]
[null,null,null,null,null,null,null,null,null,null,null,null,null,null,null,null,null,null,null,null,null,null,null,null,null,null,null,null,null,null,null,null,null,null,null,null,null,null,null,null,null,null,null,null,null,null,null,null,null,null,null,null,null,null,null,null,null,null,null,"1.4","1.4"]
[null,null,null,null,null,null,null,null,null,null,null,null,null,null,null,null,null,null,null,null,null,null,null,null,null,null,null,null,null,null,null,null,null,null,null,null,null,null,null,null,null,null,null,null,null,null,null,null,null,null,null,null,null,null,null,null,null,null,null,"1.5","1.5"]
[null,null,null,null,null,null,null,null,null,null,null,null,null,null,null,null,null,null,null,null,null,null,null,null,null,null,null,null,null,null,null,null,null,null,null,null,null,null,null,null,null,null,null,null,null,null,null,null,null,null,null,null,null,null,null,null,null,null,null,"1.6","1.6"]
[null,null,null,null,null,null,null,null,null,null,null,null,null,null,null,null,null,null,null,null,null,null,null,null,null,null,null,null,null,null,null,null,null,null,null,null,null,null,null,null,null,null,null,null,null,null,null,null,null,null,null,null,null,null,null,null,null,null,null,"1.7","1.7"]
["Sim","Não",null,null,null,null,null,null,null,null,null,null,null,null,null,null,null,null,null,null,null,null,null,null,null,null,null,null,null,null,null,null,null,null,null,null,null,null,null,null,null,null,null,null,null,null,null,null,null,null,null,null,null,null,null,null,null,null,null,"2.1","2.1"]
["Sim","Sim",null,null,null,null,null,null,null,null,null,null,null,null,null,null,null,null,null,null,null,null,null,null,null,null,null,null,null,null,null,null,null,null,null,null,null,null,null,null,null,null,null,null,null,null,null,null,null,null,null,null,null,null,null,null,null,null,null,"2.2","2.2"]
[null,"Não",null,null,null,null,null,null,null,null,null,null,null,null,null,null,null,null,null,null,null,null,null,null,null,null,null,null,null,null,null,null,null,null,null,null,null,null,null,null,null,null,null,null,null,null,null,null,null,null,null,null,null,null,null,null,null,null,null,"2.3","2.3"]
[null,null,null,null,null,null,null,null,null,null,null,null,null,null,null,null,null,null,null,null,null,null,null,null,null,null,null,null,null,null,null,null,null,null,null,null,null,null,null,null,null,null,null,null,null,null,null,null,null,null,null,null,null,null,null,null,null,null,null,"2.4","2.4"]
[null,null,null,null,null,null,null,null,null,null,null,null,null,null,null,null,null,null,null,null,null,null,null,null,null,null,null,null,null,null,null,null,null,null,null,null,null,null,null,null,null,null,null,null,null,null,null,null,null,null,null,null,null,null,null,null,null,null,null,"2.5","2.5"]
[null,null,null,null,null,null,null,null,null,null,null,null,null,null,null,null,null,null,null,null,null,null,null,null,null,null,null,null,null,null,null,null,null,null,null,null,null,null,null,null,null,null,null,null,null,null,null,null,null,null,null,null,null,null,null,null,null,null,null,"2.6","2.6"]
["Não se aplica","Não se aplica",null,null,null,null,null,null,null,null,null,null,null,null,null,null,null,null,null,null,null,null,null,null,null,null,null,null,null,null,null,null,null,null,null,null,null,null,null,null,null,null,null,null,null,null,null,null,null,null,null,null,null,null,null,null,null,null,null,"3.1","3.1"]
["1.1 - Legislação","PDC 1 e 2",null,null,null,null,null,null,null,null,null,null,null,null,null,null,null,null,null,null,null,null,null,null,null,null,null,null,null,null,null,null,null,null,null,null,null,null,null,null,null,null,null,null,null,null,null,null,null,null,null,null,null,null,null,null,null,null,null,"3.2","3.2"]
["1.2 - Planejamento",null,null,null,null,null,null,null,null,null,null,null,null,null,null,null,null,null,null,null,null,null,null,null,null,null,null,null,null,null,null,null,null,null,null,null,null,null,null,null,null,null,null,null,null,null,null,null,null,null,null,null,null,null,null,null,null,null,null,"3.3","3.3"]
["2.1 - Plano",null,null,null,null,null,null,null,null,null,null,null,null,null,null,null,null,null,null,null,null,null,null,null,null,null,null,null,null,null,null,null,null,null,null,null,null,null,null,null,null,null,null,null,null,null,null,null,null,null,null,null,null,null,null,null,null,null,null,"3.4","3.4"]
["2.2 - Outorga",null,null,null,null,null,null,null,null,null,null,null,null,null,null,null,null,null,null,null,null,null,null,null,null,null,null,null,null,null,null,null,null,null,null,null,null,null,null,null,null,null,null,null,null,null,null,null,null,null,null,null,null,null,null,null,null,null,null,"3.5","3.5"]
["2.3 - Cobrança",null,null,null,null,null,null,null,null,null,null,null,null,null,null,null,null,null,null,null,null,null,null,null,null,null,null,null,null,null,null,null,null,null,null,null,null,null,null,null,null,null,null,null,null,null,null,null,null,null,null,null,null,null,null,null,null,null,null,"4.1","4.1"]
["2.4 - Enquadramento",null,null,null,null,null,null,null,null,null,null,null,null,null,null,null,null,null,null,null,null,null,null,null,null,null,null,null,null,null,null,null,null,null,null,null,null,null,null,null,null,null,null,null,null,null,null,null,null,null,null,null,null,null,null,null,null,null,null,"4.2","4.2"]
["2.6 - Integração",null,null,null,null,null,null,null,null,null,null,null,null,null,null,null,null,null,null,null,null,null,null,null,null,null,null,null,null,null,null,null,null,null,null,null,null,null,null,null,null,null,null,null,null,null,null,null,null,null,null,null,null,null,null,null,null,null,null,"5.1","5.1"]
["2.7 - CORHI",null,null,null,null,null,null,null,null,null,null,null,null,null,null,null,null,null,null,null,null,null,null,null,null,null,null,null,null,null,null,null,null,null,null,null,null,null,null,null,null,null,null,null,null,null,null,null,null,null,null,null,null,null,null,null,null,null,null,"5.2","5.2"]
["3.1 - Efluentes",null,null,null,null,null,null,null,null,null,null,null,null,null,null,null,null,null,null,null,null,null,null,null,null,null,null,null,null,null,null,null,null,null,null,null,null,null,null,null,null,null,null,null,null,null,null,null,null,null,null,null,null,null,null,null,null,null,null,"5.3","5.3"]
["3.2 - Poluição",null,null,null,null,null,null,null,null,null,null,null,null,null,null,null,null,null,null,null,null,null,null,null,null,null,null,null,null,null,null,null,null,null,null,null,null,null,null,null,null,null,null,null,null,null,null,null,null,null,null,null,null,null,null,null,null,null,null,"6.1","6.1"]
["3.3 - Resíduos",null,null,null,null,null,null,null,null,null,null,null,null,null,null,null,null,null,null,null,null,null,null,null,null,null,null,null,null,null,null,null,null,null,null,null,null,null,null,null,null,null,null,null,null,null,null,null,null,null,null,null,null,null,null,null,null,null,null,"6.2","6.2"]
["3.4 - Intervenções",null,null,null,null,null,null,null,null,null,null,null,null,null,null,null,null,null,null,null,null,null,null,null,null,null,null,null,null,null,null,null,null,null,null,null,null,null,null,null,null,null,null,null,null,null,null,null,null,null,null,null,null,null,null,null,null,null,null,"6.3","6.3"]
["4.1 - Erosão",null,null,null,null,null,null,null,null,null,null,null,null,null,null,null,null,null,null,null,null,null,null,null,null,null,null,null,null,null,null,null,null,null,null,null,null,null,null,null,null,null,null,null,null,null,null,null,null,null,null,null,null,null,null,null,null,null,null,"7.1","7.1"]
["4.2 - Conservação",null,null,null,null,null,null,null,null,null,null,null,null,null,null,null,null,null,null,null,null,null,null,null,null,null,null,null,null,null,null,null,null,null,null,null,null,null,null,null,null,null,null,null,null,null,null,null,null,null,null,null,null,null,null,null,null,null,null,"7.2","7.2"]
["4.3 - Mananciais",null,null,null,null,null,null,null,null,null,null,null,null,null,null,null,null,null,null,null,null,null,null,null,null,null,null,null,null,null,null,null,null,null,null,null,null,null,null,null,null,null,null,null,null,null,null,null,null,null,null,null,null,null,null,null,null,null,null,"7.3","7.3"]
["5.1 - Perdas",null,null,null,null,null,null,null,null,null,null,null,null,null,null,null,null,null,null,null,null,null,null,null,null,null,null,null,null,null,null,null,null,null,null,null,null,null,null,null,null,null,null,null,null,null,null,null,null,null,null,null,null,null,null,null,null,null,null,"8.1","8.1"]
["5.2 - Racionalização",null,null,null,null,null,null,null,null,null,null,null,null,null,null,null,null,null,null,null,null,null,null,null,null,null,null,null,null,null,null,null,null,null,null,null,null,null,null,null,null,null,null,null,null,null,null,null,null,null,null,null,null,null,null,null,null,null,null,"8.2","8.2"]
["5.3 - Reuso",null,null,null,null,null,null,null,null,null,null,null,null,null,null,null,null,null,null,null,null,null,null,null,null,null,null,null,null,null,null,null,null,null,null,null,null,null,null,null,null,null,null,null,null,null,null,null,null,null,null,null,null,null,null,null,null,null,null,"8.3","8.3"]
["6.1 - Captação"]
["6.2 - Regularização"]
["7.1 - Drenagem"]
["7.2 - Escassez"]
["8.1 - Capacitação"]
["8.2 - Educação"]
["8.3 - Comunicação"]

{"sheet":"Explicativo","index":12,"n_rows":39,"n_cols":2,"rows_kept":39,"cut":false,"hidden":true,"merged":[]}
["Explicativo","Função"]
["sheet PAPI_20_21"]
["Coluna A","PDCs da Delib. CRH 190/2016 = lista suspensa (Operacional)"]
["Coluna B","subPDCs da Delib. CRH 190/2016 = lista suspensa (Operacional)"]
["Coluna E","formatação condicional para % = % tem que coincidir com o informado pelo CBH na Coluna O (Execução)"]
["Coluna F","categorias de Executores de Empreendimentos Fehidro = lista suspensa (Operacional)"]
["Coluna G","Área de abrangencia = delimitações possível em mapeamento = lista suspensa (Operacional)"]
["Coluna H","Nome da área de abrangencia conforme consta no Empreendimento Fehidro ou TR ou similar (preenchimento livre)"]
["Coluna I","R$ total que consta no PAPI vigente aprovado pelo CBH no RS "]
["Coluna J","R$ total disponibilizado para investimento conforme Deliberação do COFEHIDRO"]
["Coluna K","R$ total efetivamente pago/repassado neste exercício (Coluna L) ao Executor da Ação = tem que coincidir com informações do SINFehidro\nQuando R$ de K é maior que R$ de I, valor é destacado em vermelho = CBH tem que explicar a extrapolação dos recursos"]
["Coluna L","ano/exercício ao qual se referem os dados informados"]
["Coluna M","categorias de Fontes de recursos para os Executores da Ação = lista suspensa (Operacional)"]
["Coluna N","Nome da Fonte de recursos conforme consta no Empreendimento Fehidro ou TR ou similar = tem que coincidir com informações do SinFEHIDRO"]
["Coluna O","Informações relevantes sobre a execução Física e Financeira da Ação = tem que coincidir com a execução do Empreendimento e informações do SinFEHIDRO"]
[]
["sheet PAPI_22_23"]
["Coluna A","PDCs da Delib. CRH 246/2021 = lista suspensa (Operacional)"]
["Coluna B","subPDCs da Delib. CRH 246/2021 = lista suspensa (Operacional)"]
["Coluna E","formatação condicional para % = % tem que coincidir com o informado pelo CBH na Coluna O (Execução)"]
["Coluna F","categorias de Executores de Empreendimentos Fehidro = lista suspensa (Operacional)"]
["Coluna G","Área de abrangencia = delimitações possível em mapeamento = lista suspensa (Operacional)"]
["Coluna H","Nome da área de abrangencia conforme consta no Empreendimento Fehidro ou TR ou similar (preenchimento livre)"]
["Coluna I","R$ total que consta no PAPI vigente aprovado pelo CBH no RS "]
["Coluna J","R$ total disponibilizado para investimento conforme Deliberação do COFEHIDRO"]
["Coluna K","R$ total efetivamente pago/repassado neste exercício (Coluna L) ao Executor da Ação = tem que coincidir com informações do SINFehidro\nQuando R$ de K é maior que R$ de I, valor é destacado em vermelho = CBH tem que explicar a extrapolação dos recursos"]
["Coluna L","ano/exercício ao qual se referem os dados informados"]
["Coluna M","categorias de Fontes de recursos para os Executores da Ação = lista suspensa (Operacional)"]
["Coluna N","Nome da Fonte de recursos conforme consta no Empreendimento Fehidro ou TR ou similar = tem que coincidir com informações do SinFEHIDRO"]
["Coluna O","Informações relevantes sobre a execução Física e Financeira da Ação = tem que coincidir com a execução do Empreendimento e informações do SinFEHIDRO"]
[]
["sheet Consolidação","DEVE SER BLOQUEADA PARA ALTERAÇÕES"]
[]
["Coluna A","PDCs da Delib. CRH 190/2016 = lista suspensa (Operacional)"]
["Colunas B C D","Cálculos com os valores de Recurso financeiro Executado 2020 (sheet PAPI_20_21; Coluna K) para cada fonte FEHIDRO e para outras (soma da demais fontes)"]
["Colunas E F G","Cálculos com os valores de Recurso financeiro Executado 2021 (sheet PAPI_20_21; Coluna K) para cada fonte FEHIDRO e para outras (soma da demais fontes)"]
["Coluna H","PDCs da Delib. CRH 246/2021 = lista suspensa (Operacional)"]
["Colunas H I J","Cálculos com os valores de Recurso financeiro Executado 2022 (sheet PAPI_22_23; Coluna K) para cada fonte FEHIDRO e para outras (soma da demais fontes)"]
["Colunas K L M","Cálculos com os valores de Recurso financeiro Executado 2023 (sheet PAPI_22_23; Coluna K) para cada fonte FEHIDRO e para outras (soma da demais fontes)"]

{"sheet":"de-para 246 190","index":13,"n_rows":33,"n_cols":14,"rows_kept":33,"cut":false,"hidden":true,"merged":[]}
["246","190","Coluna1",null,"246","190","Coluna1","Coluna12",null,"190","246",null,"190","246"]
["1.1","1.6",null,null,"1.1","1.6",null,null,null,"1.1","2.5",null,"1.1","2.5"]
["1.2","1.2",null,null,"1.2","1.2","1.5","1.7",null,"1.2","1.2",null,"1.2","1.2"]
["2.1","2.1",null,null,"2.1","2.1",null,null,null,"1.3","2.4",null,"1.3","2.4"]
["2.2","2.2",null,null,"2.2","2.2",null,null,null,"1.4","2.5",null,"1.4","2.5"]
["2.3","2.3",null,null,"2.3","2.3",null,null,null,"1.5","6.1",null,"1.5","1.2"]
["2.4","1.3",null,null,"2.4","1.3","2.4",null,null,"1.6","1.1",null,"1.6","1.1"]
["2.4","2.4",null,null,"2.5","1.1","1.4","7.1",null,"1.7","3.2",null,"1.7","1.2"]
["2.5","1.1","1.4",null,"2.6","2.5",null,null,null,"2.1","2.1",null,"2.1","2.1"]
["2.6","2.5",null,null,"2.7","2.6",null,null,null,"2.2","2.2",null,"2.2","2.2"]
["2.7","2.6",null,null,"3.1","3.1",null,null,null,"2.3","2.3",null,"2.3","2.3"]
["3.1","3.1",null,null,"3.2",null,null,null,null,"2.4","2.4",null,"2.4","2.4"]
["3.2","1.7",null,null,"3.3","3.2",null,null,null,"2.5","2.6",null,"2.5","2.6"]
["3.3","3.2",null,null,"3.4","3.5",null,null,null,"2.6","2.7",null,"2.6","2.7"]
["3.4","3.5",null,null,"4.1","3.4",null,null,null,"3.1","3.1",null,"3.1","3.1"]
["4.1","3.4",null,null,"4.2","4.2",null,null,null,"3.2","3.3",null,"3.2","3.3"]
["4.2","4.2",null,null,"4.3","4.1",null,null,null,"3.3","7.1",null,"3.4","4.1"]
["4.3","4.1",null,null,"5.1","5.1",null,null,null,"3.4","4.1",null,"3.5","3.4"]
["5.1","5.1",null,null,"5.2","5.2",null,null,null,"3.5","3.4",null,"4.1","4.3"]
["5.2","5.2",null,null,"5.3","5.3",null,null,null,"4.1","4.3",null,"4.2","4.2"]
["5.3","5.3",null,null,"6.1",null,null,null,null,"4.2","4.2",null,"5.1","5.1"]
["6.1","1.5","6.2",null,"6.2","6.2",null,null,null,"5.1","5.1",null,"5.2","5.2"]
["6.2","6.1","6.3",null,"7.1","7.2",null,null,null,"5.2","5.2",null,"5.3","5.3"]
["7.1","3.3","7.2",null,"7.2","7.3",null,null,null,"5.3","5.3",null,"6.2","6.2"]
["7.2","7.1","7.3",null,"8.1","8.1",null,null,null,"6.1","6.2",null,"7.1","2.5"]
["8.1","8.1",null,null,"8.2","8.2",null,null,null,"6.2","6.1",null,"7.2","7.1"]
["8.2","8.2",null,null,"8.3","8.3",null,null,null,"6.3","6.2",null,"7.3","7.2"]
["8.3","8.3",null,null,null,null,null,null,null,"7.1","7.2",null,"8.1","8.1"]
[null,null,null,null,null,null,null,null,null,"7.2","7.1",null,"8.2","8.2"]
[null,null,null,null,null,null,null,null,null,"7.3","7.2",null,"8.3","8.3"]
[null,null,null,null,null,null,null,null,null,"8.1","8.1"]
[null,null,null,null,null,null,null,null,null,"8.2","8.2"]
[null,null,null,null,null,null,null,null,null,"8.3","8.3"]